{"text_format":"1","workbook":"xlsx","n_sheets":17,"sheets":["Bakım Talep Formu","Bakım ve Denetim Formu","Bireysel Bakım Planı Formu","Onay(Paraflı)","Onay","Onay (Gelir Red-Paraflı)","Onay (Gelir Red)","Onay (Kriterden Red-Paraflı)","Onay (Kriterden Red)","Onay (Bakıcıdan Red Paraflı)","Onay (Bakıcıdan Red )","Onay (Kriter,Gelir Red-Paraflı)","Onay (Kriter,Gelir Red)","Onay (Özel Bakım Mer-Paraflı)","Onay (Özel Bakım Mer)","Onay (Genel Müd.BRM-Paraflı)","Onay (Genel Müd.BRM)"],"not_rendered":{"charts":0,"images":27,"macros":1,"external_links":0,"defined_names":27,"comments":0,"pivot_tables":0},"unopened":[],"bounds":{"document_bytes":16777216,"sheet_cells":100000,"rows_first":2000,"rows_last":500,"rows_between":2000,"halvings":0,"cell_chars":16384,"cell_head_chars":4096},"cells_cut":0,"cells_raw":0,"read":"whole","date_system":"1900"}

{"sheet":"Bakım Talep Formu","index":0,"n_rows":63,"n_cols":22,"rows_kept":63,"cut":false,"hidden":false,"merged":[[0,0,0,11],[14,6,14,9],[14,10,14,11],[14,1,14,3],[25,10,25,11],[33,5,33,8],[34,5,34,8],[23,1,23,4],[23,5,23,9],[26,1,26,4],[26,5,26,9],[32,10,32,11],[33,10,33,11],[34,10,34,11],[2,0,2,11],[23,10,23,11],[24,5,24,9],[27,1,27,4],[28,1,28,4],[28,5,28,9],[1,0,1,11],[24,10,24,11],[6,0,6,4],[6,6,6,8],[7,0,7,2],[8,3,8,4],[10,0,10,11],[11,10,11,11],[25,5,25,9],[25,1,25,4],[36,4,36,11],[18,10,18,11],[20,1,20,3],[21,1,21,3],[21,10,21,11],[18,3,18,5],[22,1,22,4],[22,5,22,9],[22,10,22,11],[30,1,30,4],[36,1,36,3],[26,10,26,11],[27,10,27,11],[27,5,27,9],[35,5,35,8],[28,10,28,11],[18,6,18,9],[34,1,34,2],[70,13,70,15],[70,0,70,3],[69,4,69,5],[70,4,70,5],[69,6,69,10],[70,6,70,10],[69,11,69,12],[70,11,70,12],[69,0,69,3],[55,5,55,11],[55,0,55,4],[57,0,57,4],[57,9,57,10],[57,5,57,8],[52,6,52,11],[53,6,53,11],[69,13,69,15],[54,0,54,2],[52,3,52,4],[53,3,53,4],[62,0,62,3],[65,0,65,3],[56,3,56,4],[53,0,53,2],[74,2,74,3],[72,4,72,11],[73,4,73,11],[74,4,74,11],[109,2,109,11],[88,0,88,3],[89,0,89,3],[88,4,88,11],[89,4,89,11],[107,3,107,11],[108,2,108,11],[103,10,103,11],[104,0,104,5],[93,2,93,5],[95,2,95,5],[97,2,97,5],[75,7,75,11],[85,0,85,3],[85,4,85,11],[104,10,104,11],[93,8,93,11],[95,8,95,11],[97,8,97,11],[99,8,99,11],[76,3,76,11],[91,1,91,5],[86,0,86,3],[86,4,86,11],[103,0,103,5],[78,7,78,11],[77,2,77,5],[77,7,77,11],[79,7,79,11],[80,0,84,11],[72,2,72,3],[73,2,73,3],[3,0,3,11],[67,4,67,11],[63,0,63,3],[7,3,7,4],[61,4,61,11],[7,5,7,6],[7,7,7,11],[12,10,12,11],[4,0,4,11],[67,0,67,3],[5,0,5,2],[5,5,5,6],[21,5,21,7],[21,8,21,9],[5,10,5,11],[71,0,71,3],[11,6,11,9],[12,6,12,9],[13,6,13,9],[6,9,6,10],[13,10,13,11],[16,1,16,3],[5,7,5,9],[17,1,17,2],[18,1,18,2],[17,6,17,9],[8,5,8,6],[8,7,8,11],[8,0,8,2],[62,4,63,11],[9,0,9,2],[9,3,9,11],[12,1,12,2],[13,1,13,2],[11,1,11,2],[31,1,31,3],[56,0,56,2],[61,0,61,3],[33,1,33,2],[44,5,44,11],[45,1,45,11],[54,6,54,8],[39,10,39,11],[52,0,52,2],[17,10,17,11],[56,6,56,11],[24,1,24,4],[51,0,51,4],[51,5,51,11],[39,1,39,3],[40,1,40,3],[35,1,35,2],[31,4,31,11],[32,1,32,2],[35,10,35,11],[32,5,32,8],[38,1,38,3],[30,5,30,9],[48,8,48,9],[48,10,48,11],[47,5,47,6],[41,4,42,5],[41,1,41,3],[39,4,39,5],[40,4,40,5],[40,10,41,11],[40,6,40,9],[44,1,44,4],[65,19,65,21],[66,19,66,21],[65,22,65,24],[66,22,66,24],[65,16,65,18],[66,16,66,18],[69,16,69,18],[70,16,70,18],[29,1,29,4],[29,5,29,9],[29,10,29,11],[30,10,30,11],[39,6,39,9],[65,13,65,15],[66,13,66,15],[59,4,59,11],[66,0,66,3],[66,4,66,5],[66,6,66,10],[65,4,65,5],[65,6,65,10],[65,11,65,12],[66,11,66,12],[68,4,68,5]]}
["T.C."]
["AİLE VE SOSYAL HİZMETLER BAKANLIĞI"]
["MANİSA İL MÜDÜRLÜĞÜ"]
["EVDE BAKIM TALEP FORMU"]
[]
["Başvuru Tarihi:",null,null,{"$f":"TODAY()","v":"2022-07-22"},"Başvuru Sıra No:",null,null,"YBS No:"]
["Başvuruya Konu Olan Evde Bakım Hizmeti :     ",null,null,null,null,"Engelli","X",null,null,"Yaşlı"]
["T.C. No:",null,null,null,null,"Adı Soyadı:"]
["Doğum Yeri/Tarihi:",null,null,null,null,"Tel:"]
["Adresi:"]
["Muhtaçlık Durumu (\"X\" işareti koyarak işaretleyiniz):"]
[null,"Ortopedik",null,null,null,null,"Görme"]
[null,"İşitme",null,null,null,null,"Dil ve Konuşma"]
[null,"Zihinsel",null,null,null,null,"Ruhsal ve Duygusal"]
[null,"Süreğen Hastalık",null,null,null,null,"Diğer"]
[]
[null,"Sağlık Raporu:"]
[null,"Tarihi:",null,"…./…./20….",null,null,"Geçerlilik Süresi:"]
[null,"Tanısı:",null,null,null,null,"Derecesi:"]
[]
[null,"Gelir Durumu:"]
[null,"Gelirin Edilindiği Yer:",null,null,null,"Kime Ait Olduğu:",null,null,null,null,"Aylık Tutar:"]
[]
[]
[]
[]
[]
[]
[]
[]
[]
[null,"Mal Durumu:"]
[null,"Ev:",null,null,"Kime Ait:",null,null,null,null,"Değeri:"]
[null,"Araba:",null,null,"Kime Ait:",null,null,null,null,"Değeri:"]
[null,"Arsa:",null,null,"Kime Ait:",null,null,null,null,"Değeri:"]
[null,"Diğer:",null,null,"Kime Ait:",null,null,null,null,"Değeri:"]
[null,"Ort. Gelir:"]
[]
[null,"Müracaatçı:"]
[null,"Adı Soyadı:",null,null,null,null,"T.C Kimlik No:"]
[null,"Yakınlık Derecesi:",null,null,null,null,"TEL:"]
[null,"Adresi:"]
[]
[]
[null,"…………………….…...…… İli ………..…………….… İlçe",null,null,null,"nüfusuna kayıtlı olup, yukarıdaki adreste ikamet etmekte Evde Bakıma muhtaç"]
[null,"yaşlı/ özürlü ’in Bakım Hizmetlerinden yararlandırılması hususunda verdiğim bilgilerin doğruluğunu taahhüt eder gereğini arz ederim."]
[]
[null,null,null,null,"Tarih:","…./…./20….",null,null,null,null,null,null,null,null,null,null,null,null,null,null,null,"MERKEZ"]
[null,null,null,null,null,null,null,null,"İmza:",null,null,null,null,null,null,null,null,null,null,null,null,"SELENDİ"]
[null,null,null,null,null,null,null,null,null,null,null,null,null,null,null,null,null,null,null,null,null,"KULA"]
[null,null,null,null,null,null,null,null,null,null,null,null,null,null,null,null,null,null,null,null,null,"SALİHLİ"]
["Formu Dolduran",null,null,null,null,"Onaylayan",null,null,null,null,null,null,null,null,null,null,null,null,null,null,null,"TURGUTLU"]
["Adı Soyadı:",null,null,null,null,"Adı Soyadı:",null,null,null,null,null,null,null,null,null,null,null,null,null,null,null,"AHMETLİ"]
["Görevi:",null,null,null,null,"Görevi:",null,null,null,null,null,null,null,null,null,null,null,null,null,null,null,"ALAŞEHİR"]
["Tarih:",null,null,"…./…./20….",null,"Tarih:","…./…./20….",null,null,null,null,null,null,null,null,null,null,null,null,null,null,"SARİGÖL"]
[null,null,null,null,null,null,null,null,null,null,null,null,null,null,null,null,null,null,null,null,null,"SOMA"]
["İmzası:",null,null,null,null,"İmzası:",null,null,null,null,null,null,null,null,null,null,null,null,null,null,null,"GÖRDES"]
["Evde bakımı üstlenecek kişinin Adı Soyadı:",null,null,null,null,{"$f":"E40","v":0},null,null,null,"Yakınlığı:",null,{"$f":"E41","v":0},null,null,null,null,null,null,null,null,null,"DEMİRCİ"]
[null,null,null,null,null,null,null,null,null,null,null,null,null,null,null,null,null,null,null,null,null,"AKHİSAR"]
[null,null,null,null,null,null,null,null,null,null,null,null,null,null,null,null,null,null,null,null,null,"SARUHANLI"]
[null,null,null,null,null,null,null,null,null,null,null,null,null,null,null,null,null,null,null,null,null,"KIRKAĞAÇ"]
[null,null,null,null,null,null,null,null,null,null,null,null,null,null,null,null,null,null,null,null,null,"GÖLMARMARA"]
[null,null,null,null,null,null,null,null,null,null,null,null,null,null,null,null,null,null,null,null,null,"KÖPRÜBAŞI"]

{"sheet":"Bakım ve Denetim Formu","index":1,"n_rows":243,"n_cols":91,"rows_kept":243,"cut":false,"hidden":false,"merged":[[12,2,12,5],[177,27,177,38],[178,27,178,38],[181,27,182,38],[185,27,185,38],[186,27,187,38],[164,0,164,2],[187,0,187,5],[186,0,186,5],[183,0,183,5],[165,3,165,4],[181,0,181,5],[184,0,184,5],[185,0,185,5],[178,2,178,3],[179,0,179,5],[180,0,180,5],[166,1,166,2],[170,0,170,5],[167,1,167,2],[168,1,168,2],[169,1,169,2],[166,4,166,5],[167,4,167,5],[188,27,188,38],[238,64,241,75],[223,0,223,5],[207,0,207,5],[207,7,228,15],[207,16,228,26],[207,27,228,38],[207,39,228,51],[224,0,226,5],[227,0,227,5],[203,0,203,5],[204,0,206,5],[204,6,204,7],[206,7,206,15],[206,16,206,26],[188,0,188,5],[207,52,228,63],[207,64,228,75],[229,7,229,15],[168,4,168,5],[169,4,169,5],[182,0,182,5],[171,27,173,38],[175,27,175,38],[176,27,176,38],[179,27,180,38],[238,76,241,86],[239,0,239,2],[240,0,240,2],[241,0,241,5],[236,76,237,86],[237,64,237,75],[229,76,229,86],[230,7,230,15],[230,52,230,63],[233,0,233,5],[234,0,234,5],[234,7,235,15],[234,27,234,38],[235,0,235,2],[235,3,235,4],[228,0,230,5],[229,64,229,75],[207,76,228,86],[208,0,210,5],[211,0,211,5],[212,0,214,5],[222,0,222,5],[242,0,244,5],[238,0,238,2],[238,7,241,15],[238,16,241,26],[238,27,241,38],[238,39,241,51],[238,52,241,63],[236,0,236,2],[236,3,236,4],[237,0,237,2],[237,7,237,15],[237,16,237,26],[237,27,237,38],[237,52,237,63],[235,27,236,38],[229,16,235,26],[229,27,230,38],[229,39,235,51],[235,52,235,63],[206,76,206,86],[206,27,206,38],[206,39,206,51],[206,52,206,63],[206,64,206,75],[194,0,194,5],[195,0,195,5],[192,0,192,5],[193,0,193,5],[202,0,202,5],[189,27,192,38],[200,0,200,5],[197,0,197,5],[198,0,198,5],[199,0,199,5],[201,0,201,5],[196,0,196,5],[189,0,189,5],[190,0,190,5],[191,0,191,5],[171,0,173,5],[167,16,170,26],[166,16,166,26],[25,0,25,1],[15,2,15,5],[18,0,18,5],[15,0,15,1],[16,0,16,1],[167,7,170,15],[58,0,58,5],[65,0,65,2],[106,0,106,3],[106,4,106,5],[163,7,164,15],[60,0,60,5],[55,4,55,5],[166,7,166,15],[54,0,54,5],[152,0,152,5],[165,0,165,2],[27,2,27,5],[133,0,133,5],[117,0,117,5],[137,0,137,5],[86,0,86,5],[125,0,125,3],[94,4,94,5],[95,4,95,5],[96,0,96,3],[96,4,96,5],[109,0,109,1],[125,4,125,5],[90,0,90,5],[92,4,92,5],[92,0,92,3],[115,4,115,5],[104,4,104,5],[105,0,105,3],[112,4,112,5],[113,0,113,3],[88,0,88,5],[102,4,102,5],[103,4,103,5],[122,0,122,3],[124,4,124,5],[93,0,93,3],[91,0,91,3],[97,0,97,3],[12,0,12,1],[30,0,30,1],[110,0,110,5],[164,52,164,63],[166,52,166,63],[157,52,158,63],[29,6,29,8],[69,0,71,2],[61,0,61,1],[75,3,75,5],[66,0,66,2],[56,4,56,5],[65,3,65,5],[69,3,71,5],[64,3,64,5],[73,0,73,1],[31,0,31,1],[31,2,31,5],[30,2,30,5],[29,0,29,1],[28,2,29,5],[121,4,121,5],[121,0,121,3],[76,0,76,2],[157,76,158,86],[159,76,159,86],[118,0,118,1],[111,4,111,5],[122,4,122,5],[123,0,123,3],[115,0,115,3],[120,4,120,5],[145,0,145,5],[156,76,156,86],[119,0,119,5],[114,0,114,3],[148,0,148,5],[159,7,159,15],[114,4,114,5],[113,4,113,5],[135,0,135,5],[123,4,123,5],[124,0,124,3],[159,27,160,38],[160,52,160,63],[159,16,164,26],[153,0,153,5],[154,0,154,5],[9,2,9,5],[2,0,2,5],[11,2,11,5],[9,0,9,1],[10,2,10,5],[167,76,170,86],[165,76,166,86],[156,52,156,63],[167,52,170,63],[164,27,165,38],[163,27,163,38],[157,27,158,38],[166,27,166,38],[156,64,156,75],[167,39,170,51],[159,39,164,51],[167,27,170,38],[157,39,158,51],[156,27,156,38],[157,64,158,75],[156,39,156,51],[166,64,166,75],[167,64,170,75],[159,64,159,75],[0,2,0,3],[53,0,53,5],[74,3,74,5],[94,0,94,3],[62,3,62,5],[4,0,4,5],[57,0,57,5],[14,2,14,5],[62,0,62,2],[74,0,74,2],[89,0,89,1],[82,0,82,2],[80,0,80,2],[82,3,82,5],[78,0,78,5],[79,0,79,5],[81,0,81,2],[81,3,81,5],[19,0,21,5],[13,2,13,5],[1,0,1,5],[23,0,23,1],[26,2,26,5],[23,2,23,5],[59,0,59,5],[55,1,55,2],[56,1,56,2],[72,0,72,1],[33,0,33,5],[34,0,34,5],[49,0,50,5],[63,0,63,2],[67,0,67,2],[68,0,68,2],[68,3,68,5],[67,3,67,5],[63,3,63,5],[149,0,149,5],[151,0,151,5],[131,0,131,5],[10,0,10,1],[11,0,11,1],[6,0,6,5],[120,0,120,3],[64,0,64,2],[66,3,66,5],[75,0,75,2],[80,3,80,5],[76,3,76,5],[102,0,102,3],[85,0,85,5],[13,0,13,1],[14,0,14,1],[25,2,25,5],[27,0,27,1],[28,0,28,1],[24,0,24,1],[26,0,26,1],[24,2,24,5],[16,2,16,5],[7,0,7,5],[91,4,91,5],[157,16,158,26],[157,7,158,15],[160,7,160,15],[147,0,147,5],[164,3,164,4],[156,7,156,15],[156,16,156,26],[132,0,132,1],[155,0,162,5],[163,0,163,5],[140,0,140,5],[138,0,138,5],[141,0,141,5],[146,0,146,5],[126,4,126,5],[136,0,136,5],[139,0,139,5],[144,0,144,5],[143,0,143,5],[142,0,142,5],[126,0,126,3],[154,6,154,7],[150,0,150,5],[112,0,112,3],[93,4,93,5],[105,4,105,5],[134,4,134,5],[108,0,108,5],[95,0,95,3],[100,0,100,1],[97,4,97,5],[101,0,101,5],[99,0,99,5],[104,0,104,3],[111,0,111,3],[103,0,103,3]]}
[null,null,{"$f":"'Bakım Talep Formu'!A1","v":"T.C."}]
[{"$f":"'Bakım Talep Formu'!A2","v":"AİLE VE SOSYAL HİZMETLER BAKANLIĞI"}]
[{"$f":"'Bakım Talep Formu'!A3","v":"MANİSA İL MÜDÜRLÜĞÜ"},null,null,null,null,null,null,"A"]
[]
["BAKIM RAPORU FORMU"]
[]
["I – SOSYO-EKONOMİK DURUM TESPİTİ",null,null,null,null,null,null,1]
["A- ENGELLİNİN KİMLİK BİLGİLERİ"]
[null,null,null,null,null,null,null,"GELİR SINIRI"]
["Adı Soyadı",null,"?",null,null,null,null,847.17]
["Doğum Yeri ve Tarihi",null,"?",null,null,null,null,null,"Gelir Sınırı","Kadın","ORTOPEDİK",null,"İLK İNCELEME",null,{"$f":"CONCATENATE((IF('Bakım Talep Formu'!D12=\"X\",\"Ortopedik/\",\"\")),(IF('Bakım Talep Formu'!D13=\"X\",\"İşitme/\",\"\")),(IF('Bakım Talep Formu'!D14=\"X\",\"Zihinsel/\",\"\")),(IF('Bakım Talep Formu'!E15=\"X\",\"Süreğen Hastalık/\",\"\")),(IF('Bakım Talep Formu'!K12=\"X\",\"Görme/\",\"\")),(IF('Bakım Talep Formu'!K13=\"X\",\"Dil ve Konuşma/\",\"\")),(IF('Bakım Talep Formu'!K14=\"X\",\"Ruhsal ve Duygusal/\",\"\")),(IF('Bakım Talep Formu'!K15=\"X\",\"Diğer/\",\"\")))","v":""}]
["Cinsiyeti",null,"?",null,null,null,null,null,540.47,"Erkek","İŞİTME",null,"DENETİM"]
["Engel Grubu (zihinsel, bedensel, ruhsal)",null,"?",null,null,null,null,null,null,null,"ZİHİNSEL"]
["Anne Adı",null,"?",null,null,null,null,null,null,null,"SÜREĞEN HASTALIK"]
["Baba Adı",null,"?",null,null,null,null,null,null,null,"GÖRME"]
["İkametgâh adresi",null,"?",null,null,null,null,null,null,null,"DİL ve KONUŞMA"]
["TC Kimlik No",null,"?",null,null,null,null,null,null,null,"RUHSAL ve DUYGUSAL"]
[null,null,null,null,null,null,null,null,null,null,"DİĞER"]
["B- YASAL TEMSİLCİNİN KİMLİK BİLGİLERİ"]
["(18 yaşını tamamlamamış olanlar ile 18 yaşını tamamlamış olsa bile akıl zayıflığı veya akıl hastalığı sebebiyle işlerini görememesi veya korunması ve bakımı için kendisine sürekli yardım gerekmesi ya da başkalarının güvenliğini tehlikeye sokması nedenleriyle kısıtlanması gerekli bakıma muhtaç engelliler için )"]
[]
[]
[]
["Adı Soyadı",null,"?"]
["Doğum Yeri ve Tarihi",null,"?"]
["Cinsiyeti",null,"?"]
["Anne Adı",null,"?"]
["Baba Adı",null,"?",null,null,null,null,{"$f":"IF(G31=\"engelli İle Bakıcı Aynı Adreste\",C16,\" \")","v":" "}]
["Engelliye yakınlık durumu",null,"?"]
["(Anne, baba, akraba, görevli vb.)"]
["İkametgâh adresi",null,"?"]
["TC Kimlik No",null,"?"]
[]
["C- HANE HALKI TANIMINDAKİ KİŞİLERİN, MAL VARLIKLARI VE AYLIK GELİRLERİ"]
[" "]
["Adı Soyadı","TC Kimlik No","Engelliye Yakınlığı","Gelirin Sağlandığı ve Malların Bulunduğu Yerler ve Araç Plakaları","Türü","Aylık Geliri"]
[{"$f":"C10","v":"?"},{"$f":"C17","v":"?"}]
[]
[]
[]
[]
[]
[]
[]
[]
[]
[]
[]
[]
["Not: Bakmakla yükümlü bireylerin mal varlıklarına ve gelirlerine ilişkin belgeler veya belge sunulamyan hallerde beyan dilekçesi forma eklenecektir."]
[]
[]
[]
["BAKIM RAPORU FORMU"]
["HESAPLAMA TABLOSU"]
["Hane Halkındaki birey Sayısı","Aylık gelirler toplamı",null,"Hane Halkına göre kişi başına düşen aylık ortalama gelir","Bakım Raporu Formunun Düzenlendiği Tarihteki Bir Aylık Net Asgari Ücretin 2/3’nün Tutarı"]
[{"$f":"COUNTA(A37:A49)","v":1},{"$f":"SUM(F37:F49)","v":0},null,{"$f":"B57/A57","v":0},{"$f":"H10","v":847.17}]
["Hesaplama Şekli: Aylık Gelirler Toplamı / Hane Halkı Sayısı = Hane halkı sayısına göre kişi başına düşen aylık ortamla gelir."]
[" "]
[" "]
["D- ENGELLİNİN SAĞLIK DURUMU"]
[]
["Sağlık kurulu raporunda belirtilen teşhisi"]
["Vücut fonksiyon kaybı oranı"]
["Varsa, kullandığı sürekli ilaçlar"]
["(*)Sağlık kurulu raporunda belirtilmeyen varsa hastalığı ve sağlık özgeçmişi "]
["Varsa özel beslenme programı (diyet veya özel beslenme şekli gibi)"]
["Raporun alındığı hastane adı"]
["Raporun Tarihi-Sayısı-Süresi"]
["(*) Sürekli tıbbi tedaviye gereksinim duyup duymadığı, süreğen bir hastalığı olup olmadığı, hepatit (sarılık), tüberküloz (verem)  gibi bulaşıcı hastalık geçirip geçirmediği. "]
[]
[]
["E- ENGELLİNİN EĞİTİM DURUMU"]
[null,null,null,null,null,null,null,null,"OKURYAZAR","OKURYAZAR DEĞİL","İLKOKUL","İLKOKUL TERK","İLKÖĞRETİM","İLKÖĞRETİM TERK","ORTAÖĞRETİM","ORTAÖĞRETİM TERK","ÖN LİSANS","ÖN LİSANS TERK","LİSANS","LİSANS TERK","YÜKSEK LİSANS","YÜKSEK LİSANS TERK"]
["Eğitim durumuna ilişkin özgeçmişi",null,null,"OKURYAZAR"]
["Varsa, özel eğitime ihtiyacının olup olmadığına ilişkin Rehberlik Araştırma Merkezinden alınan raporda belirtilen öneri (**)"]
["(**) Psikolojik ölçme- değerlendirme sonuçları, yapılan testler ve gözlemler."]
[]
["F- ENGELLİNİN PSİKOLOJİK DURUMU"]
[]
["Psikolojik rahatsızlığının (depresyon, anksiyete, şizofren vb.) olup olmadığı"]
["Yoğun yaşadığı ağlama, gülme, ısırma, kendisine veya çevresine zarar verme gibi davranışlarının olup olmadığı"]
["Yoğun yaşadığı stres, ümitsizlik, intihar teşebbüsü, terk edilmişlik duygusu gibi durumlarının olup olmadığı"]
[]
[]
["BAKIM RAPORU FORMU"]
["II- GÜNLÜK HAYATIN ALIŞILMIŞ TEKRAR EDEN GEREKLERİNE İLİŞKİN DEĞERLENDİRME"]
[]
["A- ENGELLİNİN ÖZ BAKIM İHTİYAÇLARINI GİDERME DURUMU"]
[]
["(Bağımsız, Kısmen Bağımlı, Tam Bağımlı)"]
[null,null,null,null,null,null,{"$f":"COUNTIF(E93:F97,\"TAM BAĞIMLI\")","v":0},null,"TAM BAĞIMLI"]
["El, yüz, kulak, burun, ağız ve diş, ayak, saç, vücut temizliğini yapabilme durumu",null,null,null,"BAĞIMSIZ",null,{"$f":"COUNTIF(E93:F97,\"KISMEN BAĞIMLI\")","v":0},null,"KISMEN BAĞIMLI"]
["Tuvalet ihtiyacını giderime durumu",null,null,null,"BAĞIMSIZ",null,{"$f":"COUNTIF(E92:F97,\"BAĞIMSIZ\")","v":5},null,"BAĞIMSIZ"]
["Banyo ihtiyacını giderme durumu",null,null,null,"BAĞIMSIZ",null,null,"K.S"]
["Yeme- içme becerilerini yerine getirme durumu",null,null,null,"BAĞIMSIZ",null,{"$f":"MAX(G92:G94)","v":5},{"$f":"(((G92)*2)+((G93)*1)+((G94)*0))/5","v":0}]
["Giyinme - soyunma becerilerini yerine getirime durumu",null,null,null,"BAĞIMSIZ",null,null,"SONUC"]
["SONUÇ:",null,null,null,{"$f":"IF(G96=G92,\"TAM BAĞIMLI\",IF(G96=G93,\"KISMEN BAĞIMLI\",IF(G96=G94,\"BAĞIMSIZ\")))","v":"BAĞIMSIZ"},null,null,{"$f":"IF(E98=\"BAĞIMSIZ\",0,IF(E98=\"KISMEN BAĞIMLI\",1,2))","v":0}]
[]
["B- ENGELLİNİN HAREKET ( FİZİKSEL) DURUMU"]
[]
["(Bağımsız, Kısmen Bağımlı, Tam Bağımlı)"]
[null,null,null,null,null,null,{"$f":"COUNTIF(E104:F106,\"TAM BAĞIMLI\")","v":0}]
["Yürüme becerilerinde bir başkasının yardımına ihtiyaç duyma durumu",null,null,null,"BAĞIMSIZ",null,{"$f":"COUNTIF(E104:F106,\"KISMEN BAĞIMLI\")","v":0}]
["El ve kollarını kullanmada bir başkasının yardımına ihtiyaç duyma durumu",null,null,null,"BAĞIMSIZ",null,{"$f":"COUNTIF(E104:F106,\"BAĞIMSIZ\")","v":3}]
["Merdiven inip çıkmada bir başkasının yardımına ihtiyaç duyma durumu",null,null,null,"BAĞIMSIZ",null,null,"K.S"]
["SONUÇ:",null,null,null,{"$f":"IF(G107=G103,\"TAM BAĞIMLI\",IF(G107=G104,\"KISMEN BAĞIMLI\",IF(G107=G105,\"BAĞIMSIZ\")))","v":"BAĞIMSIZ"},null,{"$f":"MAX(G103:G105)","v":3},{"$f":"(((G103)*2)+((G104)*1)+((G105)*0))/3","v":0}]
[null,null,null,null,null,null,null,"SONUC"]
["C- ENGELLİNİN SOSYAL BECERİLERİ VE GÜVENLİKTE OLMA DURUMU",null,null,null,null,null,null,{"$f":"IF(E107=\"BAĞIMSIZ\",0,IF(E107=\"KISMEN BAĞIMLI\",1,2))","v":0}]
[]
["(Bağımsız, Kısmen Bağımlı, Tam Bağımlı)"]
[null,null,null,null,null,null,{"$f":"COUNTIF(E113:F115,\"TAM BAĞIMLI\")","v":0}]
["Kendini ifade edebilme durumu",null,null,null,"BAĞIMSIZ",null,{"$f":"COUNTIF(E113:F115,\"KISMEN BAĞIMLI\")","v":0}]
["Kendisine ve çevresine zarar verme riski hâlinde kendini kontrol edebilme durumu",null,null,null,"BAĞIMSIZ",null,{"$f":"COUNTIF(E113:F115,\"BAĞIMSIZ\")","v":3}]
["Kendisine karşı oluşan (tecavüz ve taciz veya evinden biraz uzaklaştıktan sonra geri eve dönememe gibi) tehlike anında, tehlikede olduğunu algılama durumu",null,null,null,"BAĞIMSIZ",null,null,"K.S"]
["SONUÇ:",null,null,null,{"$f":"IF(G116=G112,\"TAM BAĞIMLI\",IF(G116=G113,\"KISMEN BAĞIMLI\",IF(G116=G114,\"BAĞIMSIZ\")))","v":"BAĞIMSIZ"},null,{"$f":"MAX(G112:G114)","v":3},{"$f":"(((G112)*2)+((G113)*1)+((G114)*0))/3","v":0}]
[null,null,null,null,null,null,null,"SONUC"]
["D- ENGELLİNİN EV İŞLERİNİ VE İDARESİNİ YAPABİLME DURUMU",null,null,null,null,null,null,{"$f":"IF(E116=\"BAĞIMSIZ\",0,IF(E116=\"KISMEN BAĞIMLI\",1,2))","v":0}]
[]
["(Bağımsız, Kısmen Bağımlı, Tam Bağımlı)"]
[null,null,null,null,null,null,{"$f":"COUNTIF(E122:F126,\"TAM BAĞIMLI\")","v":0}]
["Evde kendi başına ve başkasının yardımı olmadan yaşama durumu",null,null,null,"BAĞIMSIZ",null,{"$f":"COUNTIF(E122:F126,\"KISMEN BAĞIMLI\")","v":0}]
["Beslenme ve temizlik gibi ihtiyaçları için alış veriş yapabilme durumu",null,null,null,"BAĞIMSIZ",null,{"$f":"COUNTIF(E122:F126,\"BAĞIMSIZ\")","v":5}]
["Asgari düzeyde dâhi olsa yemek pişirebilme durumu",null,null,null,"BAĞIMSIZ",null,null,"K.S","SONUC"]
["Asgari düzeyde dâhi olsa evini temizleme, bulaşık ve çamaşırlarını yıkama işlerini yapabilme durumu",null,null,null,"BAĞIMSIZ",null,null,{"$f":"(((G121)*2)+((G122)*1)+((G123)*0))/5","v":0},{"$f":"IF(E127=\"BAĞIMSIZ\",0,IF(E127=\"KISMEN BAĞIMLI\",1,2))","v":0}]
["Kışın ısınmak için sobasını yakmak veya kombiyi çalıştırmak gibi işleri yapabilme durumu ",null,null,null,"BAĞIMSIZ",null,null,"SONUÇ"]
["SONUÇ:",null,null,null,{"$f":"IF(G127=G121,\"TAM BAĞIMLI\",IF(G127=G122,\"KISMEN BAĞIMLI\",IF(G127=G123,\"BAĞIMSIZ\")))","v":"BAĞIMSIZ"},null,{"$f":"MAX(G121:G123)","v":5},{"$f":"(H98+H109+H118+I125)/4","v":0}]
[]
[]
[]
[]
["BAKIM RAPORU FORMU"]
["III - DEĞERLENDİRME VE ÖNERİ: "]
["A- ÖNERİ:  "]
[null,null,null,null,{"$f":"C24","v":"?"},null,null,{"$f":"IF(H127>=0.5,1,0)","v":0},{"$f":"IF(E57<400,1,0)","v":0},{"$f":"(H135+I135)/2","v":0}]
[]
["     "]
[]
["     "]
[]
["            "]
[]
["                          "]
[]
["                           "]
[]
["                  "]
[]
["     "]
[]
["                         "]
[]
["         "]
[]
["B- DEĞERLENDİRME (VARSA GEREKÇE):",null,null,null,null,null,"DİĞER DEĞERLENDİRMELER İÇİN TIKLAYINIZ !",null,"DİĞER DEĞERLENDİRMELER İÇİN TIKLAYINIZ !","En Az 8 Saat Akraba/Vasi Tarafından Bakılması","Özel Bakım Merkezinde Bakılması","Genel Müdürlüğe Bağlı BRM Bakılması","Bakıcıdan Red"]
[{"$f":"IF(AND(D57>H10,H127<=0.4),AN168,IF(G155=\"Özel Bakım Merkezinde Bakılması\",BM168,IF(G155=\"En Az 8 Saat Akraba/Vasi Tarafından Bakılması\",AB190,IF(G155=\"Genel Müdürlüğe Bağlı BRM Bakılması\",BY168,IF(G155=\"Bakıcıdan Red\",BA168,IF(D57>H10,H168,IF(H127<=0.4,Q168,AB168)))))))","v":"23.10.2007 tarihli ve 26679 sayılı R.G.  Yayımlanan 'Bakıça Muhtaç Özürlülerin Tespiti ve Bakım Hizmeti Esaslarının Belirlenmesine İlişkin Yönetmelikte Değişiklik Yapılması Hakkında Yönetmelik' doğrultusunda yapılan değerlendirme sonucunda; Özürlü birey ? 'ın 30.07.2006 tarih ve 26244 sayılı yönetmeliğin 4. maddesinin  (c) fıkrası uyarınca engellinin günlük yaşamInı tek başına idare edebileceği bir başkasının yardımı olmadan günlük yaşamını sürdürebildiği tespit edildiğinden  evde bakım yardımından faydalanamayacağı kanaatine varıldığı için yardım uygun görülmemiştir."}]
[null,null,null,null,null,null,null,"GELİRDEN RED",null,null,null,null,null,null,null,null,"KRİTERLERDEN RED",null,null,null,null,null,null,null,null,null,null,"UYGUN",null,null,null,null,null,null,null,null,null,null,null,"GELİR KRİTER RED",null,null,null,null,null,null,null,null,null,null,null,null,"BAKICIDAN RED",null,null,null,null,null,null,null,null,null,null,null,"ÖZEL KURUM BAKIM",null,null,null,null,null,null,null,null,null,null,null,"GENEL MÜDÜRLÜĞE BAĞLI KURUM BAKIM",null,null,null,null,null,null,null,null,null,null,null,null,null,"+"]
[null,null,null,null,null,null,null,"23.10.2007 tarihli ve 26679 sayılı R.G.  Yayımlanan 'Bakıça Muhtaç Özürlülerin Tespiti ve Bakım Hizmeti Esaslarının Belirlenmesine İlişkin Yönetmelikte Değişiklik Yapılması Hakkında Yönetmelik' doğrultusunda yapılan değerlendirme sonucunda ailenin ",null,null,null,null,null,null,null,null,"23.10.2007 tarihli ve 26679 sayılı R.G.  Yayımlanan 'Bakıça Muhtaç Özürlülerin Tespiti ve Bakım Hizmeti Esaslarının Belirlenmesine İlişkin Yönetmelikte Değişiklik Yapılması Hakkında Yönetmelik' doğrultusunda yapılan değerlendirme sonucunda; Özürlü birey ",null,null,null,null,null,null,null,null,null,null,"23.10.2007 tarihli ve 26679 sayılı R.G.  Yayımlanan 'Bakıma Muhtaç Özürlülerin Tespiti ve Bakım Hizmeti Esaslarının Belirlenmesine İlişkin Yönetmelikte Değişiklik Yapılması Hakkında Yönetmelik' doğrultusunda yapılan değerlendirme sonucunda; ",null,null,null,null,null,null,null,null,null,null,null,null,null,null,null,null,null,null,null,null,null,null,null,null,"23.10.2007 tarihli ve 26679 sayılı R.G.  Yayımlanan 'Bakıça Muhtaç Özürlülerin Tespiti ve Bakım Hizmeti Esaslarının Belirlenmesine İlişkin Yönetmelikte Değişiklik Yapılması Hakkında Yönetmelik' doğrultusunda yapılan değerlendirme sonucunda",null,null,null,null,null,null,null,null,null,null,null,"23.10.2007 tarihli ve 26679 sayılı R.G.  Yayımlanan 'Bakıma Muhtaç Özürlülerin Tespiti ve Bakım Hizmeti Esaslarının Belirlenmesine İlişkin Yönetmelikte Değişiklik Yapılması Hakkında Yönetmelik' doğrultusunda yapılan değerlendirme sonucunda; ",null,null,null,null,null,null,null,null,null,null,null,"23.10.2007 tarihli ve 26679 sayılı R.G.  Yayımlanan 'Bakıma Muhtaç Özürlülerin Tespiti ve Bakım Hizmeti Esaslarının Belirlenmesine İlişkin Yönetmelikte Değişiklik Yapılması Hakkında Yönetmelik' doğrultusunda yapılan değerlendirme sonucunda; ",null,null,null,null,null,null,null,null,null,null,null,null,null,"+"]
[null,null,null,null,null,null,null,null,null,null,null,null,null,null,null,null,null,null,null,null,null,null,null,null,null,null,null,null,null,null,null,null,null,null,null,null,null,null,null,null,null,null,null,null,null,null,null,null,null,null,null,null,null,null,null,null,null,null,null,null,null,null,null,null,null,null,null,null,null,null,null,null,null,null,null,null,null,null,null,null,null,null,null,null,null,null,null,null,null,null,"+"]
[null,null,null,null,null,null,null," kişiden oluşmakta olduğu, ",null,null,null,null,null,null,null,null," 'ın 30.07.2006 tarih ve 26244 sayılı yönetmeliğin 4. maddesinin  (c) fıkrası uyarınca engellinin günlük yaşamInı tek başına idare edebileceği bir başkasının yardımı olmadan günlük yaşamını sürdürebildiği tespit edildiğinden  evde bakım yardımından faydalanamayacağı kanaatine varıldığı için yardım uygun görülmemiştir.",null,null,null,null,null,null,null,null,null,null," 'a baktığı bundan sonraki süreçte de bakabileceği, göz önünde bulundurularak engelli",null,null,null,null,null,null,null,null,null,null,null," 'ın 30.07.2006 tarihli ve 26244 sayılı yönetmeliğin 4. maddesinin  (c) fıkrası uyarınca engellinün günlük yaşamını tek başına idare edebileceği bir başkasının yardımı olmadan günlük yaşamını sürdürebildiği ve ayrıca 30.07.2006 tarih ve 26244 sayılı yönetmeliğin  4.maddesinin (d) fıkrası uyarınca ailenin kişi başına düşen gelirinin asgari ücretin 2/3'ünü geçtiği için ailenin Engelli Evde Bakım hizmetinden faydalandırılması uygun bulunmamıştır.  ",null,null,null,null,null,null,null,null,null,null,null,null,null,null,null,null,null,null,null,null,null,null,null,null," 'a bakamadığı  bundan sonraki süreçte de bakamayacağı, göz önünde bulundurularak engelli ",null,null,null,null,null,null,null,null,null,null,null,null,null,null,null,null,null,null,null,null,null,null,null,null,null,"+"]
[null,null,null,null,null,null,null," 'nın engelli",null,null,null,null,null,null,null,null,null,null,null,null,null,null,null,null,null,null,null,null,null,null,null,null,null,null,null,null,null,null,null,null,null,null,null,null,null,null,null,null,null,null,null,null,"nin sağlık durumunun iyi olduğu ancak engelli",null,null,null,null,null,null,null,null,null,null,null,null,null,null,null,null,null,null,null,null,null,null,null,null,null,null,null,null,null,null,null,null,null,null,null,null,null,"+"]
[]
[]
["DİĞER:",null,null,null,null,null,null," 'a bakım hizmeti verebilecek kapasiteye sahip olduğu , ancak 30.07.2006 tarih ve 26244 sayılı yönetmeliğin 4. maddesinin (d) fıkrası uyarınca ailenin kişi başına düşen gelirinin asgari ücretin 2/3'ünü geçtiği için ailenin engelli evde bakım hizmetinden faydalandırılması uygun bulunmamıştır.  ",null,null,null,null,null,null,null,null,null,null,null,null,null,null,null,null,null,null,null," için",null,null,null,null,null,null,null,null,null,null,null,null,null,null,null,null,null,null,null,null,null,null,null,null,null,null,null,null,null,null,null,null,null,null,null,null,null,null,null,null,null,null,null,null,null,null,null,null,null,null,null,null,null,null,null,null,null,null,null,null,null,null,"+"]
["RAPORUN DÜZENLENDİĞİ TARİH:",null,null,"2015-09-10",null,null,null,null,null,null,null,null,null,null,null,null,null,null,null,null,null,null,null,null,null,null,null," 'a Engelli Evde Bakım yardımının yapılması uygun bulunmuştur.",null,null,null,null,null,null,null,null,null,null,null,null,null,null,null,null,null,null,null,null,null,null,null,null,"bakımını üstlenmediği tespit edildiğinden ",null,null,null,null,null,null,null,null,null,null,null,null,null,null,null,null,null,null,null,null,null,null,null,null,null,null,null,null,null,null,null,null,null,null,null,null,null,"+"]
["RAPORU DÜZENLEYENLERİN:",null,null,null,null,null,null,null," ",null,null,null,null,null,null,null,null,null,null,null,null,null,null,null,null,null,null,null,null,null,null,null,null,null,null,null,null,null,null,null,null,null,null,null,null,null,null,null,null,null,null,null,"için kızı",null,null,null,null,null,null,null,null,null,null,null,null,null,null,null,null,null,null,null,null,null,null,null,"bakım hizmetinin Genel Müdürlüğe bağlı bakım ve rehabilitasyon merkezlerinde yatılı olarak verilmesi uygun bulunmuştur.",null,null,null,null,null,null,null,null,null,null,null,null,null,"+"]
["Adı:",null,null,null,null,null,null,"SONUÇ",null,null,null,null,null,null,null,null,"SONUÇ",null,null,null,null,null,null,null,null,null,null,"SONUÇ",null,null,null,null,null,null,null,null,null,null,null,null,null,null,null,null,null,null,null,null,null,null,null,null,"Engelli Evde Bakım Hizmetinden yararlanması uygun bulunmamıştır.",null,null,null,null,null,null,null,null,null,null,null,"bakım hizmetinin özel bakım merkezinde (her gün 24 saat) yatılı olarak verilmesi uygun bulunmuştur.",null,null,null,null,null,null,null,null,null,null,null,null,null,null,null,null,null,null,null,null,null,null,null,null,null,"+"]
["Soyadı:",null,null,null,null,null,null,{"$f":"CONCATENATE(H158,A57,H160,C29,K172,C24,H161,I166,C10,H164)","v":"23.10.2007 tarihli ve 26679 sayılı R.G.  Yayımlanan 'Bakıça Muhtaç Özürlülerin Tespiti ve Bakım Hizmeti Esaslarının Belirlenmesine İlişkin Yönetmelikte Değişiklik Yapılması Hakkında Yönetmelik' doğrultusunda yapılan değerlendirme sonucunda ailenin 1 kişiden oluşmakta olduğu, ? ? 'nın engelli ? 'a bakım hizmeti verebilecek kapasiteye sahip olduğu , ancak 30.07.2006 tarih ve 26244 sayılı yönetmeliğin 4. maddesinin (d) fıkrası uyarınca ailenin kişi başına düşen gelirinin asgari ücretin 2/3'ünü geçtiği için ailenin engelli evde bakım hizmetinden faydalandırılması uygun bulunmamıştır.  "},null,null,null,null,null,null,null,null,{"$f":"CONCATENATE(Q158,C10,Q160)","v":"23.10.2007 tarihli ve 26679 sayılı R.G.  Yayımlanan 'Bakıça Muhtaç Özürlülerin Tespiti ve Bakım Hizmeti Esaslarının Belirlenmesine İlişkin Yönetmelikte Değişiklik Yapılması Hakkında Yönetmelik' doğrultusunda yapılan değerlendirme sonucunda; Özürlü birey ? 'ın 30.07.2006 tarih ve 26244 sayılı yönetmeliğin 4. maddesinin  (c) fıkrası uyarınca engellinin günlük yaşamInı tek başına idare edebileceği bir başkasının yardımı olmadan günlük yaşamını sürdürebildiği tespit edildiğinden  evde bakım yardımından faydalanamayacağı kanaatine varıldığı için yardım uygun görülmemiştir."},null,null,null,null,null,null,null,null,null,null,{"$f":"CONCATENATE(AB158,C29,AB172,C24,\",\",AB172,C10,AB160,C10,AB164,\" \",C24,AB165)","v":"23.10.2007 tarihli ve 26679 sayılı R.G.  Yayımlanan 'Bakıma Muhtaç Özürlülerin Tespiti ve Bakım Hizmeti Esaslarının Belirlenmesine İlişkin Yönetmelikte Değişiklik Yapılması Hakkında Yönetmelik' doğrultusunda yapılan değerlendirme sonucunda; ? ?, ? 'a baktığı bundan sonraki süreçte de bakabileceği, göz önünde bulundurularak engelli? için ? 'a Engelli Evde Bakım yardımının yapılması uygun bulunmuştur."},null,null,null,null,null,null,null,null,null,null,null,{"$f":"CONCATENATE(Q158,C10,AN160)","v":"23.10.2007 tarihli ve 26679 sayılı R.G.  Yayımlanan 'Bakıça Muhtaç Özürlülerin Tespiti ve Bakım Hizmeti Esaslarının Belirlenmesine İlişkin Yönetmelikte Değişiklik Yapılması Hakkında Yönetmelik' doğrultusunda yapılan değerlendirme sonucunda; Özürlü birey ? 'ın 30.07.2006 tarihli ve 26244 sayılı yönetmeliğin 4. maddesinin  (c) fıkrası uyarınca engellinün günlük yaşamını tek başına idare edebileceği bir başkasının yardımı olmadan günlük yaşamını sürdürebildiği ve ayrıca 30.07.2006 tarih ve 26244 sayılı yönetmeliğin  4.maddesinin (d) fıkrası uyarınca ailenin kişi başına düşen gelirinin asgari ücretin 2/3'ünü geçtiği için ailenin Engelli Evde Bakım hizmetinden faydalandırılması uygun bulunmamıştır.  "},null,null,null,null,null,null,null,null,null,null,null,null,{"$f":"CONCATENATE(BA158,\" \",C24,\"'\",BA161,\" \",C10,\"'in \",BA165,BA167)","v":"23.10.2007 tarihli ve 26679 sayılı R.G.  Yayımlanan 'Bakıça Muhtaç Özürlülerin Tespiti ve Bakım Hizmeti Esaslarının Belirlenmesine İlişkin Yönetmelikte Değişiklik Yapılması Hakkında Yönetmelik' doğrultusunda yapılan değerlendirme sonucunda ?'nin sağlık durumunun iyi olduğu ancak engelli ?'in bakımını üstlenmediği tespit edildiğinden Engelli Evde Bakım Hizmetinden yararlanması uygun bulunmamıştır."},null,null,null,null,null,null,null,null,null,null,null,{"$f":"CONCATENATE(AB158,C29,AB172,C24,AB172,C10,BM160,C10,AB164,\", \",BM167)","v":"23.10.2007 tarihli ve 26679 sayılı R.G.  Yayımlanan 'Bakıma Muhtaç Özürlülerin Tespiti ve Bakım Hizmeti Esaslarının Belirlenmesine İlişkin Yönetmelikte Değişiklik Yapılması Hakkında Yönetmelik' doğrultusunda yapılan değerlendirme sonucunda; ? ? ? 'a bakamadığı  bundan sonraki süreçte de bakamayacağı, göz önünde bulundurularak engelli ? için, bakım hizmetinin özel bakım merkezinde (her gün 24 saat) yatılı olarak verilmesi uygun bulunmuştur."},null,null,null,null,null,null,null,null,null,null,null,{"$f":"CONCATENATE(AB158,C29,AB172,C24,\",\",AB172,C10,BM160,C10,AB164,\", \",BY166)","v":"23.10.2007 tarihli ve 26679 sayılı R.G.  Yayımlanan 'Bakıma Muhtaç Özürlülerin Tespiti ve Bakım Hizmeti Esaslarının Belirlenmesine İlişkin Yönetmelikte Değişiklik Yapılması Hakkında Yönetmelik' doğrultusunda yapılan değerlendirme sonucunda; ? ?, ? 'a bakamadığı  bundan sonraki süreçte de bakamayacağı, göz önünde bulundurularak engelli ? için, bakım hizmetinin Genel Müdürlüğe bağlı bakım ve rehabilitasyon merkezlerinde yatılı olarak verilmesi uygun bulunmuştur."},null,null,null,null,null,null,null,null,null,null,null,null,null,"+"]
["Unvanı:",null,null,null,null,null,null,null,null,null,null,null,null,null,null,null,null,null,null,null,null,null,null,null,null,null,null,null,null,null,null,null,null,null,null,null,null,null,null,null,null,null,null,null,null,null,null,null,null,null,null,null,null,null,null,null,null,null,null,null,null,null,null,null,null,null,null,null,null,null,null,null,null,null,null,null,null,null,null,null,null,null,null,null,null,null,null,null,null,null,"+"]
["İmza:",null,null,null,null,null,null,null,null,null,null,null,null,null,null,null,null,null,null,null,null,null,null,null,null,null,null,null,null,null,null,null,null,null,null,null,null,null,null,null,null,null,null,null,null,null,null,null,null,null,null,null,null,null,null,null,null,null,null,null,null,null,null,null,null,null,null,null,null,null,null,null,null,null,null,null,null,null,null,null,null,null,null,null,null,null,null,null,null,null,"+"]
["NOTLAR:"]
["1- İnceleme ve denetlemeye gidilirken önceki bakım raporunun ve bireysel bakım planının bir nüshası görevli\npersonelin yanında olacaktır.\nBu belgelerdeki engellinün kimlik bilgileri haricindeki bilgilerde değişiklik olması halinde yeni bilgiler bu forma işlenecektir.\n2- İnceleme ve denetlemeye gidilirken önceki bakım raporunun ve bireysel bakım planının bir nüshası görevli\npersonelin yanında olacaktır.\n",null,null,null,null,null,null,null,null,null," ",null,null,null,null,null,null,null,null,null,null,null,null,null,null,null,null," "]
[]
[]
[]
[]
[]
[null,null,null,null,null,null,null,null,null,null,null,null,null,null,null,null,null,null,null,null,null,null,null,null,null,null,null,"EN AZ 8 SAAT UYGUN"]
[]
[null,null,null,null,null,null,null,null,null,null,null,null,null,null,null,null,null,null,null,null,null,null,null,null,null,null,null,"30.07.2006 tarihli ve 26244 sayılı R.G.  Yayımlanan 'Bakıma Muhtaç Engellilerin Tespiti ve Bakım Hizmeti Esaslarının Belirlenmesine İlişkin Yönetmelikte Değişiklik Yapılması Hakkında Yönetmelik' doğrultusunda yapılan değerlendirme sonucunda; "]
[]
["DENETİM VE REHBERLİK RAPORU FORMU",null,null,null,null,null,null,null,null,null,null,null,null,null,null,null,null,null,null,null,null,null,null,null,null,null,null," 'a en az 8 saat baktığı bundan sonraki süreçte de en az 8 saat bakabileceği, göz önünde bulundurularak engelli "]
["III – BAKIMA MUHTAÇ ENGELLİYE VERİLEN BAKIM HİZMETİNİN, ENGELLİ İÇİN HAZIRLANAN BİREYSEL BAKIM PLANINA UYGUN OLARAK VERİLİP VERİLMEDİĞİNE İLİŞKİN OLUŞAN KANAAT VE BİREYSEL BAKIM PLANININ DEĞİŞTİRİLMESİNE İHTİYAÇ DUYULUYOR İSE YAPILAN İŞLEM"]
["Değerlendirme neticesinde aşağıdaki birden fazla seçenek işaretlenebilir."]
[null,null,null,null,null,null,null,{"$f":"IF(H176>=0.5,1,0)","v":0},{"$f":"IF(E103<400,1,0)","v":1},{"$f":"(H185+I185)/2","v":0.5}]
[null,null,null,null,null,null,null,null,null,null,null,null,null,null,null,null,null,null,null,null,null,null,null,null,null,null,null," için"]
["     ",null,null,null,null,null,null,null,null,null,null,null,null,null,null,null,null,null,null,null,null,null,null,null,null,null,null," 'a Engelli Evde Bakım yardımının yapılması uygun bulunmuştur."]
[]
["     ",null,null,null,null,null,null,null,null,null,null,null,null,null,null,null,null,null,null,null,null,null,null,null,null,null,null,"SONUÇ"]
[null,null,null,null,null,null,null,null,null,null,null,null,null,null,null,null,null,null,null,null,null,null,null,null,null,null,null,{"$f":"CONCATENATE(AB180,C52,AB194,C49,\",\",AB194,C10,AB182,C10,AB186,\" \",C24,AB187)","v":"30.07.2006 tarihli ve 26244 sayılı R.G.  Yayımlanan 'Bakıma Muhtaç Engellilerin Tespiti ve Bakım Hizmeti Esaslarının Belirlenmesine İlişkin Yönetmelikte Değişiklik Yapılması Hakkında Yönetmelik' doğrultusunda yapılan değerlendirme sonucunda; ,? 'a en az 8 saat baktığı bundan sonraki süreçte de en az 8 saat bakabileceği, göz önünde bulundurularak engelli ? için ? 'a Engelli Evde Bakım yardımının yapılması uygun bulunmuştur."}]
["            "]
[]
["Not: Bireysel bakım planını değiştirmeye ve yeni bireysel bakım planı oluşturmaya bakım hizmetleri değerlendirme heyetinde görevlendirilmiş en az üç personelden oluşan heyet yetkilidir. Bu nedenle bu konuda yetkili olmayan personel ancak teklifte bulunabilir, bu öneri yetkili heyet tarafından değerlendirilir.\n\n"]
[]
["IV- DEĞERLENDİRME VE ÖNERİ "]
["Bu formun değerlendirilmesi neticesinde aşağıdaki uygun görülen bentleri işaretleyiniz ve var ise açıklama yazınız."]
["                  "]
[]
["     "]
[]
["                         "]
[]
["         "]
["      g)Bakım hizmetleri konusunda rehberlik yapılmış ise kimlere ve hangi konularda rehberlik yapıldığını açıklayınız."]
["………………………………………………………………………………………………………………………………………………………………………………………………………………………………………………………………………………………………………………………………………………………………………………………………………………………………………………………………………………………….."]
[]
[]
["       h)Bakıma muhtaç engellinin, ailesinin ve bakım hizmetini veren kişinin istek ve beklentileri doğrultusunda Kurumumuz tarafından yapılması önerilen çalışma var ise açıklayınız."]
["………………………………………………………………………………………………………………………………………………………………………………………………………………………………………………………………………………………………………………………………………………………………………………………………………………………………………………………………………………………….."]
[]
[]
["        ı)Var ise İl Müdürlüğüne iletilmesi gerekli hususları açıklayınız."]
["………………………………………………………………………………………………………………………………………………………………………………………………………………………………………………………………………………………………………………………………………………………………………………………………………………………………………………………………………………………….."]
[]
[]
[]
[]
[]
[]
[]
[]
[]
["DENETİM VE REHBERLİK RAPORU FORMU"]
["         j)Var ise İl Müdürlüğü aracılığı ile diğer resmi ve özel kuruluşlara iletilmesi gerekli hususları açıklayınız."]
["………………………………………………………………………………………………………………………………………………………………………………………………………………………………………………………………………………………………………………………………………………………………………………………………………………………………………………………………………………………….."]
[]
[]
["          k)Var ise diğer hususları açıklayınız."]
["………………………………………………………………………………………………………………………………………………………………………………………………………………………………………………………………………………………………………………………………………………………………………………………………………………………………………………………………………………………….."]
[]
[]
[]
[]
["Not: Bu bölümde (b), (c), (d), (e) ve (f) bentlerin işaretlenmesi hâlinde bakım ücreti ödemesinin durdurulması ve evde bakım hizmetinin verilmesine ilişkin ilgili onayın iptal edilmesi gerekmektedir. "]
[]
["RAPORUN DÜZENLENDİĞİ TARİH:",null,null,"2015-09-10"]
["RAPORU DÜZENLEYENLERİN:"]
["Adı:"]
["Soyadı:"]
["Unvanı:"]
["İmza:"]
["NOTLAR:"]
["1-İnceleme ve denetlemeye gidilirken önceki bakım raporunun ve bireysel bakım planının bir nüshası görevli personelin yanında olacaktır. Bu belgelerdeki engellinin kimlik bilgileri haricindeki bilgilerde değişiklik olması hâlinde yeni bilgiler bu forma işlenecektir. Önceki bilgilerde değişiklik olmaması hâlinde bu forma tekrar bilgi girilmeyecektir.\n2- Engellinin ve/veya bakıcının vefat ettiğinin tespit edilmesi hâlinde vefatlarına ilişkin bilgi ve belgeler bu forma eklenecektir.\n\n\n"]

{"sheet":"Bireysel Bakım Planı Formu","index":2,"n_rows":92,"n_cols":8,"rows_kept":92,"cut":false,"hidden":false,"merged":[[4,0,4,1],[0,0,0,7],[84,2,84,4],[85,2,85,4],[86,2,86,4],[33,0,33,1],[52,0,52,7],[40,0,40,1],[42,0,42,1],[34,0,34,1],[55,7,56,7],[64,6,64,7],[49,0,49,7],[50,0,50,7],[55,5,56,5],[55,6,56,6],[72,2,72,4],[73,2,73,4],[74,2,74,4],[77,2,77,4],[75,2,75,4],[76,2,76,4],[90,2,90,4],[91,2,91,4],[78,2,78,4],[79,2,79,4],[81,2,81,4],[80,2,80,4],[82,2,82,4],[83,2,83,4],[89,2,89,4],[60,0,60,1],[58,0,58,1],[59,0,59,1],[57,0,57,1],[32,0,32,1],[35,0,35,1],[48,3,48,4],[37,0,37,1],[38,0,38,1],[39,0,39,1],[55,2,55,4],[55,0,56,1],[41,0,41,1],[43,0,43,1],[44,0,44,1],[45,0,45,1],[22,5,24,5],[22,6,24,6],[22,0,22,1],[30,0,30,1],[31,0,31,1],[27,2,27,4],[27,5,29,5],[27,6,29,6],[68,2,68,4],[66,2,66,4],[67,2,67,4],[64,0,64,4],[61,0,61,1],[65,2,65,4],[62,0,62,1],[14,5,14,7],[18,5,21,5],[18,6,21,6],[1,0,1,7],[36,0,36,1],[2,0,2,7],[3,0,3,7],[14,0,14,1],[21,0,21,1],[28,2,29,2],[28,3,29,3],[27,0,29,1],[8,7,9,7],[6,7,7,7],[26,0,26,7],[27,7,29,7]]}
[{"$f":"'Bakım ve Denetim Formu'!C1","v":"T.C."}]
[{"$f":"'Bakım ve Denetim Formu'!A2","v":"AİLE VE SOSYAL HİZMETLER BAKANLIĞI"}]
[{"$f":"'Bakım ve Denetim Formu'!A3","v":"MANİSA İL MÜDÜRLÜĞÜ"}]
["BİREYSEL BAKIM PLANI RAPORU"]
["BAKIM PLANI YAPILAN BİREYİN DURUMU :",null,{"$f":"IF('Bakım Talep Formu'!G7=\"\",\" \",'Bakım Talep Formu'!G7)","v":"X"},"ENGELLİ",{"$f":"IF('Bakım Talep Formu'!L7=\"\",\" \",'Bakım Talep Formu'!L7)","v":" "},"YAŞLI"]
["BAKIMA MUHTAÇ ENGELLİNİN KİMLİK BİLGİLERİ"]
["Adı Soyadı           :",{"$f":"'Bakım ve Denetim Formu'!C10","v":"?"},null,null,null,null,null,{"$f":"'Bakım ve Denetim Formu'!D165","v":"2015-09-10"}]
["Cinsiyeti            :",{"$f":"'Bakım ve Denetim Formu'!C12","v":"?"},null,null,null,null,"Formun Düzenlenme Tarihi    :"]
["Engel Grubu(zihinsel, bedensel, ruhsal):",{"$f":"'Bakım ve Denetim Formu'!C13","v":"?"}]
["Anne Adı             :",{"$f":"'Bakım ve Denetim Formu'!C14","v":"?"},null,null,null,null,"Formun Değerlendirme Tarihi:"]
["Baba Adı             :",{"$f":"'Bakım ve Denetim Formu'!C15","v":"?"}]
["İkametgah adresi     :",{"$f":"'Bakım ve Denetim Formu'!C16","v":"?"}]
["TC Kimlik No         :",{"$f":"'Bakım ve Denetim Formu'!C17","v":"?"}]
[]
["BAKIM HİZMETİNİ AKRABA VERECEK İSE  KİMLİK BİLGİLERİ VE VERİLECEK BAKIM HİZMETLERİNE DAİR TAAHHÜT",null,null,null,null,"BAKIM HİZMETİNİ ÖZEL BAKIM MERKEZİ VERECEK İSE KURULUŞ BİLGİLERİ, VERİLECEK HİZMET TÜRÜ, VERİLECEK BAKIM HİZMETLERİNE DAİR TAAHHÜT  ve VERİLEN BAKIM HİZMETLERİNE DAİR BEYAN"]
["Adı Soyadı           :",{"$f":"'Bakım ve Denetim Formu'!C24","v":"?"},null,null,null,"Merkezin adı",null,"Tarih ve merkez sorumlu müdürünün bakım hizmetlerinin …/…/….. - …/…/….. tarihleri arasında bu formda belirlendiği şekilde verildiğine dair imzası:"]
["Doğum Yeri ve Tarihi :",{"$f":"'Bakım ve Denetim Formu'!C25","v":"?"},null,null,null,"Merkezin adresi",null,"müdürünün bakım "]
["Cinsiyeti            :",{"$f":"'Bakım ve Denetim Formu'!C26","v":"?"},null,null,null,"Merkez kurucunusun adı",null,"hizmetlerinin "]
["Anne Adı             :",{"$f":"'Bakım ve Denetim Formu'!C27","v":"?"},null,null,null,"Bakıma muhtaç engelliye verilecek hizmet türü (Yatılı, gündüzlü tam gün veya yarım gün, evde bakım gibi)",null,"…../…../….…-…./…../……..."]
["Baba Adı             :",{"$f":"'Bakım ve Denetim Formu'!C28","v":"?"},null,null,null,null,null,"tarihleri arasında bu formda "]
["Engelliye yakınlık durumu:     ",{"$f":"'Bakım ve Denetim Formu'!C29","v":"?"},null,null,null,null,null," belirlendiği şekilde verildiğine"]
["(Anne, baba, amca, komşu, vasi, tanıdık veya görevli gibi)     ",null,null,null,null,null,null,"dair imzası"]
["Tarih ve akrabanın bakım hizmetlerini bu formda belirlendiği şekilde vereceğine ",null,null,null,null,"Tarih ve merkez sorumlu müdürünün bakım hizmetlerinin bu formda belirlen-diği şekilde verileceğine dair imzası"]
["dair imzası:"]
[]
[]
["BAKIM HİZMETLERİNİN ANALİZİ"]
["KİŞİSEL BAKIM HİZMETLERİ",null,"BAŞKASININ YARDIMI VE \nBAKIMINA İHTİYAÇ DURUMU",null,null,"HİZMETLERİN ASGARİ \nSUNULMA SIKLIĞI","HİZMETİN VERİLME ŞEKLİ \nVEYA NASIL VERİLECEĞİ","DEĞERLENDİRME"]
[null,null,"VAR","YOK","KISMEN"]
[null,null,null,null,"VAR"]
["1. Banyo yaptırılması",null,{"$f":"IF(C73=\"TAM BAĞIMLI\",\"X\",0)","v":0},{"$f":"IF(C73=\"BAĞIMSIZ\",\"X\",0)","v":"X"},{"$f":"IF(C73=\"KISMEN BAĞIMLI\",\"X\",0)","v":0},"Haftada bir gün","En az haftada bir gün banyo yaptırılacak"]
["2. Tuvalet ihtiyacını gidermede yardım edilmesi ve gerektiğinde temizliğinin yapılması",null,{"$f":"IF(C74=\"TAM BAĞIMLI\",\"X\",0)","v":0},{"$f":"IF(C74=\"BAĞIMSIZ\",\"X\",0)","v":"X"},{"$f":"IF(C74=\"KISMEN BAĞIMLI\",\"X\",0)","v":0},"Gerektiğinde","Gerektiğinde tuvalet ihtiyacı karşılanacak"]
["3. Tırnaklarının kesilmesi",null,{"$f":"IF(C75=\"TAM BAĞIMLI\",\"X\",0)","v":0},{"$f":"IF(C75=\"BAĞIMSIZ\",\"X\",0)","v":"X"},{"$f":"IF(C75=\"KISMEN BAĞIMLI\",\"X\",0)","v":0},"Her hafta","Her hafta düzenli olarak tırnakları kesilecek"]
["4. Saçlarının taranması",null,{"$f":"IF(C76=\"TAM BAĞIMLI\",\"X\",0)","v":0},{"$f":"IF(C76=\"BAĞIMSIZ\",\"X\",0)","v":"X"},{"$f":"IF(C76=\"KISMEN BAĞIMLI\",\"X\",0)","v":0},"Her gün","Her gün saçları taranacak"]
["5. Dişlerinin temizlenmesi",null,{"$f":"IF(C77=\"TAM BAĞIMLI\",\"X\",0)","v":0},"X",0,"Günde iki defa ","Sabah ve akşam dişleri fırçalanacak"]
["6. Yemek ve içecek ihtiyacının giderilmesi",null,0,"X",0,"Günde en az üç öğün","Günde en az üç öğün yemek ihtiyacı karşılanacak"]
["7. El, yüz ve ayak temizliği",null,0,"X",0,"Her gün","Her gün el,yüz ayak temizliği yapılacak"]
["8. Sakal tıraşının yapılması",null,0,"X",0,"Gerektiğinde","Gerektiğinde sakal tıtaşı yapılacak"]
["9. İstenmeyen tüylerin temizlenmesi",null,0,"X",0,"Gerektiğinde","Gerektiğinde istenmeyen tüyler temizlenecek"]
["10. Elbiselerinin giydirilmesi ve çıkarılması",null,0,"X",0,"Her gün","Her gün düzenli ve temiz elbiseler giydirilecek"]
["11. Burun ve kulak temizliğinin yapılması",null,0,"X",0,"Her gün","Her gün burun ve kulak temizliği yapılacak"]
["12. Yatağının temizlenmesi ve düzeltilmesi",null,0,"X",0,"Her gün","Her gün yatağı temizlenip düzeltilecek "]
["13. Odasının temizlenmesi",null,0,"X",0,"Her gün","Her gün düzenli olarak oda temizliği yapılacak"]
["14. Çamaşırlarının yıkanması",null,0,"X",0,"Gerektiğinde","Gerektiğinde çamaşırlar yıkanacak"]
["15. Tehlikelere karşı korunması ve gözetilmesi",null,0,"X",0,"Herzaman","Herzaman tehlikelere karşı gözetilip korunacak"]
["16. Diğer (varsa belirtiniz, birden fazla maddeye ihtiyaç var ise ilave ediniz)."]
[]
[]
[null,null,null,{"$f":"A1","v":"T.C."}]
[{"$f":"A2","v":"AİLE VE SOSYAL HİZMETLER BAKANLIĞI"}]
["MANİSA İL MÜDÜRLÜĞÜ"]
[]
[{"$f":"A4","v":"BİREYSEL BAKIM PLANI RAPORU"}]
[]
[]
["PSİKO SOSYAL DESTEK HİZMETLERİ",null,"İHTİYAÇ ",null,null,"AMAÇ / HEDEF","AMACA / HEDEFE YÖNELİK ÖNGÖRÜLEN ÇALIŞMA LAR ","DEĞERLENDİRME"]
[null,null,"VAR","YOK","KISMEN\nVAR"]
["1. Bakıma muhtaç engelli ailesinin, engelliyü ve engel durumunu kabullenmesine, bilgilendirilmesine yönelik hizmetler",null,null,"X"]
["2. Bakıma muhtaç engellinin engelini, mevcut durumunu ve yerleştirildiği ortamı kabullenmesine, bilgilenmesine ve gelişim alanlarında desteklenmesine yönelik hizmetler",null,null,"X"]
["3. Engelli ve ailesinin sosyal hakları ve mevcut kaynakların kullanılmasına yönelik hizmetler",null,null,"X"]
["4. Engellinin bağımsız yaşama, sosyal hayata uyumuna ve katılımına yönelik sosyal, kültürel, sanatsal ve sportif etkinlikler ile düzenlenecek bu tür etkinliklere katılabilmesi için refakat hizmetleri",null,null,"X"]
["5. Engellinin terk edilme, ret edilme, engel durumunu kabullenememe, ümitsizlik, intihar etme, yalnızlık, sevgisizlik gibi olumsuz duygulardan kurtarılmasına ve depresyon ve stres gibi durumların yaşanmasının engellenmesine yönelik hizmetler",null,null,"X"]
["6.     Diğer (varsa belirtiniz, birden fazla maddeye ihtiyaç var ise ilave ediniz)."]
[]
["Formu Hazırlayan Komisyonun",null,null,null,null,null,"Kontrol Eden Görevlinin"]
[{"$f":"CONCATENATE(\"Adı Soyadı:   \",A90,\" \",A91)","v":"Adı Soyadı:   0 0"},{"$f":"CONCATENATE(B90,\" \",B91)","v":"0 0"},{"$f":"CONCATENATE(C90,\" \",C91)","v":"0 0"},null,null,null,"Adı Soyadı   :","Görevi:"]
[{"$f":"CONCATENATE(\"Görevi    :   \",A92)","v":"Görevi    :   0"},{"$f":"B92","v":0},{"$f":"C92","v":0},null,null,null,"Konrol Tarihi:"]
["İmzası    :",null,null,null,null,null,"İmzası       :"]
[]
[]
[]
[]
[1,{"$f":"'Bakım ve Denetim Formu'!A95","v":"Banyo ihtiyacını giderme durumu"},{"$f":"'Bakım ve Denetim Formu'!E95","v":"BAĞIMSIZ"}]
[2,{"$f":"'Bakım ve Denetim Formu'!A94","v":"Tuvalet ihtiyacını giderime durumu"},{"$f":"'Bakım ve Denetim Formu'!E94","v":"BAĞIMSIZ"}]
[3,{"$f":"'Bakım ve Denetim Formu'!A105","v":"El ve kollarını kullanmada bir başkasının yardımına ihtiyaç duyma durumu"},{"$f":"'Bakım ve Denetim Formu'!E105","v":"BAĞIMSIZ"}]
[4,{"$f":"'Bakım ve Denetim Formu'!A105","v":"El ve kollarını kullanmada bir başkasının yardımına ihtiyaç duyma durumu"},{"$f":"'Bakım ve Denetim Formu'!E105","v":"BAĞIMSIZ"}]
[5,{"$f":"'Bakım ve Denetim Formu'!A95","v":"Banyo ihtiyacını giderme durumu"},{"$f":"'Bakım ve Denetim Formu'!E95","v":"BAĞIMSIZ"}]
[6,{"$f":"'Bakım ve Denetim Formu'!A96","v":"Yeme- içme becerilerini yerine getirme durumu"},{"$f":"'Bakım ve Denetim Formu'!E96","v":"BAĞIMSIZ"}]
[7,{"$f":"'Bakım ve Denetim Formu'!A93","v":"El, yüz, kulak, burun, ağız ve diş, ayak, saç, vücut temizliğini yapabilme durumu"},{"$f":"'Bakım ve Denetim Formu'!E93","v":"BAĞIMSIZ"}]
[8,{"$f":"'Bakım ve Denetim Formu'!A95","v":"Banyo ihtiyacını giderme durumu"},{"$f":"'Bakım ve Denetim Formu'!E95","v":"BAĞIMSIZ"}]
[9,{"$f":"'Bakım ve Denetim Formu'!A95","v":"Banyo ihtiyacını giderme durumu"},{"$f":"'Bakım ve Denetim Formu'!E95","v":"BAĞIMSIZ"}]
[10,{"$f":"'Bakım ve Denetim Formu'!A97","v":"Giyinme - soyunma becerilerini yerine getirime durumu"},{"$f":"'Bakım ve Denetim Formu'!E97","v":"BAĞIMSIZ"}]
[11,{"$f":"'Bakım ve Denetim Formu'!A93","v":"El, yüz, kulak, burun, ağız ve diş, ayak, saç, vücut temizliğini yapabilme durumu"},{"$f":"'Bakım ve Denetim Formu'!E93","v":"BAĞIMSIZ"}]
[12,{"$f":"'Bakım ve Denetim Formu'!A125","v":"Asgari düzeyde dâhi olsa evini temizleme, bulaşık ve çamaşırlarını yıkama işlerini yapabilme durumu"},{"$f":"'Bakım ve Denetim Formu'!E125","v":"BAĞIMSIZ"}]
[13,{"$f":"'Bakım ve Denetim Formu'!A125","v":"Asgari düzeyde dâhi olsa evini temizleme, bulaşık ve çamaşırlarını yıkama işlerini yapabilme durumu"},{"$f":"'Bakım ve Denetim Formu'!E125","v":"BAĞIMSIZ"}]
[14,{"$f":"'Bakım ve Denetim Formu'!A125","v":"Asgari düzeyde dâhi olsa evini temizleme, bulaşık ve çamaşırlarını yıkama işlerini yapabilme durumu"},{"$f":"'Bakım ve Denetim Formu'!E125","v":"BAĞIMSIZ"}]
[15,{"$f":"'Bakım ve Denetim Formu'!A115","v":"Kendisine karşı oluşan (tecavüz ve taciz veya evinden biraz uzaklaştıktan sonra geri eve dönememe gibi) tehlike anında, tehlikede olduğunu algılama durumu"},{"$f":"'Bakım ve Denetim Formu'!E115","v":"BAĞIMSIZ"}]
[16]
[]
[{"$f":"'Bakım ve Denetim Formu'!B167","v":0},{"$f":"'Bakım ve Denetim Formu'!D167","v":0},{"$f":"'Bakım ve Denetim Formu'!E167","v":0}]
[{"$f":"'Bakım ve Denetim Formu'!B168","v":0},{"$f":"'Bakım ve Denetim Formu'!D168","v":0},{"$f":"'Bakım ve Denetim Formu'!E168","v":0}]
[{"$f":"'Bakım ve Denetim Formu'!B169","v":0},{"$f":"'Bakım ve Denetim Formu'!D169","v":0},{"$f":"'Bakım ve Denetim Formu'!E169","v":0}]

{"sheet":"Onay(Paraflı)","index":3,"n_rows":58,"n_cols":37,"rows_kept":58,"cut":false,"hidden":true,"merged":[[0,0,0,26],[1,0,1,26],[2,0,2,26],[10,14,10,19],[6,2,6,12],[5,20,5,26],[9,0,9,24],[5,2,5,12],[4,22,4,23],[23,2,23,7],[16,4,16,12],[38,9,38,16],[53,0,53,2],[53,3,53,12],[16,14,16,26],[39,6,39,19],[26,18,26,26],[27,18,27,26],[14,2,14,26],[7,2,7,12],[19,0,22,26],[17,0,18,26],[15,5,15,22],[15,0,15,4],[15,23,15,26],[57,0,57,16],[35,11,35,14],[56,0,56,16],[52,0,52,2],[52,3,52,12],[51,3,51,12],[51,0,51,2],[40,6,40,19],[55,17,55,25],[55,0,55,16],[57,17,57,25],[56,17,56,25]]}
["T.C."]
["MANİSA VALİLİĞİ"]
["Aile, Çalışma ve Sosyal Hizmetler İl Müdürlüğü"]
[null,null,null,null,null,null,null,null,null,null,null,null,null,null,null,null,null,null,null,null,null,null,null,{"$f":"'Bakım ve Denetim Formu'!D165","v":"2015-09-10"},null,{"$f":"IF(Z5>12,1,Z5)","v":10}]
[null,null,null,null,"   ",null,null,null,null,null,null,null,null,null,null,null,null,null,null,null,{"$f":"DAY(X4)","v":10},{"$f":"MONTH(X4)","v":9},{"$f":"YEAR(X4)","v":2015},null,{"$f":"IF(U5<16,\"15\",\"15\")","v":"15"},{"$f":"V5+1","v":10},null,null," 'ın"]
["Sayı:",null,"54499992-35.01",null,null,null,null,null,null,null,null,null,null,null,null,null,null,null,null,null,{"$f":"CONCATENATE(\"…/\",Z8,\"/\",W5)","v":"…/09/2015"},null,null,null,null,null,null,null," 'in"]
["Konu :",null,"Engelli Evde Bakım Hizmeti",null,null,null,null,null,null,null,null,null,null,null,null,null,null,null,null,null,null,null,null,null,null,{"$f":"IF(Z5>12,W5+1,W5)","v":2015},null,null," 'un"]
[null,null,{"$f":"CONCATENATE(\"(\",'Bakım ve Denetim Formu'!C10,\")\")","v":"(?)"},null,null,null,null,null,null,null,null,null,null,null,null,null,null,null,null,null,null,null,null,null,null,{"$f":"IF(V5<10,CONCATENATE(\"0\",V5,\"\"),V5)","v":"09"},null,null," 'ün"]
[null,null,null,null,null,null,null,null,null,null,null,null,null,null,null,null,null,null,null,null,null,null,null,null,null,{"$f":"IF(Z4<10,CONCATENATE(\"0\",Z4,\"\"),Z4)","v":10},null,null," 'nın"]
["MÜDÜRLÜK MAKAMINA",null,null,null,null,null,null,null,null,null,null,null,null,null,null,null,null,null,null,null,null,null,null,null,null,null,null,null," 'nin"]
[null,null,null,null,null,null,null,null,null,null,null,null,null,null,null,null,null,null,null,null,null,null,null,null,null,null,null,null," 'nun"]
[null,null,null,null,null,null,null,null,null,null,null,null,null,null,null,null,null,null,null,null,null,null,null,null,null,null,null,null," 'nün"]
[null,null,null,null,null,null,null,null,null,null,null,null,null,null,null,null,null,null,null,null,null,null,null,null,null,null,null,null,"Müdürlüğümüz"]
[null,null,null,null,null,null,null,null,null,null,null,null,null,null,null,null,null,null,null,null,null,null,null,null,null,null,null,null,"Ahmetli"]
[null,null,"Bakıma Muhtaç Engellilerin Tespiti ve Bakım Hizmetlerinin Belirenmesine ilişkin Yönetmelik gereği",null,null,null,null,null,null,null,null,null,null,null,null,null,null,null,null,null,null,null,null,null,null,null,null,null,"Akhisar"]
["Müdürlüğümüz",null,null,null,null,"bakım hizmetleri değerlendirme heyeti tarafından yapılan inceleme sonucunda",null,null,null,null,null,null,null,null,null,null,null,null,null,null,null,null,null,{"$f":"'Bakım ve Denetim Formu'!C17","v":"?"},null,null,null,null,"Alaşehir"]
["TC Numaralı ",null,null,null,{"$f":"CONCATENATE('Bakım ve Denetim Formu'!C10)","v":"?"},null,null,null,null,null,null,null,null," 'ün","bakıma muhtaç ağır engelli olduğu belirlenmiş ve",null,null,null,null,null,null,null,null,null,null,null,null,null,"Demirci"]
[{"$f":"CONCATENATE(AK32,\" \",AK33,\" \",AK24,\" \",AK25,\" \",AK34)","v":"? TC Numaralı  ? ? tarafından Evde Bakım Hizmeti Modelinden faydalandırılması uygun bulunmuştur."},null,null,null,null,null,null,null,null,null,null,null,null,null,null,null,null,null,null,null,null,null,null,null,null,null,null,null,"Gölmarmara"]
[null,null,null,null,null,null,null,null,null,null,null,null,null,null,null,null,null,null,null,null,null,null,null,null,null,null,null,null,"Gördes"]
[{"$f":"CONCATENATE(\"            \",AK21,\" \",AK22,\" \",AK23,\" \",AK24,\" \",AK25,\" \",AK26,\" \",AK27,\" \",AK28)","v":"            Engelli ? için, ? ? adına Bakıma Muhtaç Engellilerin Tespiti ve Bakım Hizmetlerinin Belirlenmesine İlişkin Yönetmeliğin 13-d maddesi gereğince, 01.10.2015 tarihinden geçerli olmak üzere, her ay bir aylık net asgari ücret (asgari geçim indirimi çıkartılmış) tutarında aylık bakım ücreti ödenmesi hususunu;"},null,null,null,null,null,null,null,null,null,null,null,null,null,null,null,null,null,null,null,null,null,null,null,null,null,null,null,"Kırkağaç"]
[null,null,null,null,null,null,null,null,null,null,null,null,null,null,null,null,null,null,null,null,null,null,null,null,null,null,null,null,"Köprübaşı",null,null,null,null,null,null,1,"Engelli"]
[null,null,null,null,null,null,null,null,null,null,null,null,null,null,null,null,null,null,null,null,null,null,null,null,null,null,null,null,"Kula",null,null,null,null,null,null,2,{"$f":"CONCATENATE('Bakım ve Denetim Formu'!C10)","v":"?"}]
[null,null,null,null,null,null,null,null,null,null,null,null,null,null,null,null,null,null,null,null,null,null,null,null,null,null,null,null,"Salihli",null,null,null,null,null,null,3,"için,"]
[null,null,"Olurlarınıza arz ederim.",null,null,null,null,null,null,null,null,null,null,null,null,null,null,null,null,null,null,null,null,null,null,null,null,null,"Sarigöl",null,null,null,null,null,null,4,{"$f":"'Bakım ve Denetim Formu'!C29","v":"?"}]
[null,null,null,null,null,null,null,null,null,null,null,null,null,null,null,null,null,null,null,null,null,null,null,null,null,null,null,null,"Saruhanlı",null,null,null,null,null,null,5,{"$f":"'Bakım ve Denetim Formu'!C24","v":"?"}]
[null,null,null,null,null,null,null,null,null,null,null,null,null,null,null,null,null,null,null,null,null,null,null,null,null,null,null,null,"Selendi",null,null,null,null,null,null,6,"adına Bakıma Muhtaç Engellilerin Tespiti ve Bakım Hizmetlerinin Belirlenmesine İlişkin Yönetmeliğin 13-d maddesi gereğince,"]
[null,null,null,null,null,null,null,null,null,null,null,null,null,null,null,null,null,null,"…………..",null,null,null,null,null,null,null,null,null,"Soma",null,null,null,null,null,null,7,{"$f":"CONCATENATE(\"0\",1,\".\",Z9,\".\",Z7)","v":"01.10.2015"}]
[null,null,null,null,null,null,null,null,null,null,null,null,null,null,null,null,null,null,"İl Müdür Yrd.",null,null,null,null,null,null,null,null,null,"Turgutlu",null,null,null,null,null,null,8,"tarihinden geçerli olmak üzere, her ay bir aylık net asgari ücret (asgari geçim indirimi çıkartılmış) tutarında aylık bakım ücreti ödenmesi hususunu;"]
[null,null,null,null,null,null,null,null,null,null,null,null,null,null,null,null,null,null,null,null,null,null,null,null,null,null,null,null,null,null,null,null,null,null,null,9]
[]
[null,null,null,null,null,null,null,null,null,null,null,null,null,null,null,null,null,null,null,null,null,null,null,null,null,null,null,null,null,null,null,null,null,null,null,1,"belirlenmiş ve"]
[null,null,null,null,null,null,null,null,null,null,null,null,null,null,null,null,null,null,null,null,null,null,null,null,null,null,null,null,null,null,null,null,null,null,null,2,{"$f":"'Bakım ve Denetim Formu'!C32","v":"?"}]
[null,null,null,null,null,null,null,null,null,null,null,null,null,null,null,null,null,null,null,null,null,null,null,null,null,null,null,null,null,null,null,null,null,null,null,3,"TC Numaralı "]
[null,null,null,null,null,null,null,null,null,null,null,null,null,null,null,null,null,null,null,null,null,null,null,null,null,null,null,null,null,null,null,null,null,null,null,4,"tarafından Evde Bakım Hizmeti Modelinden faydalandırılması uygun bulunmuştur."]
[]
[null,null,null,null,null,null,null,null,null,null,null,"     O L U R"]
[]
[]
[null,null,null,null,null,null,null,null,null,{"$f":"CONCATENATE(\"…/\",Z8,\"/\",W5)","v":"…/09/2015"}]
[null,null,null,null,null,null,"………….."]
[null,null,null,null,null,null,"  İl Müdürü"]
[]
[]
[]
[]
[]
[]
[]
[]
[]
[]
[{"$f":"IF(D52=\"\",\" \",J39)","v":"…/09/2015"},null,null,"…………….."]
[{"$f":"IF(D53=\"\",\" \",J39)","v":"…/09/2015"},null,null,"…………….."]
[{"$f":"IF(D54=\"\",\" \",J39)","v":"…/09/2015"},null,null,"…………….."]
[]
["Aile, Çalışma ve Sosyal Hizmetler İl Müdürlüğü MANİSA",null,null,null,null,null,null,null,null,null,null,null,null,null,null,null,null,"Bilgi için: ……………………"]
["Telefon: (0 236) 231 10 01 Faks: (0 236) 231 85 76",null,null,null,null,null,null,null,null,null,null,null,null,null,null,null,null,"Sosyal Çalışmacı"]
["E-posta: manisa@ailevecalisma.gov.tr  İnternet: ailevecalisma.gov.tr/manisa",null,null,null,null,null,null,null,null,null,null,null,null,null,null,null,null,"Telefon No:(236) 231 10 01/"]

{"sheet":"Onay","index":4,"n_rows":58,"n_cols":37,"rows_kept":58,"cut":false,"hidden":true,"merged":[[15,0,15,4],[15,23,15,26],[15,5,15,22],[57,17,57,26],[26,18,26,26],[27,18,27,26],[16,14,16,26],[17,0,18,26],[19,0,22,26],[23,2,23,7],[57,0,57,16],[35,11,35,14],[38,9,38,16],[40,6,40,19],[51,0,51,2],[51,3,51,12],[6,2,6,12],[7,2,7,12],[9,0,9,24],[10,14,10,19],[14,2,14,26],[0,0,0,26],[1,0,1,26],[2,0,2,26],[4,22,4,23],[5,2,5,12],[5,20,5,26],[16,4,16,12],[55,0,55,16],[55,17,55,26],[56,17,56,26],[39,6,39,19],[52,0,52,2],[52,3,52,12],[56,0,56,16]]}
[{"$f":"'Onay(Paraflı)'!A1:AA1","v":"T.C."}]
[{"$f":"'Onay(Paraflı)'!A2:AA2","v":"MANİSA VALİLİĞİ"}]
[{"$f":"'Onay(Paraflı)'!A3:AA3","v":"Aile, Çalışma ve Sosyal Hizmetler İl Müdürlüğü"}]
[null,null,null,null,null,null,null,null,null,null,null,null,null,null,null,null,null,null,null,null,null,null,null,{"$f":"'Bakım ve Denetim Formu'!D165","v":"2015-09-10"},null,{"$f":"IF(Z5>12,1,Z5)","v":9}]
[null,null,null,null,"   ",null,null,null,null,null,null,null,null,null,null,null,null,null,null,null,{"$f":"DAY(X4)","v":10},{"$f":"MONTH(X4)","v":9},{"$f":"YEAR(X4)","v":2015},null,{"$f":"IF(U5<16,\"15\",\"15\")","v":"15"},{"$f":"IF(U5<16,V5,IF(U5>15,V5+1))","v":9},null,null," 'ın"]
["Sayı:",null,{"$f":"'Onay(Paraflı)'!C6:M6","v":"54499992-35.01"},null,null,null,null,null,null,null,null,null,null,null,null,null,null,null,null,null,{"$f":"'Onay(Paraflı)'!U6:AA6","v":"…/09/2015"},null,null,null,null,null,null,null," 'in"]
["Konu :",null,"Engelli Evde Bakım Hizmeti",null,null,null,null,null,null,null,null,null,null,null,null,null,null,null,null,null,null,null,null,null,null,{"$f":"IF(Z5>12,W5+1,W5)","v":2015},null,null," 'un"]
[null,null,{"$f":"CONCATENATE(\"(\",'Bakım ve Denetim Formu'!C10,\")\")","v":"(?)"},null,null,null,null,null,null,null,null,null,null,null,null,null,null,null,null,null,null,null,null,null,null,null,null,null," 'ün"]
[null,null,null,null,null,null,null,null,null,null,null,null,null,null,null,null,null,null,null,null,null,null,null,null,null,null,null,null," 'nın"]
["MÜDÜRLÜK MAKAMINA",null,null,null,null,null,null,null,null,null,null,null,null,null,null,null,null,null,null,null,null,null,null,null,null,null,null,null," 'nin"]
[null,null,null,null,null,null,null,null,null,null,null,null,null,null,null,null,null,null,null,null,null,null,null,null,null,null,null,null," 'nun"]
[null,null,null,null,null,null,null,null,null,null,null,null,null,null,null,null,null,null,null,null,null,null,null,null,null,null,null,null," 'nün"]
[null,null,null,null,null,null,null,null,null,null,null,null,null,null,null,null,null,null,null,null,null,null,null,null,null,null,null,null,"Müdürlüğümüz"]
[null,null,null,null,null,null,null,null,null,null,null,null,null,null,null,null,null,null,null,null,null,null,null,null,null,null,null,null,"Yetiştirme Yurdu"]
[null,null,"Bakıma Muhtaç Engellilerin Tespiti ve Bakım Hizmetlerinin Belirenmesine ilişkin Yönetmelik gereği",null,null,null,null,null,null,null,null,null,null,null,null,null,null,null,null,null,null,null,null,null,null,null,null,null,"Çocuk Yuvası"]
[{"$f":"'Onay(Paraflı)'!A16","v":"Müdürlüğümüz"},null,null,null,null,"bakım hizmetleri değerlendirme heyeti tarafından yapılan inceleme sonucunda",null,null,null,null,null,null,null,null,null,null,null,null,null,null,null,null,null,{"$f":"'Bakım ve Denetim Formu'!C17","v":"?"},null,null,null,null,"Selendi"]
["TC Numaralı ",null,null,null,{"$f":"CONCATENATE('Bakım ve Denetim Formu'!C10)","v":"?"},null,null,null,null,null,null,null,null,{"$f":"'Onay(Paraflı)'!N17","v":" 'ün"},"bakıma muhtaç ağır engelli olduğu belirlenmiş ve",null,null,null,null,null,null,null,null,null,null,null,null,null,"Kula"]
[{"$f":"CONCATENATE(AK32,\" \",AK33,\" \",AK24,\" \",AK25,\" \",AK34)","v":"? TC Numaralı  ? ? tarafından Evde Bakım Hizmeti Modelinden faydalandırılması uygun bulunmuştur."},null,null,null,null,null,null,null,null,null,null,null,null,null,null,null,null,null,null,null,null,null,null,null,null,null,null,null,"Salihli"]
[null,null,null,null,null,null,null,null,null,null,null,null,null,null,null,null,null,null,null,null,null,null,null,null,null,null,null,null,"Turgutlu"]
[{"$f":"CONCATENATE(\"            \",AK21,\" \",AK22,\" \",AK23,\" \",AK24,\" \",AK25,\" \",AK26,\" \",AK27,\" \",AK28)","v":"            Engelli ? için, ? ? adına Bakıma Muhtaç Engellilerin Tespiti ve Bakım Hizmetlerinin Belirlenmesine İlişkin Yönetmeliğin 13-d maddesi gereğince, 01.10.2015 tarihinden geçerli olmak üzere, her ay bir aylık net asgari ücret (asgari geçim indirimi çıkartılmış) tutarında aylık bakım ücreti ödenmesi hususunu;"},null,null,null,null,null,null,null,null,null,null,null,null,null,null,null,null,null,null,null,null,null,null,null,null,null,null,null,"Ahmetli"]
[null,null,null,null,null,null,null,null,null,null,null,null,null,null,null,null,null,null,null,null,null,null,null,null,null,null,null,null,"Alaşehir",null,null,null,null,null,null,1,"Engelli"]
[null,null,null,null,null,null,null,null,null,null,null,null,null,null,null,null,null,null,null,null,null,null,null,null,null,null,null,null,"Sarigöl",null,null,null,null,null,null,2,{"$f":"CONCATENATE('Bakım ve Denetim Formu'!C10)","v":"?"}]
[null,null,null,null,null,null,null,null,null,null,null,null,null,null,null,null,null,null,null,null,null,null,null,null,null,null,null,null,"Soma",null,null,null,null,null,null,3,"için,"]
[null,null,"Olurlarınıza arz ederim.",null,null,null,null,null,null,null,null,null,null,null,null,null,null,null,null,null,null,null,null,null,null,null,null,null,"Gördes",null,null,null,null,null,null,4,{"$f":"'Bakım ve Denetim Formu'!C29","v":"?"}]
[null,null,null,null,null,null,null,null,null,null,null,null,null,null,null,null,null,null,null,null,null,null,null,null,null,null,null,null,"Demirci",null,null,null,null,null,null,5,{"$f":"'Bakım ve Denetim Formu'!C24","v":"?"}]
[null,null,null,null,null,null,null,null,null,null,null,null,null,null,null,null,null,null,null,null,null,null,null,null,null,null,null,null,"Akhisar",null,null,null,null,null,null,6,"adına Bakıma Muhtaç Engellilerin Tespiti ve Bakım Hizmetlerinin Belirlenmesine İlişkin Yönetmeliğin 13-d maddesi gereğince,"]
[null,null,null,null,null,null,null,null,null,null,null,null,null,null,null,null,null,null,{"$f":"'Onay(Paraflı)'!S27:AA27","v":"………….."},null,null,null,null,null,null,null,null,null,"Saruhanlı",null,null,null,null,null,null,7,{"$f":"'Onay(Paraflı)'!AK27","v":"01.10.2015"}]
[null,null,null,null,null,null,null,null,null,null,null,null,null,null,null,null,null,null,{"$f":"'Onay(Paraflı)'!S28:AA28","v":"İl Müdür Yrd."},null,null,null,null,null,null,null,null,null,"Kırkağaç",null,null,null,null,null,null,8,"tarihinden geçerli olmak üzere, her ay bir aylık net asgari ücret (asgari geçim indirimi çıkartılmış) tutarında aylık bakım ücreti ödenmesi hususunu;"]
[null,null,null,null,null,null,null,null,null,null,null,null,null,null,null,null,null,null,null,null,null,null,null,null,null,null,null,null,"Gölmarmara",null,null,null,null,null,null,9]
[null,null,null,null,null,null,null,null,null,null,null,null,null,null,null,null,null,null,null,null,null,null,null,null,null,null,null,null,"Köprübaşı"]
[null,null,null,null,null,null,null,null,null,null,null,null,null,null,null,null,null,null,null,null,null,null,null,null,null,null,null,null,null,null,null,null,null,null,null,1,"belirlenmiş ve"]
[null,null,null,null,null,null,null,null,null,null,null,null,null,null,null,null,null,null,null,null,null,null,null,null,null,null,null,null,null,null,null,null,null,null,null,2,{"$f":"'Bakım ve Denetim Formu'!C32","v":"?"}]
[null,null,null,null,null,null,null,null,null,null,null,null,null,null,null,null,null,null,null,null,null,null,null,null,null,null,null,null,null,null,null,null,null,null,null,3,"TC Numaralı "]
[null,null,null,null,null,null,null,null,null,null,null,null,null,null,null,null,null,null,null,null,null,null,null,null,null,null,null,null,null,null,null,null,null,null,null,4,"tarafından Evde Bakım Hizmeti Modelinden faydalandırılması uygun bulunmuştur."]
[]
[null,null,null,null,null,null,null,null,null,null,null,"     O L U R"]
[]
[]
[null,null,null,null,null,null,null,null,null,{"$f":"U6","v":"…/09/2015"}]
[null,null,null,null,null,null,{"$f":"'Onay(Paraflı)'!G40:Q40","v":"………….."}]
[null,null,null,null,null,null,{"$f":"'Onay(Paraflı)'!G41:T41","v":"  İl Müdürü"}]
[]
[]
[]
[]
[]
[]
[]
[]
[]
[]
[]
[]
[]
[]
[{"$f":"'Onay(Paraflı)'!A56:Q56","v":"Aile, Çalışma ve Sosyal Hizmetler İl Müdürlüğü MANİSA"},null,null,null,null,null,null,null,null,null,null,null,null,null,null,null,null,{"$f":"'Onay(Paraflı)'!R56:Z56","v":"Bilgi için: ……………………"}]
[{"$f":"'Onay(Paraflı)'!A57:Q57","v":"Telefon: (0 236) 231 10 01 Faks: (0 236) 231 85 76"},null,null,null,null,null,null,null,null,null,null,null,null,null,null,null,null,{"$f":"'Onay(Paraflı)'!R57:Z57","v":"Sosyal Çalışmacı"}]
[{"$f":"'Onay(Paraflı)'!A58:Q58","v":"E-posta: manisa@ailevecalisma.gov.tr  İnternet: ailevecalisma.gov.tr/manisa"},null,null,null,null,null,null,null,null,null,null,null,null,null,null,null,null,{"$f":"'Onay(Paraflı)'!R58:Z58","v":"Telefon No:(236) 231 10 01/"}]

{"sheet":"Onay (Gelir Red-Paraflı)","index":5,"n_rows":61,"n_cols":29,"rows_kept":61,"cut":false,"hidden":true,"merged":[[6,2,6,12],[7,2,7,12],[17,2,17,26],[19,0,23,26],[0,0,0,26],[1,0,1,26],[2,0,2,26],[4,22,4,23],[5,2,5,12],[5,20,5,26],[9,0,9,26],[10,0,10,26],[59,0,59,16],[60,0,60,16],[55,0,55,2],[55,3,55,12],[24,2,24,26],[58,0,58,16],[58,17,58,26],[59,17,59,26],[60,17,60,26],[56,0,56,2],[56,3,56,12],[41,6,41,19],[54,0,54,2],[54,3,54,12],[38,11,38,14],[39,9,39,16],[40,9,40,16],[13,0,13,1],[29,18,29,26],[30,18,30,26],[18,17,18,24],[18,2,18,6],[18,7,18,16],[13,2,15,26]]}
["T.C."]
["MANİSA VALİLİĞİ"]
["Aile, Çalışma ve Sosyal Hizmetler İl Müdürlüğü"]
[null,null,null,null,null,null,null,null,null,null,null,null,null,null,null,null,null,null,null,null,null,null,null,{"$f":"'Bakım ve Denetim Formu'!D165","v":"2015-09-10"},null,{"$f":"IF(Z5>12,1,Z5)","v":9}]
[null,null,null,null,"   ",null,null,null,null,null,null,null,null,null,null,null,null,null,null,null,{"$f":"DAY(X4)","v":10},{"$f":"MONTH(X4)","v":9},{"$f":"YEAR(X4)","v":2015},null,{"$f":"IF(U5<16,\"15\",\"15\")","v":"15"},{"$f":"IF(U5<16,V5,IF(U5>15,V5+1))","v":9},null,null," 'ın"]
["Sayı:",null,"54499992-35.01",null,null,null,null,null,null,null,null,null,null,null,null,null,null,null,null,null,{"$f":"'Onay(Paraflı)'!U6:AA6","v":"…/09/2015"},null,null,null,null,null,null,null," 'in"]
["Konu :",null,"Engelli Evde Bakım Hizmeti",null,null,null,null,null,null,null,null,null,null,null,null,null,null,null,null,null,null,null,null,null,null,{"$f":"IF(Z5>12,W5+1,W5)","v":2015},null,null," 'un"]
[null,null,{"$f":"CONCATENATE(\"(\",'Bakım ve Denetim Formu'!C10,\")\")","v":"(?)"},null,null,null,null,null,null,null,null,null,null,null,null,null,null,null,null,null,null,null,null,null,null,{"$f":"IF(Z4<10,CONCATENATE(\"0\",Z4,\"\"),Z4)","v":"09"},null,null," 'ün"]
[null,null,null,null,null,null,null,null,null,null,null,null,null,null,null,null,null,null,null,null,null,null,null,null,null,null,null,null," 'nın"]
[{"$f":"CONCATENATE(\"Sayın; \",'Bakım ve Denetim Formu'!C24)","v":"Sayın; ?"},null,null,null,null,null,null,null,null,null,null,null,null,null,null,null,null,null,null,null,null,null,null,null,null,null,null,null," 'nin"]
[{"$f":"CONCATENATE(\"( \",'Bakım ve Denetim Formu'!C31,\" )\")","v":"( ? )"},null,null,null,null,null,null,null,null,null,null,null,null,null,null,null,null,null,null,null,null,null,null,null,null,null,null,null," 'nun"]
[null,null,null,null,null,null,null,null,null,null,null,null,null,null,null,null,null,null,null,null,null,null,null,null,null,null,null,null," 'nün"]
[null,null,null,null,null,null,null,null,null,null,null,null,null,null,null,null,null,null,null,null,null,null,null,null,null,null,null,null,"Müdürlüğümüz"]
["İlgi:",null,"30.07.2006 tarih ve 26244 sayılı R.G yayımlanan \"Bakıma Muhtaç Engellilerin Tespiti ve Bakım Hizmeti Esaslarının Belirlenmesine İlişkin Yönetmelikte Değişiklik Yapılması Hakkında Yönetmelik\"",null,null,null,null,null,null,null,null,null,null,null,null,null,null,null,null,null,null,null,null,null,null,null,null,null,"Ahmetli"]
[null,null,null,null,null,null,null,null,null,null,null,null,null,null,null,null,null,null,null,null,null,null,null,null,null,null,null,null,"Akhisar"]
[null,null,null,null,null,null,null,null,null,null,null,null,null,null,null,null,null,null,null,null,null,null,null,null,null,null,null,null,"Alaşehir"]
[null,null,null,null,null,null,null,null,null,null,null,null,null,null,null,null,null,null,null,null,null,null,null,null,null,null,null,null,"Demirci"]
[null,null,null,null,null,null,null,null,null,null,null,null,null,null,null,null,null,null,null,null,null,null,null,null,null,null,null,null,"Gölmarmara"]
[null,null,"Müdürlüğümüz",null,null,null,null,"Engelli Bakım Hizmetlerine, engelli olan",null,null,null,null,null,null,null,null,null,{"$f":"CONCATENATE('Bakım ve Denetim Formu'!C10)","v":"?"},null,null,null,null,null,null,null," 'in",null,null,"Gördes"]
["engelli evde bakım yardımından faydalandırılması için yapmış olduğunuz başvurunuz nedeniyle Bakım Hizmetleri Değerlendirme Heyetince ilgili Yönetmelik doğrultusunda gerekli inceleme yapılmış olup, ailenizde kişi başına düşen gelirin asgari ücretin 2/3'ünden fazla olduğu tespit edildiğinden ilgi yönetmelik hükmünce evde bakım yardımından faydalanmanız uygun bulunmamıştır.",null,null,null,null,null,null,null,null,null,null,null,null,null,null,null,null,null,null,null,null,null,null,null,null,null,null,null,"Kırkağaç"]
[null,null,null,null,null,null,null,null,null,null,null,null,null,null,null,null,null,null,null,null,null,null,null,null,null,null,null,null,"Köprübaşı"]
[null,null,null,null,null,null,null,null,null,null,null,null,null,null,null,null,null,null,null,null,null,null,null,null,null,null,null,null,"Kula"]
[null,null,null,null,null,null,null,null,null,null,null,null,null,null,null,null,null,null,null,null,null,null,null,null,null,null,null,null,"Salihli"]
[null,null,null,null,null,null,null,null,null,null,null,null,null,null,null,null,null,null,null,null,null,null,null,null,null,null,null,null,"Sarigöl"]
[null,null,"Bilgilerinize rica ederim.",null,null,null,null,null,null,null,null,null,null,null,null,null,null,null,null,null,null,null,null,null,null,null,null,null,"Saruhanlı"]
[null,null,null,null,null,null,null,null,null,null,null,null,null,null,null,null,null,null,null,null,null,null,null,null,null,null,null,null,"Selendi"]
[null,null,null,null,null,null,null,null,null,null,null,null,null,null,null,null,null,null,null,null,null,null,null,null,null,null,null,null,"Soma"]
[null,null,null,null,null,null,null,null,null,null,null,null,null,null,null,null,null,null,null,null,null,null,null,null,null,null,null,null,"Turgutlu"]
[]
[null,null,null,null,null,null,null,null,null,null,null,null,null,null,null,null,null,null,"………….."]
[null,null,null,null,null,null,null,null,null,null,null,null,null,null,null,null,null,null,"İl Müdürü"]
[]
[]
[]
[]
[]
[]
[]
[]
[]
[]
[]
[]
[]
[]
[]
[]
[]
[]
[]
[]
[]
[]
[]
[{"$f":"IF(D55=\"\",\" \",U6)","v":"…/09/2015"},null,null,"…………….."]
[{"$f":"IF(D56=\"\",\" \",U6)","v":"…/09/2015"},null,null,"…………….."]
[{"$f":"IF(D57=\"\",\" \",U6)","v":"…/09/2015"},null,null,"…………….."]
[]
["Aile, Çalışma ve Sosyal Hizmetler İl Müdürlüğü MANİSA",null,null,null,null,null,null,null,null,null,null,null,null,null,null,null,null,"Bilgi için: ……………………"]
["Telefon: (0 236) 231 10 01 Faks: (0 236) 231 85 76",null,null,null,null,null,null,null,null,null,null,null,null,null,null,null,null,"Sosyal Çalışmacı"]
["E-posta: manisa@ailevecalisma.gov.tr  İnternet: ailevecalisma.gov.tr/manisa",null,null,null,null,null,null,null,null,null,null,null,null,null,null,null,null,"Telefon No:(236) 231 10 01/"]

{"sheet":"Onay (Gelir Red)","index":6,"n_rows":61,"n_cols":29,"rows_kept":61,"cut":false,"hidden":true,"merged":[[60,0,60,16],[54,0,54,2],[54,3,54,12],[55,0,55,2],[55,3,55,12],[58,0,58,16],[58,17,58,26],[59,17,59,26],[60,17,60,26],[41,6,41,19],[17,2,17,26],[18,2,18,6],[18,7,18,16],[18,17,18,24],[19,0,23,26],[24,2,24,26],[38,11,38,14],[39,9,39,16],[40,9,40,16],[29,18,29,26],[30,18,30,26],[59,0,59,16],[6,2,6,12],[7,2,7,12],[9,0,9,26],[10,0,10,26],[13,0,13,1],[13,2,15,26],[0,0,0,26],[1,0,1,26],[2,0,2,26],[4,22,4,23],[5,2,5,12],[5,20,5,26]]}
[{"$f":"'Onay (Gelir Red-Paraflı)'!A1:AA1","v":"T.C."}]
[{"$f":"'Onay (Gelir Red-Paraflı)'!A2:AA2","v":"MANİSA VALİLİĞİ"}]
[{"$f":"'Onay (Gelir Red-Paraflı)'!A3:AA3","v":"Aile, Çalışma ve Sosyal Hizmetler İl Müdürlüğü"}]
[null,null,null,null,null,null,null,null,null,null,null,null,null,null,null,null,null,null,null,null,null,null,null,{"$f":"'Bakım ve Denetim Formu'!D165","v":"2015-09-10"},null,{"$f":"IF(Z5>12,1,Z5)","v":9}]
[null,null,null,null,"   ",null,null,null,null,null,null,null,null,null,null,null,null,null,null,null,{"$f":"DAY(X4)","v":10},{"$f":"MONTH(X4)","v":9},{"$f":"YEAR(X4)","v":2015},null,{"$f":"IF(U5<16,\"15\",\"15\")","v":"15"},{"$f":"IF(U5<16,V5,IF(U5>15,V5+1))","v":9},null,null," 'ın"]
["Sayı:",null,"54499992-35.01",null,null,null,null,null,null,null,null,null,null,null,null,null,null,null,null,null,{"$f":"'Onay(Paraflı)'!U6:AA6","v":"…/09/2015"},null,null,null,null,null,null,null," 'in"]
["Konu :",null,"Engelli Evde Bakım Hizmeti",null,null,null,null,null,null,null,null,null,null,null,null,null,null,null,null,null,null,null,null,null,null,{"$f":"IF(Z5>12,W5+1,W5)","v":2015},null,null," 'un"]
[null,null,{"$f":"CONCATENATE(\"(\",'Bakım ve Denetim Formu'!C10,\")\")","v":"(?)"},null,null,null,null,null,null,null,null,null,null,null,null,null,null,null,null,null,null,null,null,null,null,null,null,null," 'ün"]
[null,null,null,null,null,null,null,null,null,null,null,null,null,null,null,null,null,null,null,null,null,null,null,null,null,null,null,null," 'nın"]
[{"$f":"CONCATENATE(\"Sayın; \",'Bakım ve Denetim Formu'!C24)","v":"Sayın; ?"},null,null,null,null,null,null,null,null,null,null,null,null,null,null,null,null,null,null,null,null,null,null,null,null,null,null,null," 'nin"]
[{"$f":"CONCATENATE(\"( \",'Bakım ve Denetim Formu'!C31,\" )\")","v":"( ? )"},null,null,null,null,null,null,null,null,null,null,null,null,null,null,null,null,null,null,null,null,null,null,null,null,null,null,null," 'nun"]
[null,null,null,null,null,null,null,null,null,null,null,null,null,null,null,null,null,null,null,null,null,null,null,null,null,null,null,null," 'nün"]
[null,null,null,null,null,null,null,null,null,null,null,null,null,null,null,null,null,null,null,null,null,null,null,null,null,null,null,null,"Müdürlüğümüz"]
["İlgi:",null,"30.07.2006 tarih ve 26244 sayılı R.G yayımlanan \"Bakıma Muhtaç Engellilerin Tespiti ve Bakım Hizmeti Esaslarının Belirlenmesine İlişkin Yönetmelikte Değişiklik Yapılması Hakkında Yönetmelik\"",null,null,null,null,null,null,null,null,null,null,null,null,null,null,null,null,null,null,null,null,null,null,null,null,null,"Yetiştirme Yurdu"]
[null,null,null,null,null,null,null,null,null,null,null,null,null,null,null,null,null,null,null,null,null,null,null,null,null,null,null,null,"Çocuk Yuvası"]
[null,null,null,null,null,null,null,null,null,null,null,null,null,null,null,null,null,null,null,null,null,null,null,null,null,null,null,null,"Selendi"]
[null,null,null,null,null,null,null,null,null,null,null,null,null,null,null,null,null,null,null,null,null,null,null,null,null,null,null,null,"Kula"]
[null,null,null,null,null,null,null,null,null,null,null,null,null,null,null,null,null,null,null,null,null,null,null,null,null,null,null,null,"Salihli"]
[null,null,{"$f":"'Onay (Gelir Red-Paraflı)'!C19","v":"Müdürlüğümüz"},null,null,null,null,"Engelli Bakım Hizmetlerine, engelli olan",null,null,null,null,null,null,null,null,null,{"$f":"CONCATENATE('Bakım ve Denetim Formu'!C10)","v":"?"},null,null,null,null,null,null,null,{"$f":"'Onay (Gelir Red-Paraflı)'!Z19","v":" 'in"},null,null,"Turgutlu"]
["engelli evde bakım yardımından faydalandırılması için yapmış olduğunuz başvurunuz nedeniyle Bakım Hizmetleri Değerlendirme Heyetince ilgili Yönetmelik doğrultusunda gerekli inceleme yapılmış olup, ailenizde kişi başına düşen gelirin asgari ücretin 2/3'ünden fazla olduğu tespit edildiğinden ilgi yönetmelik hükmünce evde bakım yardımından faydalanmanız mümkün değildir.",null,null,null,null,null,null,null,null,null,null,null,null,null,null,null,null,null,null,null,null,null,null,null,null,null,null,null,"Ahmetli"]
[null,null,null,null,null,null,null,null,null,null,null,null,null,null,null,null,null,null,null,null,null,null,null,null,null,null,null,null,"Alaşehir"]
[null,null,null,null,null,null,null,null,null,null,null,null,null,null,null,null,null,null,null,null,null,null,null,null,null,null,null,null,"Sarigöl"]
[null,null,null,null,null,null,null,null,null,null,null,null,null,null,null,null,null,null,null,null,null,null,null,null,null,null,null,null,"Soma"]
[null,null,null,null,null,null,null,null,null,null,null,null,null,null,null,null,null,null,null,null,null,null,null,null,null,null,null,null,"Gördes"]
[null,null,"Bilgilerinize rica ederim.",null,null,null,null,null,null,null,null,null,null,null,null,null,null,null,null,null,null,null,null,null,null,null,null,null,"Demirci"]
[null,null,null,null,null,null,null,null,null,null,null,null,null,null,null,null,null,null,null,null,null,null,null,null,null,null,null,null,"Akhisar"]
[null,null,null,null,null,null,null,null,null,null,null,null,null,null,null,null,null,null,null,null,null,null,null,null,null,null,null,null,"Saruhanlı"]
[null,null,null,null,null,null,null,null,null,null,null,null,null,null,null,null,null,null,null,null,null,null,null,null,null,null,null,null,"Kırkağaç"]
[null,null,null,null,null,null,null,null,null,null,null,null,null,null,null,null,null,null,null,null,null,null,null,null,null,null,null,null,"Gölmarmara"]
[null,null,null,null,null,null,null,null,null,null,null,null,null,null,null,null,null,null,{"$f":"'Onay (Gelir Red-Paraflı)'!S30","v":"………….."},null,null,null,null,null,null,null,null,null,"Köprübaşı"]
[null,null,null,null,null,null,null,null,null,null,null,null,null,null,null,null,null,null,{"$f":"'Onay (Gelir Red-Paraflı)'!S31","v":"İl Müdürü"}]
[]
[]
[]
[]
[]
[]
[]
[]
[]
[]
[]
[]
[]
[]
[]
[]
[]
[]
[]
[]
[]
[]
[]
[]
[]
[]
[]
[{"$f":"'Onay (Gelir Red-Paraflı)'!A59:Q59","v":"Aile, Çalışma ve Sosyal Hizmetler İl Müdürlüğü MANİSA"},null,null,null,null,null,null,null,null,null,null,null,null,null,null,null,null,{"$f":"'Onay (Gelir Red-Paraflı)'!R59:AA59","v":"Bilgi için: ……………………"}]
[{"$f":"'Onay (Gelir Red-Paraflı)'!A60:Q60","v":"Telefon: (0 236) 231 10 01 Faks: (0 236) 231 85 76"},null,null,null,null,null,null,null,null,null,null,null,null,null,null,null,null,{"$f":"'Onay (Gelir Red-Paraflı)'!R60:AA60","v":"Sosyal Çalışmacı"}]
[{"$f":"'Onay (Gelir Red-Paraflı)'!A61:Q61","v":"E-posta: manisa@ailevecalisma.gov.tr  İnternet: ailevecalisma.gov.tr/manisa"},null,null,null,null,null,null,null,null,null,null,null,null,null,null,null,null,{"$f":"'Onay (Gelir Red-Paraflı)'!R61:AA61","v":"Telefon No:(236) 231 10 01/"}]

{"sheet":"Onay (Kriterden Red-Paraflı)","index":7,"n_rows":61,"n_cols":29,"rows_kept":61,"cut":false,"hidden":true,"merged":[[60,17,60,26],[41,6,41,19],[13,0,13,1],[13,2,15,26],[59,0,59,16],[17,2,17,26],[18,2,18,6],[18,7,18,16],[18,17,18,24],[29,18,29,26],[30,18,30,26],[58,0,58,16],[58,17,58,26],[59,17,59,26],[60,0,60,16],[25,2,25,26],[56,0,56,2],[56,3,56,12],[40,9,40,16],[6,2,6,12],[7,2,7,12],[9,0,9,26],[10,0,10,26],[19,0,24,26],[54,0,54,2],[54,3,54,12],[55,0,55,2],[55,3,55,12],[38,11,38,14],[39,9,39,16],[0,0,0,26],[1,0,1,26],[2,0,2,26],[4,22,4,23],[5,2,5,12],[5,20,5,26]]}
["T.C."]
["MANİSA VALİLİĞİ"]
["Aile, Çalışma ve Sosyal Hizmetler İl Müdürlüğü"]
[null,null,null,null,null,null,null,null,null,null,null,null,null,null,null,null,null,null,null,null,null,null,null,{"$f":"'Bakım ve Denetim Formu'!D165","v":"2015-09-10"},null,{"$f":"IF(Z5>12,1,Z5)","v":9}]
[null,null,null,null,"   ",null,null,null,null,null,null,null,null,null,null,null,null,null,null,null,{"$f":"DAY(X4)","v":10},{"$f":"MONTH(X4)","v":9},{"$f":"YEAR(X4)","v":2015},null,{"$f":"IF(U5<16,\"15\",\"15\")","v":"15"},{"$f":"IF(U5<16,V5,IF(U5>15,V5+1))","v":9},null,null," 'ın"]
["Sayı:",null,"54499992-35.01",null,null,null,null,null,null,null,null,null,null,null,null,null,null,null,null,null,{"$f":"'Onay(Paraflı)'!U6:AA6","v":"…/09/2015"},null,null,null,null,null,null,null," 'in"]
["Konu :",null,"Engelli Evde Bakım Hizmeti",null,null,null,null,null,null,null,null,null,null,null,null,null,null,null,null,null,null,null,null,null,null,{"$f":"IF(Z5>12,W5+1,W5)","v":2015},null,null," 'un"]
[null,null,{"$f":"CONCATENATE(\"(\",'Bakım ve Denetim Formu'!C10,\")\")","v":"(?)"},null,null,null,null,null,null,null,null,null,null,null,null,null,null,null,null,null,null,null,null,null,null,{"$f":"IF(Z4<10,CONCATENATE(\"0\",Z4,\"\"),Z4)","v":"09"},null,null," 'ün"]
[null,null,null,null,null,null,null,null,null,null,null,null,null,null,null,null,null,null,null,null,null,null,null,null,null,null,null,null," 'nın"]
[{"$f":"CONCATENATE(\"Sayın; \",'Bakım ve Denetim Formu'!C24)","v":"Sayın; ?"},null,null,null,null,null,null,null,null,null,null,null,null,null,null,null,null,null,null,null,null,null,null,null,null,null,null,null," 'nin"]
[{"$f":"CONCATENATE(\"( \",'Bakım ve Denetim Formu'!C31,\" )\")","v":"( ? )"},null,null,null,null,null,null,null,null,null,null,null,null,null,null,null,null,null,null,null,null,null,null,null,null,null,null,null," 'nun"]
[null,null,null,null,null,null,null,null,null,null,null,null,null,null,null,null,null,null,null,null,null,null,null,null,null,null,null,null," 'nün"]
[null,null,null,null,null,null,null,null,null,null,null,null,null,null,null,null,null,null,null,null,null,null,null,null,null,null,null,null,"Müdürlüğümüz"]
["İlgi:",null,"30.07.2006 tarih ve 26244 sayılı R.G yayımlanan \"Bakıma Muhtaç Engellilerin Tespiti ve Bakım Hizmeti Esaslarının Belirlenmesine İlişkin Yönetmelikte Değişiklik Yapılması Hakkında Yönetmelik\"",null,null,null,null,null,null,null,null,null,null,null,null,null,null,null,null,null,null,null,null,null,null,null,null,null,"Ahmetli"]
[null,null,null,null,null,null,null,null,null,null,null,null,null,null,null,null,null,null,null,null,null,null,null,null,null,null,null,null,"Akhisar"]
[null,null,null,null,null,null,null,null,null,null,null,null,null,null,null,null,null,null,null,null,null,null,null,null,null,null,null,null,"Alaşehir"]
[null,null,null,null,null,null,null,null,null,null,null,null,null,null,null,null,null,null,null,null,null,null,null,null,null,null,null,null,"Demirci"]
[null,null,null,null,null,null,null,null,null,null,null,null,null,null,null,null,null,null,null,null,null,null,null,null,null,null,null,null,"Gölmarmara"]
[null,null,"Müdürlüğümüz",null,null,null,null,"Engelli Bakım Hizmetlerine, engelli olan",null,null,null,null,null,null,null,null,null,{"$f":"CONCATENATE('Bakım ve Denetim Formu'!C10)","v":"?"},null,null,null,null,null,null,null," 'nin",null,null,"Gördes"]
["engell, evde bakım yardımından faydalandırılması için yapmış olduğunuz başvurunuz nedeniyle Bakım Hizmetleri Değerlendirme Heyetince ilgili Yönetmelik doğrultusunda gerekli inceleme yapılmış olup, engellinin günlük hayatın alışılmış tekrar eden gereksinimlerini başkasının yardım ve bakımına ihtiyaç duymadan sürdürdüğü tespit edildiğinden bakım yardımından faydalandırılmanızın uygun olmayacağı kanaatine varılmıştır.",null,null,null,null,null,null,null,null,null,null,null,null,null,null,null,null,null,null,null,null,null,null,null,null,null,null,null,"Kırkağaç"]
[null,null,null,null,null,null,null,null,null,null,null,null,null,null,null,null,null,null,null,null,null,null,null,null,null,null,null,null,"Köprübaşı"]
[null,null,null,null,null,null,null,null,null,null,null,null,null,null,null,null,null,null,null,null,null,null,null,null,null,null,null,null,"Kula"]
[null,null,null,null,null,null,null,null,null,null,null,null,null,null,null,null,null,null,null,null,null,null,null,null,null,null,null,null,"Salihli"]
[null,null,null,null,null,null,null,null,null,null,null,null,null,null,null,null,null,null,null,null,null,null,null,null,null,null,null,null,"Sarigöl"]
[null,null,null,null,null,null,null,null,null,null,null,null,null,null,null,null,null,null,null,null,null,null,null,null,null,null,null,null,"Saruhanlı"]
[null,null,"Bilgilerinize rica ederim.",null,null,null,null,null,null,null,null,null,null,null,null,null,null,null,null,null,null,null,null,null,null,null,null,null,"Selendi"]
[null,null,null,null,null,null,null,null,null,null,null,null,null,null,null,null,null,null,null,null,null,null,null,null,null,null,null,null,"Soma"]
[null,null,null,null,null,null,null,null,null,null,null,null,null,null,null,null,null,null,null,null,null,null,null,null,null,null,null,null,"Turgutlu"]
[]
[null,null,null,null,null,null,null,null,null,null,null,null,null,null,null,null,null,null,"………….."]
[null,null,null,null,null,null,null,null,null,null,null,null,null,null,null,null,null,null,"İl Müdürü"]
[]
[]
[]
[]
[]
[]
[]
[]
[]
[]
[]
[]
[]
[]
[]
[]
[]
[]
[]
[]
[]
[]
[]
[{"$f":"IF(D55=\"\",\" \",U6)","v":"…/09/2015"},null,null,"…………….."]
[{"$f":"IF(D56=\"\",\" \",U6)","v":"…/09/2015"},null,null,"…………….."]
[{"$f":"IF(D57=\"\",\" \",U6)","v":"…/09/2015"},null,null,"…………….."]
[]
["Aile, Çalışma ve Sosyal Hizmetler İl Müdürlüğü MANİSA",null,null,null,null,null,null,null,null,null,null,null,null,null,null,null,null,"Bilgi için: ……………………"]
["Telefon: (0 236) 231 10 01 Faks: (0 236) 231 85 76",null,null,null,null,null,null,null,null,null,null,null,null,null,null,null,null,"Sosyal Çalışmacı"]
["E-posta: manisa@ailevecalisma.gov.tr  İnternet: ailevecalisma.gov.tr/manisa",null,null,null,null,null,null,null,null,null,null,null,null,null,null,null,null,"Telefon No:(236) 231 10 01/"]

{"sheet":"Onay (Kriterden Red)","index":8,"n_rows":61,"n_cols":29,"rows_kept":61,"cut":false,"hidden":true,"merged":[[60,0,60,16],[54,0,54,2],[54,3,54,12],[55,0,55,2],[55,3,55,12],[58,0,58,16],[58,17,58,26],[59,17,59,26],[60,17,60,26],[41,6,41,19],[17,2,17,26],[18,2,18,6],[18,7,18,16],[18,17,18,24],[19,0,24,26],[25,2,25,26],[38,11,38,14],[39,9,39,16],[40,9,40,16],[29,18,29,26],[30,18,30,26],[59,0,59,16],[6,2,6,12],[7,2,7,12],[9,0,9,26],[10,0,10,26],[13,0,13,1],[13,2,15,26],[0,0,0,26],[1,0,1,26],[2,0,2,26],[4,22,4,23],[5,2,5,12],[5,20,5,26]]}
[{"$f":"'Onay (Kriterden Red-Paraflı)'!A1:AA1","v":"T.C."}]
[{"$f":"'Onay (Kriterden Red-Paraflı)'!A2:AA2","v":"MANİSA VALİLİĞİ"}]
[{"$f":"'Onay (Kriterden Red-Paraflı)'!A3:AA3","v":"Aile, Çalışma ve Sosyal Hizmetler İl Müdürlüğü"}]
[null,null,null,null,null,null,null,null,null,null,null,null,null,null,null,null,null,null,null,null,null,null,null,{"$f":"'Bakım ve Denetim Formu'!D165","v":"2015-09-10"},null,{"$f":"IF(Z5>12,1,Z5)","v":9}]
[null,null,null,null,"   ",null,null,null,null,null,null,null,null,null,null,null,null,null,null,null,{"$f":"DAY(X4)","v":10},{"$f":"MONTH(X4)","v":9},{"$f":"YEAR(X4)","v":2015},null,{"$f":"IF(U5<16,\"15\",\"15\")","v":"15"},{"$f":"IF(U5<16,V5,IF(U5>15,V5+1))","v":9},null,null," 'ın"]
["Sayı:",null,"54499992-35.01",null,null,null,null,null,null,null,null,null,null,null,null,null,null,null,null,null,{"$f":"'Onay(Paraflı)'!U6:AA6","v":"…/09/2015"},null,null,null,null,null,null,null," 'in"]
["Konu :",null,"Engelli Evde Bakım Hizmeti",null,null,null,null,null,null,null,null,null,null,null,null,null,null,null,null,null,null,null,null,null,null,{"$f":"IF(Z5>12,W5+1,W5)","v":2015},null,null," 'un"]
[null,null,{"$f":"CONCATENATE(\"(\",'Bakım ve Denetim Formu'!C10,\")\")","v":"(?)"},null,null,null,null,null,null,null,null,null,null,null,null,null,null,null,null,null,null,null,null,null,null,null,null,null," 'ün"]
[null,null,null,null,null,null,null,null,null,null,null,null,null,null,null,null,null,null,null,null,null,null,null,null,null,null,null,null," 'nın"]
[{"$f":"CONCATENATE(\"Sayın; \",'Bakım ve Denetim Formu'!C24)","v":"Sayın; ?"},null,null,null,null,null,null,null,null,null,null,null,null,null,null,null,null,null,null,null,null,null,null,null,null,null,null,null," 'nin"]
[{"$f":"CONCATENATE(\"( \",'Bakım ve Denetim Formu'!C31,\" )\")","v":"( ? )"},null,null,null,null,null,null,null,null,null,null,null,null,null,null,null,null,null,null,null,null,null,null,null,null,null,null,null," 'nun"]
[null,null,null,null,null,null,null,null,null,null,null,null,null,null,null,null,null,null,null,null,null,null,null,null,null,null,null,null," 'nün"]
[null,null,null,null,null,null,null,null,null,null,null,null,null,null,null,null,null,null,null,null,null,null,null,null,null,null,null,null,"Müdürlüğümüz"]
["İlgi:",null,"30.07.2006 tarih ve 26244 sayılı R.G yayımlanan \"Bakıma Muhtaç Engellilerin Tespiti ve Bakım Hizmeti Esaslarının Belirlenmesine İlişkin Yönetmelikte Değişiklik Yapılması Hakkında Yönetmelik\"",null,null,null,null,null,null,null,null,null,null,null,null,null,null,null,null,null,null,null,null,null,null,null,null,null,"Yetiştirme Yurdu"]
[null,null,null,null,null,null,null,null,null,null,null,null,null,null,null,null,null,null,null,null,null,null,null,null,null,null,null,null,"Çocuk Yuvası"]
[null,null,null,null,null,null,null,null,null,null,null,null,null,null,null,null,null,null,null,null,null,null,null,null,null,null,null,null,"Selendi"]
[null,null,null,null,null,null,null,null,null,null,null,null,null,null,null,null,null,null,null,null,null,null,null,null,null,null,null,null,"Kula"]
[null,null,null,null,null,null,null,null,null,null,null,null,null,null,null,null,null,null,null,null,null,null,null,null,null,null,null,null,"Salihli"]
[null,null,{"$f":"'Onay (Kriterden Red-Paraflı)'!C19","v":"Müdürlüğümüz"},null,null,null,null,"Engelli Bakım Hizmetlerine, engelli olan",null,null,null,null,null,null,null,null,null,{"$f":"CONCATENATE('Bakım ve Denetim Formu'!C10)","v":"?"},null,null,null,null,null,null,null,{"$f":"'Onay (Kriterden Red-Paraflı)'!Z19","v":" 'nin"},null,null,"Turgutlu"]
["engelli evde bakım yardımından faydalandırılması için yapmış olduğunuz başvurunuz nedeniyle Bakım Hizmetleri Değerlendirme Heyetince ilgili Yönetmelik doğrultusunda gerekli inceleme yapılmış olup, engellinin günlük hayatın alışılmış tekrar eden gereksinimlerini başkasının yardım ve bakımına ihtiyaç duymadan sürdürdüğü tespit edildiğinden bakım yardımından faydalandırılmanızın uygun olmayacağı kanaatine varılmıştır.",null,null,null,null,null,null,null,null,null,null,null,null,null,null,null,null,null,null,null,null,null,null,null,null,null,null,null,"Ahmetli"]
[null,null,null,null,null,null,null,null,null,null,null,null,null,null,null,null,null,null,null,null,null,null,null,null,null,null,null,null,"Alaşehir"]
[null,null,null,null,null,null,null,null,null,null,null,null,null,null,null,null,null,null,null,null,null,null,null,null,null,null,null,null,"Sarigöl"]
[null,null,null,null,null,null,null,null,null,null,null,null,null,null,null,null,null,null,null,null,null,null,null,null,null,null,null,null,"Soma"]
[null,null,null,null,null,null,null,null,null,null,null,null,null,null,null,null,null,null,null,null,null,null,null,null,null,null,null,null,"Gördes"]
[null,null,null,null,null,null,null,null,null,null,null,null,null,null,null,null,null,null,null,null,null,null,null,null,null,null,null,null,"Demirci"]
[null,null,"Bilgilerinize rica ederim.",null,null,null,null,null,null,null,null,null,null,null,null,null,null,null,null,null,null,null,null,null,null,null,null,null,"Akhisar"]
[null,null,null,null,null,null,null,null,null,null,null,null,null,null,null,null,null,null,null,null,null,null,null,null,null,null,null,null,"Saruhanlı"]
[null,null,null,null,null,null,null,null,null,null,null,null,null,null,null,null,null,null,null,null,null,null,null,null,null,null,null,null,"Kırkağaç"]
[null,null,null,null,null,null,null,null,null,null,null,null,null,null,null,null,null,null,null,null,null,null,null,null,null,null,null,null,"Gölmarmara"]
[null,null,null,null,null,null,null,null,null,null,null,null,null,null,null,null,null,null,{"$f":"'Onay (Kriterden Red-Paraflı)'!S30","v":"………….."},null,null,null,null,null,null,null,null,null,"Köprübaşı"]
[null,null,null,null,null,null,null,null,null,null,null,null,null,null,null,null,null,null,{"$f":"'Onay (Kriterden Red-Paraflı)'!S31","v":"İl Müdürü"}]
[]
[]
[]
[]
[]
[]
[]
[]
[]
[]
[]
[]
[]
[]
[]
[]
[]
[]
[]
[]
[]
[]
[]
[]
[]
[]
[]
[{"$f":"'Onay (Kriterden Red-Paraflı)'!A59:Q59","v":"Aile, Çalışma ve Sosyal Hizmetler İl Müdürlüğü MANİSA"},null,null,null,null,null,null,null,null,null,null,null,null,null,null,null,null,{"$f":"'Onay (Kriterden Red-Paraflı)'!R59:AA59","v":"Bilgi için: ……………………"}]
[{"$f":"'Onay (Kriterden Red-Paraflı)'!A60:Q60","v":"Telefon: (0 236) 231 10 01 Faks: (0 236) 231 85 76"},null,null,null,null,null,null,null,null,null,null,null,null,null,null,null,null,{"$f":"'Onay (Kriterden Red-Paraflı)'!R60:AA60","v":"Sosyal Çalışmacı"}]
[{"$f":"'Onay (Kriterden Red-Paraflı)'!A61:Q61","v":"E-posta: manisa@ailevecalisma.gov.tr  İnternet: ailevecalisma.gov.tr/manisa"},null,null,null,null,null,null,null,null,null,null,null,null,null,null,null,null,{"$f":"'Onay (Kriterden Red-Paraflı)'!R61:AA61","v":"Telefon No:(236) 231 10 01/"}]

{"sheet":"Onay (Bakıcıdan Red Paraflı)","index":9,"n_rows":61,"n_cols":29,"rows_kept":61,"cut":false,"hidden":true,"merged":[[60,0,60,16],[54,0,54,2],[54,3,54,12],[55,0,55,2],[55,3,55,12],[56,0,56,2],[56,3,56,12],[58,0,58,16],[58,17,58,26],[59,17,59,26],[60,17,60,26],[41,6,41,19],[17,2,17,26],[18,2,18,6],[18,7,18,16],[18,17,18,24],[19,0,24,26],[25,2,25,26],[38,11,38,14],[39,9,39,16],[40,9,40,16],[29,18,29,26],[30,18,30,26],[59,0,59,16],[6,2,6,12],[7,2,7,12],[9,0,9,26],[10,0,10,26],[13,0,13,1],[13,2,15,26],[0,0,0,26],[1,0,1,26],[2,0,2,26],[4,22,4,23],[5,2,5,12],[5,20,5,26]]}
["T.C."]
["MANİSA VALİLİĞİ"]
["Aile, Çalışma ve Sosyal Hizmetler İl Müdürlüğü"]
[null,null,null,null,null,null,null,null,null,null,null,null,null,null,null,null,null,null,null,null,null,null,null,{"$f":"'Bakım ve Denetim Formu'!D165","v":"2015-09-10"},null,{"$f":"IF(Z5>12,1,Z5)","v":9}]
[null,null,null,null,"   ",null,null,null,null,null,null,null,null,null,null,null,null,null,null,null,{"$f":"DAY(X4)","v":10},{"$f":"MONTH(X4)","v":9},{"$f":"YEAR(X4)","v":2015},null,{"$f":"IF(U5<16,\"15\",\"15\")","v":"15"},{"$f":"IF(U5<16,V5,IF(U5>15,V5+1))","v":9},null,null," 'ın"]
["Sayı:",null,"54499992-35.01",null,null,null,null,null,null,null,null,null,null,null,null,null,null,null,null,null,{"$f":"'Onay(Paraflı)'!U6:AA6","v":"…/09/2015"},null,null,null,null,null,null,null," 'in"]
["Konu :",null,"Engelli Evde Bakım Hizmeti",null,null,null,null,null,null,null,null,null,null,null,null,null,null,null,null,null,null,null,null,null,null,{"$f":"IF(Z5>12,W5+1,W5)","v":2015},null,null," 'un"]
[null,null,{"$f":"CONCATENATE(\"(\",'Bakım ve Denetim Formu'!C10,\")\")","v":"(?)"},null,null,null,null,null,null,null,null,null,null,null,null,null,null,null,null,null,null,null,null,null,null,{"$f":"IF(Z4<10,CONCATENATE(\"0\",Z4,\"\"),Z4)","v":"09"},null,null," 'ün"]
[null,null,null,null,null,null,null,null,null,null,null,null,null,null,null,null,null,null,null,null,null,null,null,null,null,null,null,null," 'nın"]
[{"$f":"CONCATENATE(\"Sayın; \",'Bakım ve Denetim Formu'!C24)","v":"Sayın; ?"},null,null,null,null,null,null,null,null,null,null,null,null,null,null,null,null,null,null,null,null,null,null,null,null,null,null,null," 'nin"]
[{"$f":"CONCATENATE(\"( \",'Bakım ve Denetim Formu'!C31,\" )\")","v":"( ? )"},null,null,null,null,null,null,null,null,null,null,null,null,null,null,null,null,null,null,null,null,null,null,null,null,null,null,null," 'nun"]
[null,null,null,null,null,null,null,null,null,null,null,null,null,null,null,null,null,null,null,null,null,null,null,null,null,null,null,null," 'nün"]
[null,null,null,null,null,null,null,null,null,null,null,null,null,null,null,null,null,null,null,null,null,null,null,null,null,null,null,null,"Müdürlüğümüz"]
["İlgi:",null,"30.07.2006 tarih ve 26244 sayılı R.G yayımlanan \"Bakıma Muhtaç Engellilerin Tespiti ve Bakım Hizmeti Esaslarının Belirlenmesine İlişkin Yönetmelikte Değişiklik Yapılması Hakkında Yönetmelik\"",null,null,null,null,null,null,null,null,null,null,null,null,null,null,null,null,null,null,null,null,null,null,null,null,null,"Ahmetli"]
[null,null,null,null,null,null,null,null,null,null,null,null,null,null,null,null,null,null,null,null,null,null,null,null,null,null,null,null,"Akhisar"]
[null,null,null,null,null,null,null,null,null,null,null,null,null,null,null,null,null,null,null,null,null,null,null,null,null,null,null,null,"Alaşehir"]
[null,null,null,null,null,null,null,null,null,null,null,null,null,null,null,null,null,null,null,null,null,null,null,null,null,null,null,null,"Demirci"]
[null,null,null,null,null,null,null,null,null,null,null,null,null,null,null,null,null,null,null,null,null,null,null,null,null,null,null,null,"Gölmarmara"]
[null,null,"Müdürlüğümüz",null,null,null,null,"Engelli Bakım Hizmetlerine, engelli olan",null,null,null,null,null,null,null,null,null,{"$f":"CONCATENATE('Bakım ve Denetim Formu'!C10)","v":"?"},null,null,null,null,null,null,null," 'ın",null,null,"Gördes"]
["engelli evde bakım yardımından faydalandırılması için yapmış olduğunuz başvurunuz nedeniyle, Bakım Hizmetleri Değerlendirme Heyetince ilgili Yönetmelik doğrultusunda gerekli inceleme yapılmış olup, engellinin bakımını yapmadığınız tespit edildiğinden, bakım yardımından faydalandırılmanızın uygun olmayacağı kanaatine varılmıştır.",null,null,null,null,null,null,null,null,null,null,null,null,null,null,null,null,null,null,null,null,null,null,null,null,null,null,null,"Kırkağaç"]
[null,null,null,null,null,null,null,null,null,null,null,null,null,null,null,null,null,null,null,null,null,null,null,null,null,null,null,null,"Köprübaşı"]
[null,null,null,null,null,null,null,null,null,null,null,null,null,null,null,null,null,null,null,null,null,null,null,null,null,null,null,null,"Kula"]
[null,null,null,null,null,null,null,null,null,null,null,null,null,null,null,null,null,null,null,null,null,null,null,null,null,null,null,null,"Salihli"]
[null,null,null,null,null,null,null,null,null,null,null,null,null,null,null,null,null,null,null,null,null,null,null,null,null,null,null,null,"Sarigöl"]
[null,null,null,null,null,null,null,null,null,null,null,null,null,null,null,null,null,null,null,null,null,null,null,null,null,null,null,null,"Saruhanlı"]
[null,null,"Bilgilerinize rica ederim.",null,null,null,null,null,null,null,null,null,null,null,null,null,null,null,null,null,null,null,null,null,null,null,null,null,"Selendi"]
[null,null,null,null,null,null,null,null,null,null,null,null,null,null,null,null,null,null,null,null,null,null,null,null,null,null,null,null,"Soma"]
[null,null,null,null,null,null,null,null,null,null,null,null,null,null,null,null,null,null,null,null,null,null,null,null,null,null,null,null,"Turgutlu"]
[]
[null,null,null,null,null,null,null,null,null,null,null,null,null,null,null,null,null,null,"………….."]
[null,null,null,null,null,null,null,null,null,null,null,null,null,null,null,null,null,null,"İl Müdürü"]
[]
[]
[]
[]
[]
[]
[]
[]
[]
[]
[]
[]
[]
[]
[]
[]
[]
[]
[]
[]
[]
[]
[]
[{"$f":"IF(D55=\"\",\" \",U6)","v":"…/09/2015"},null,null,"…………….."]
[{"$f":"IF(D56=\"\",\" \",U6)","v":"…/09/2015"},null,null,"…………….."]
[{"$f":"IF(D57=\"\",\" \",U6)","v":"…/09/2015"},null,null,"…………….."]
[]
["Aile, Çalışma ve Sosyal Hizmetler İl Müdürlüğü MANİSA",null,null,null,null,null,null,null,null,null,null,null,null,null,null,null,null,"Bilgi için: ……………………"]
["Telefon: (0 236) 231 10 01 Faks: (0 236) 231 85 76",null,null,null,null,null,null,null,null,null,null,null,null,null,null,null,null,"Sosyal Çalışmacı"]
["E-posta: manisa@ailevecalisma.gov.tr  İnternet: ailevecalisma.gov.tr/manisa",null,null,null,null,null,null,null,null,null,null,null,null,null,null,null,null,"Telefon No:(236) 231 10 01/"]

{"sheet":"Onay (Bakıcıdan Red )","index":10,"n_rows":61,"n_cols":29,"rows_kept":61,"cut":false,"hidden":true,"merged":[[60,0,60,16],[54,0,54,2],[54,3,54,12],[55,0,55,2],[55,3,55,12],[58,0,58,16],[58,17,58,26],[59,17,59,26],[60,17,60,26],[41,6,41,19],[17,2,17,26],[18,2,18,6],[18,7,18,16],[18,17,18,24],[19,0,24,26],[25,2,25,26],[38,11,38,14],[39,9,39,16],[40,9,40,16],[29,18,29,26],[30,18,30,26],[59,0,59,16],[6,2,6,12],[7,2,7,12],[9,0,9,26],[10,0,10,26],[13,0,13,1],[13,2,15,26],[0,0,0,26],[1,0,1,26],[2,0,2,26],[4,22,4,23],[5,2,5,12],[5,20,5,26]]}
[{"$f":"'Onay (Bakıcıdan Red Paraflı)'!A1:AA1","v":"T.C."}]
[{"$f":"'Onay (Bakıcıdan Red Paraflı)'!A2:AA2","v":"MANİSA VALİLİĞİ"}]
[{"$f":"'Onay (Bakıcıdan Red Paraflı)'!A3:AA3","v":"Aile, Çalışma ve Sosyal Hizmetler İl Müdürlüğü"}]
[null,null,null,null,null,null,null,null,null,null,null,null,null,null,null,null,null,null,null,null,null,null,null,{"$f":"'Bakım ve Denetim Formu'!D165","v":"2015-09-10"},null,{"$f":"IF(Z5>12,1,Z5)","v":9}]
[null,null,null,null,"   ",null,null,null,null,null,null,null,null,null,null,null,null,null,null,null,{"$f":"DAY(X4)","v":10},{"$f":"MONTH(X4)","v":9},{"$f":"YEAR(X4)","v":2015},null,{"$f":"IF(U5<16,\"15\",\"15\")","v":"15"},{"$f":"IF(U5<16,V5,IF(U5>15,V5+1))","v":9},null,null," 'ın"]
["Sayı:",null,"54499992-35.01",null,null,null,null,null,null,null,null,null,null,null,null,null,null,null,null,null,{"$f":"'Onay(Paraflı)'!U6:AA6","v":"…/09/2015"},null,null,null,null,null,null,null," 'in"]
["Konu :",null,"Engelli Evde Bakım Hizmeti",null,null,null,null,null,null,null,null,null,null,null,null,null,null,null,null,null,null,null,null,null,null,{"$f":"IF(Z5>12,W5+1,W5)","v":2015},null,null," 'un"]
[null,null,{"$f":"CONCATENATE(\"(\",'Bakım ve Denetim Formu'!C10,\")\")","v":"(?)"},null,null,null,null,null,null,null,null,null,null,null,null,null,null,null,null,null,null,null,null,null,null,null,null,null," 'ün"]
[null,null,null,null,null,null,null,null,null,null,null,null,null,null,null,null,null,null,null,null,null,null,null,null,null,null,null,null," 'nın"]
[{"$f":"CONCATENATE(\"Sayın; \",'Bakım ve Denetim Formu'!C24)","v":"Sayın; ?"},null,null,null,null,null,null,null,null,null,null,null,null,null,null,null,null,null,null,null,null,null,null,null,null,null,null,null," 'nin"]
[{"$f":"CONCATENATE(\"( \",'Bakım ve Denetim Formu'!C31,\" )\")","v":"( ? )"},null,null,null,null,null,null,null,null,null,null,null,null,null,null,null,null,null,null,null,null,null,null,null,null,null,null,null," 'nun"]
[null,null,null,null,null,null,null,null,null,null,null,null,null,null,null,null,null,null,null,null,null,null,null,null,null,null,null,null," 'nün"]
[null,null,null,null,null,null,null,null,null,null,null,null,null,null,null,null,null,null,null,null,null,null,null,null,null,null,null,null,"Müdürlüğümüz"]
["İlgi:",null,"30.07.2006 tarih ve 26244 sayılı R.G yayımlanan \"Bakıma Muhtaç Engellilerin Tespiti ve Bakım Hizmeti Esaslarının Belirlenmesine İlişkin Yönetmelikte Değişiklik Yapılması Hakkında Yönetmelik\"",null,null,null,null,null,null,null,null,null,null,null,null,null,null,null,null,null,null,null,null,null,null,null,null,null,"Yetiştirme Yurdu"]
[null,null,null,null,null,null,null,null,null,null,null,null,null,null,null,null,null,null,null,null,null,null,null,null,null,null,null,null,"Çocuk Yuvası"]
[null,null,null,null,null,null,null,null,null,null,null,null,null,null,null,null,null,null,null,null,null,null,null,null,null,null,null,null,"Selendi"]
[null,null,null,null,null,null,null,null,null,null,null,null,null,null,null,null,null,null,null,null,null,null,null,null,null,null,null,null,"Kula"]
[null,null,null,null,null,null,null,null,null,null,null,null,null,null,null,null,null,null,null,null,null,null,null,null,null,null,null,null,"Salihli"]
[null,null,{"$f":"'Onay (Bakıcıdan Red Paraflı)'!C19","v":"Müdürlüğümüz"},null,null,null,null,"Engelli Bakım Hizmetlerine, engelli olan",null,null,null,null,null,null,null,null,null,{"$f":"CONCATENATE('Bakım ve Denetim Formu'!C10)","v":"?"},null,null,null,null,null,null,null,{"$f":"'Onay (Bakıcıdan Red Paraflı)'!Z19","v":" 'ın"},null,null,"Turgutlu"]
["engelli evde bakım yardımından faydalandırılması için yapmış olduğunuz başvurunuz nedeniyle, Bakım Hizmetleri Değerlendirme Heyetince ilgili Yönetmelik doğrultusunda gerekli inceleme yapılmış olup, engellinin bakımını yapmadığınız tespit edildiğinden, bakım yardımından faydalandırılmanızın uygun olmayacağı kanaatine varılmıştır.",null,null,null,null,null,null,null,null,null,null,null,null,null,null,null,null,null,null,null,null,null,null,null,null,null,null,null,"Ahmetli"]
[null,null,null,null,null,null,null,null,null,null,null,null,null,null,null,null,null,null,null,null,null,null,null,null,null,null,null,null,"Alaşehir"]
[null,null,null,null,null,null,null,null,null,null,null,null,null,null,null,null,null,null,null,null,null,null,null,null,null,null,null,null,"Sarigöl"]
[null,null,null,null,null,null,null,null,null,null,null,null,null,null,null,null,null,null,null,null,null,null,null,null,null,null,null,null,"Soma"]
[null,null,null,null,null,null,null,null,null,null,null,null,null,null,null,null,null,null,null,null,null,null,null,null,null,null,null,null,"Gördes"]
[null,null,null,null,null,null,null,null,null,null,null,null,null,null,null,null,null,null,null,null,null,null,null,null,null,null,null,null,"Demirci"]
[null,null,"Bilgilerinize rica ederim.",null,null,null,null,null,null,null,null,null,null,null,null,null,null,null,null,null,null,null,null,null,null,null,null,null,"Akhisar"]
[null,null,null,null,null,null,null,null,null,null,null,null,null,null,null,null,null,null,null,null,null,null,null,null,null,null,null,null,"Saruhanlı"]
[null,null,null,null,null,null,null,null,null,null,null,null,null,null,null,null,null,null,null,null,null,null,null,null,null,null,null,null,"Kırkağaç"]
[null,null,null,null,null,null,null,null,null,null,null,null,null,null,null,null,null,null,null,null,null,null,null,null,null,null,null,null,"Gölmarmara"]
[null,null,null,null,null,null,null,null,null,null,null,null,null,null,null,null,null,null,"…………..",null,null,null,null,null,null,null,null,null,"Köprübaşı"]
[null,null,null,null,null,null,null,null,null,null,null,null,null,null,null,null,null,null,"İl Müdürü"]
[]
[]
[]
[]
[]
[]
[]
[]
[]
[]
[]
[]
[]
[]
[]
[]
[]
[]
[]
[]
[]
[]
[]
[]
[]
[]
[]
[{"$f":"'Onay (Bakıcıdan Red Paraflı)'!A59:Q59","v":"Aile, Çalışma ve Sosyal Hizmetler İl Müdürlüğü MANİSA"},null,null,null,null,null,null,null,null,null,null,null,null,null,null,null,null,{"$f":"'Onay (Bakıcıdan Red Paraflı)'!R59:AA59","v":"Bilgi için: ……………………"}]
[{"$f":"'Onay (Bakıcıdan Red Paraflı)'!A60:Q60","v":"Telefon: (0 236) 231 10 01 Faks: (0 236) 231 85 76"},null,null,null,null,null,null,null,null,null,null,null,null,null,null,null,null,{"$f":"'Onay (Bakıcıdan Red Paraflı)'!R60:AA60","v":"Sosyal Çalışmacı"}]
[{"$f":"'Onay (Bakıcıdan Red Paraflı)'!A61:Q61","v":"E-posta: manisa@ailevecalisma.gov.tr  İnternet: ailevecalisma.gov.tr/manisa"},null,null,null,null,null,null,null,null,null,null,null,null,null,null,null,null,{"$f":"'Onay (Bakıcıdan Red Paraflı)'!R61:AA61","v":"Telefon No:(236) 231 10 01/"}]

{"sheet":"Onay (Kriter,Gelir Red-Paraflı)","index":11,"n_rows":61,"n_cols":29,"rows_kept":61,"cut":false,"hidden":true,"merged":[[60,17,60,26],[41,6,41,19],[13,0,13,1],[13,2,15,26],[59,0,59,16],[17,2,17,26],[18,2,18,6],[18,7,18,16],[18,17,18,24],[29,18,29,26],[30,18,30,26],[58,0,58,16],[58,17,58,26],[59,17,59,26],[60,0,60,16],[19,0,25,26],[56,0,56,2],[56,3,56,12],[40,9,40,16],[6,2,6,12],[7,2,7,12],[9,0,9,26],[10,0,10,26],[26,2,26,26],[54,0,54,2],[54,3,54,12],[55,0,55,2],[55,3,55,12],[38,11,38,14],[39,9,39,16],[0,0,0,26],[1,0,1,26],[2,0,2,26],[4,22,4,23],[5,2,5,12],[5,20,5,26]]}
["T.C."]
["MANİSA VALİLİĞİ"]
["Aile, Çalışma ve Sosyal Hizmetler İl Müdürlüğü"]
[null,null,null,null,null,null,null,null,null,null,null,null,null,null,null,null,null,null,null,null,null,null,null,{"$f":"'Bakım ve Denetim Formu'!D165","v":"2015-09-10"},null,{"$f":"IF(Z5>12,1,Z5)","v":9}]
[null,null,null,null,"   ",null,null,null,null,null,null,null,null,null,null,null,null,null,null,null,{"$f":"DAY(X4)","v":10},{"$f":"MONTH(X4)","v":9},{"$f":"YEAR(X4)","v":2015},null,{"$f":"IF(U5<16,\"15\",\"15\")","v":"15"},{"$f":"IF(U5<16,V5,IF(U5>15,V5+1))","v":9},null,null," 'ın"]
["Sayı:",null,"54499992-35.01",null,null,null,null,null,null,null,null,null,null,null,null,null,null,null,null,null,{"$f":"'Onay(Paraflı)'!U6:AA6","v":"…/09/2015"},null,null,null,null,null,null,null," 'in"]
["Konu :",null,"Engelli Evde Bakım Hizmeti",null,null,null,null,null,null,null,null,null,null,null,null,null,null,null,null,null,null,null,null,null,null,{"$f":"IF(Z5>12,W5+1,W5)","v":2015},null,null," 'un"]
[null,null,{"$f":"CONCATENATE(\"(\",'Bakım ve Denetim Formu'!C10,\")\")","v":"(?)"},null,null,null,null,null,null,null,null,null,null,null,null,null,null,null,null,null,null,null,null,null,null,{"$f":"IF(Z4<10,CONCATENATE(\"0\",Z4,\"\"),Z4)","v":"09"},null,null," 'ün"]
[null,null,null,null,null,null,null,null,null,null,null,null,null,null,null,null,null,null,null,null,null,null,null,null,null,null,null,null," 'nın"]
[{"$f":"CONCATENATE(\"Sayın; \",'Bakım ve Denetim Formu'!C24)","v":"Sayın; ?"},null,null,null,null,null,null,null,null,null,null,null,null,null,null,null,null,null,null,null,null,null,null,null,null,null,null,null," 'nin"]
[{"$f":"CONCATENATE(\"( \",'Bakım ve Denetim Formu'!C31,\" )\")","v":"( ? )"},null,null,null,null,null,null,null,null,null,null,null,null,null,null,null,null,null,null,null,null,null,null,null,null,null,null,null," 'nun"]
[null,null,null,null,null,null,null,null,null,null,null,null,null,null,null,null,null,null,null,null,null,null,null,null,null,null,null,null," 'nün"]
[null,null,null,null,null,null,null,null,null,null,null,null,null,null,null,null,null,null,null,null,null,null,null,null,null,null,null,null,"Müdürlüğümüz"]
["İlgi:",null,"30.07.2006 tarih ve 26244 sayılı R.G yayımlanan \"Bakıma Muhtaç Engellilerin Tespiti ve Bakım Hizmeti Esaslarının Belirlenmesine İlişkin Yönetmelikte Değişiklik Yapılması Hakkında Yönetmelik\"",null,null,null,null,null,null,null,null,null,null,null,null,null,null,null,null,null,null,null,null,null,null,null,null,null,"Ahmetli"]
[null,null,null,null,null,null,null,null,null,null,null,null,null,null,null,null,null,null,null,null,null,null,null,null,null,null,null,null,"Akhisar"]
[null,null,null,null,null,null,null,null,null,null,null,null,null,null,null,null,null,null,null,null,null,null,null,null,null,null,null,null,"Alaşehir"]
[null,null,null,null,null,null,null,null,null,null,null,null,null,null,null,null,null,null,null,null,null,null,null,null,null,null,null,null,"Demirci"]
[null,null,null,null,null,null,null,null,null,null,null,null,null,null,null,null,null,null,null,null,null,null,null,null,null,null,null,null,"Gölmarmara"]
[null,null,"Müdürlüğümüz",null,null,null,null,"Engelli Bakım Hizmetlerine, engelli olan",null,null,null,null,null,null,null,null,null,{"$f":"CONCATENATE('Bakım ve Denetim Formu'!C10)","v":"?"},null,null,null,null,null,null,null," 'nun",null,null,"Gördes"]
["engelli evde bakım yardımından faydalandırılması için yapmış olduğunuz başvurunuz nedeniyle Bakım Hizmetleri Değerlendirme Heyetince ilgili Yönetmelik doğrultusunda gerekli inceleme yapılmış olup, engellinin günlük hayatın alışılmış tekrar eden gereksinimlerini başkasının yardım ve bakımına ihtiyaç duymadan sürdürdüğü tespit edildiğinden ve ailenizde kişi başına düşen gelirin asgari ücreitn 2/3'ünden fazla olduğu tespit edildiğinden ilgili yönetmelik hükmünce evde bakım yardımından faydalanmanız uygun bulunmamıştır.",null,null,null,null,null,null,null,null,null,null,null,null,null,null,null,null,null,null,null,null,null,null,null,null,null,null,null,"Kırkağaç"]
[null,null,null,null,null,null,null,null,null,null,null,null,null,null,null,null,null,null,null,null,null,null,null,null,null,null,null,null,"Köprübaşı"]
[null,null,null,null,null,null,null,null,null,null,null,null,null,null,null,null,null,null,null,null,null,null,null,null,null,null,null,null,"Kula"]
[null,null,null,null,null,null,null,null,null,null,null,null,null,null,null,null,null,null,null,null,null,null,null,null,null,null,null,null,"Salihli"]
[null,null,null,null,null,null,null,null,null,null,null,null,null,null,null,null,null,null,null,null,null,null,null,null,null,null,null,null,"Sarigöl"]
[null,null,null,null,null,null,null,null,null,null,null,null,null,null,null,null,null,null,null,null,null,null,null,null,null,null,null,null,"Saruhanlı"]
[null,null,null,null,null,null,null,null,null,null,null,null,null,null,null,null,null,null,null,null,null,null,null,null,null,null,null,null,"Selendi"]
[null,null,"Bilgilerinize rica ederim.",null,null,null,null,null,null,null,null,null,null,null,null,null,null,null,null,null,null,null,null,null,null,null,null,null,"Soma"]
[null,null,null,null,null,null,null,null,null,null,null,null,null,null,null,null,null,null,null,null,null,null,null,null,null,null,null,null,"Turgutlu"]
[]
[null,null,null,null,null,null,null,null,null,null,null,null,null,null,null,null,null,null,"………….."]
[null,null,null,null,null,null,null,null,null,null,null,null,null,null,null,null,null,null,"İl Müdürü"]
[]
[]
[]
[]
[]
[]
[]
[]
[]
[]
[]
[]
[]
[]
[]
[]
[]
[]
[]
[]
[]
[]
[]
[{"$f":"IF(D55=\"\",\" \",U6)","v":"…/09/2015"},null,null,"…………….."]
[{"$f":"IF(D56=\"\",\" \",U6)","v":"…/09/2015"},null,null,"…………….."]
[{"$f":"IF(D57=\"\",\" \",U6)","v":"…/09/2015"},null,null,"…………….."]
[]
["Aile, Çalışma ve Sosyal Hizmetler İl Müdürlüğü MANİSA",null,null,null,null,null,null,null,null,null,null,null,null,null,null,null,null,"Bilgi için: ……………………"]
["Telefon: (0 236) 231 10 01 Faks: (0 236) 231 85 76",null,null,null,null,null,null,null,null,null,null,null,null,null,null,null,null,"Sosyal Çalışmacı"]
["E-posta: manisa@ailevecalisma.gov.tr  İnternet: ailevecalisma.gov.tr/manisa",null,null,null,null,null,null,null,null,null,null,null,null,null,null,null,null,"Telefon No:(236) 231 10 01/"]

{"sheet":"Onay (Kriter,Gelir Red)","index":12,"n_rows":61,"n_cols":29,"rows_kept":61,"cut":false,"hidden":true,"merged":[[60,0,60,16],[54,0,54,2],[54,3,54,12],[55,0,55,2],[55,3,55,12],[58,0,58,16],[58,17,58,26],[59,17,59,26],[60,17,60,26],[41,6,41,19],[17,2,17,26],[18,2,18,6],[18,7,18,16],[18,17,18,24],[19,0,25,26],[26,2,26,26],[38,11,38,14],[39,9,39,16],[40,9,40,16],[29,18,29,26],[30,18,30,26],[59,0,59,16],[6,2,6,12],[7,2,7,12],[9,0,9,26],[10,0,10,26],[13,0,13,1],[13,2,15,26],[0,0,0,26],[1,0,1,26],[2,0,2,26],[4,22,4,23],[5,2,5,12],[5,20,5,26]]}
[{"$f":"'Onay (Kriter,Gelir Red-Paraflı)'!A1:AA1","v":"T.C."}]
[{"$f":"'Onay (Kriter,Gelir Red-Paraflı)'!A2:AA2","v":"MANİSA VALİLİĞİ"}]
[{"$f":"'Onay (Kriter,Gelir Red-Paraflı)'!A3:AA3","v":"Aile, Çalışma ve Sosyal Hizmetler İl Müdürlüğü"}]
[null,null,null,null,null,null,null,null,null,null,null,null,null,null,null,null,null,null,null,null,null,null,null,{"$f":"'Bakım ve Denetim Formu'!D165","v":"2015-09-10"},null,{"$f":"IF(Z5>12,1,Z5)","v":9}]
[null,null,null,null,"   ",null,null,null,null,null,null,null,null,null,null,null,null,null,null,null,{"$f":"DAY(X4)","v":10},{"$f":"MONTH(X4)","v":9},{"$f":"YEAR(X4)","v":2015},null,{"$f":"IF(U5<16,\"15\",\"15\")","v":"15"},{"$f":"IF(U5<16,V5,IF(U5>15,V5+1))","v":9},null,null," 'ın"]
["Sayı:",null,"54499992-35.01",null,null,null,null,null,null,null,null,null,null,null,null,null,null,null,null,null,{"$f":"'Onay(Paraflı)'!U6:AA6","v":"…/09/2015"},null,null,null,null,null,null,null," 'in"]
["Konu :",null,"Engelli Evde Bakım Hizmeti",null,null,null,null,null,null,null,null,null,null,null,null,null,null,null,null,null,null,null,null,null,null,{"$f":"IF(Z5>12,W5+1,W5)","v":2015},null,null," 'un"]
[null,null,{"$f":"CONCATENATE(\"(\",'Bakım ve Denetim Formu'!C10,\")\")","v":"(?)"},null,null,null,null,null,null,null,null,null,null,null,null,null,null,null,null,null,null,null,null,null,null,null,null,null," 'ün"]
[null,null,null,null,null,null,null,null,null,null,null,null,null,null,null,null,null,null,null,null,null,null,null,null,null,null,null,null," 'nın"]
[{"$f":"CONCATENATE(\"Sayın; \",'Bakım ve Denetim Formu'!C24)","v":"Sayın; ?"},null,null,null,null,null,null,null,null,null,null,null,null,null,null,null,null,null,null,null,null,null,null,null,null,null,null,null," 'nin"]
[{"$f":"CONCATENATE(\"( \",'Bakım ve Denetim Formu'!C31,\" )\")","v":"( ? )"},null,null,null,null,null,null,null,null,null,null,null,null,null,null,null,null,null,null,null,null,null,null,null,null,null,null,null," 'nun"]
[null,null,null,null,null,null,null,null,null,null,null,null,null,null,null,null,null,null,null,null,null,null,null,null,null,null,null,null," 'nün"]
[null,null,null,null,null,null,null,null,null,null,null,null,null,null,null,null,null,null,null,null,null,null,null,null,null,null,null,null,"Müdürlüğümüz"]
["İlgi:",null,"30.07.2006 tarih ve 26244 sayılı R.G yayımlanan \"Bakıma Muhtaç Engellilerin Tespiti ve Bakım Hizmeti Esaslarının Belirlenmesine İlişkin Yönetmelikte Değişiklik Yapılması Hakkında Yönetmelik\"",null,null,null,null,null,null,null,null,null,null,null,null,null,null,null,null,null,null,null,null,null,null,null,null,null,"Yetiştirme Yurdu"]
[null,null,null,null,null,null,null,null,null,null,null,null,null,null,null,null,null,null,null,null,null,null,null,null,null,null,null,null,"Çocuk Yuvası"]
[null,null,null,null,null,null,null,null,null,null,null,null,null,null,null,null,null,null,null,null,null,null,null,null,null,null,null,null,"Selendi"]
[null,null,null,null,null,null,null,null,null,null,null,null,null,null,null,null,null,null,null,null,null,null,null,null,null,null,null,null,"Kula"]
[null,null,null,null,null,null,null,null,null,null,null,null,null,null,null,null,null,null,null,null,null,null,null,null,null,null,null,null,"Salihli"]
[null,null,{"$f":"'Onay (Kriter,Gelir Red-Paraflı)'!C19","v":"Müdürlüğümüz"},null,null,null,null,"Engelli Bakım Hizmetlerine, engelli olan",null,null,null,null,null,null,null,null,null,{"$f":"CONCATENATE('Bakım ve Denetim Formu'!C10)","v":"?"},null,null,null,null,null,null,null,{"$f":"'Onay (Kriter,Gelir Red-Paraflı)'!Z19","v":" 'nun"},null,null,"Turgutlu"]
["engelli evde bakım yardımından faydalandırılması için yapmış olduğunuz başvurunuz nedeniyle Bakım Hizmetleri Değerlendirme Heyetince ilgili Yönetmelik doğrultusunda gerekli inceleme yapılmış olup, engellinin günlük hayatın alışılmış tekrar eden gereksinimlerini başkasının yardım ve bakımına ihtiyaç duymadan sürdürdüğü tespit edildiğinden ve ailenizde kişi başına düşen gelirin asgari ücreitn 2/3'ünden fazla olduğu tespit edildiğinden ilgili yönetmelik hükmünce evde bakım yardımından faydalanmanız mümkün değildir.",null,null,null,null,null,null,null,null,null,null,null,null,null,null,null,null,null,null,null,null,null,null,null,null,null,null,null,"Ahmetli"]
[null,null,null,null,null,null,null,null,null,null,null,null,null,null,null,null,null,null,null,null,null,null,null,null,null,null,null,null,"Alaşehir"]
[null,null,null,null,null,null,null,null,null,null,null,null,null,null,null,null,null,null,null,null,null,null,null,null,null,null,null,null,"Sarigöl"]
[null,null,null,null,null,null,null,null,null,null,null,null,null,null,null,null,null,null,null,null,null,null,null,null,null,null,null,null,"Soma"]
[null,null,null,null,null,null,null,null,null,null,null,null,null,null,null,null,null,null,null,null,null,null,null,null,null,null,null,null,"Gördes"]
[null,null,null,null,null,null,null,null,null,null,null,null,null,null,null,null,null,null,null,null,null,null,null,null,null,null,null,null,"Demirci"]
[null,null,null,null,null,null,null,null,null,null,null,null,null,null,null,null,null,null,null,null,null,null,null,null,null,null,null,null,"Akhisar"]
[null,null,"Bilgilerinize rica ederim.",null,null,null,null,null,null,null,null,null,null,null,null,null,null,null,null,null,null,null,null,null,null,null,null,null,"Saruhanlı"]
[null,null,null,null,null,null,null,null,null,null,null,null,null,null,null,null,null,null,null,null,null,null,null,null,null,null,null,null,"Kırkağaç"]
[null,null,null,null,null,null,null,null,null,null,null,null,null,null,null,null,null,null,null,null,null,null,null,null,null,null,null,null,"Gölmarmara"]
[null,null,null,null,null,null,null,null,null,null,null,null,null,null,null,null,null,null,{"$f":"'Onay (Kriter,Gelir Red-Paraflı)'!S30","v":"………….."},null,null,null,null,null,null,null,null,null,"Köprübaşı"]
[null,null,null,null,null,null,null,null,null,null,null,null,null,null,null,null,null,null,{"$f":"'Onay (Kriter,Gelir Red-Paraflı)'!S31","v":"İl Müdürü"}]
[]
[]
[]
[]
[]
[]
[]
[]
[]
[]
[]
[]
[]
[]
[]
[]
[]
[]
[]
[]
[]
[]
[]
[]
[]
[]
[]
[{"$f":"'Onay (Kriter,Gelir Red-Paraflı)'!A59:Q59","v":"Aile, Çalışma ve Sosyal Hizmetler İl Müdürlüğü MANİSA"},null,null,null,null,null,null,null,null,null,null,null,null,null,null,null,null,{"$f":"'Onay (Kriter,Gelir Red-Paraflı)'!R59:AA59","v":"Bilgi için: ……………………"}]
[{"$f":"'Onay (Kriter,Gelir Red-Paraflı)'!A60:Q60","v":"Telefon: (0 236) 231 10 01 Faks: (0 236) 231 85 76"},null,null,null,null,null,null,null,null,null,null,null,null,null,null,null,null,{"$f":"'Onay (Kriter,Gelir Red-Paraflı)'!R60:AA60","v":"Sosyal Çalışmacı"}]
[{"$f":"'Onay (Kriter,Gelir Red-Paraflı)'!A61:Q61","v":"E-posta: manisa@ailevecalisma.gov.tr  İnternet: ailevecalisma.gov.tr/manisa"},null,null,null,null,null,null,null,null,null,null,null,null,null,null,null,null,{"$f":"'Onay (Kriter,Gelir Red-Paraflı)'!R61:AA61","v":"Telefon No:(236) 231 10 01/"}]

{"sheet":"Onay (Özel Bakım Mer-Paraflı)","index":13,"n_rows":61,"n_cols":29,"rows_kept":61,"cut":false,"hidden":true,"merged":[[0,0,0,26],[1,0,1,26],[2,0,2,26],[4,22,4,23],[5,2,5,12],[5,20,5,26],[6,2,6,12],[7,2,7,12],[9,0,9,26],[10,0,10,26],[13,0,13,1],[13,2,15,26],[17,2,17,26],[18,2,18,6],[18,7,18,16],[18,17,18,24],[19,0,23,26],[24,2,24,26],[38,11,38,14],[39,9,39,16],[29,18,29,26],[30,18,30,26],[40,9,40,16],[41,6,41,19],[56,3,56,12],[59,0,59,16],[60,0,60,16],[54,0,54,2],[54,3,54,12],[55,0,55,2],[55,3,55,12],[56,0,56,2],[58,0,58,16],[58,17,58,26],[59,17,59,26],[60,17,60,26]]}
["T.C."]
["MANİSA VALİLİĞİ"]
["Aile, Çalışma ve Sosyal Hizmetler İl Müdürlüğü"]
[null,null,null,null,null,null,null,null,null,null,null,null,null,null,null,null,null,null,null,null,null,null,null,{"$f":"'Bakım ve Denetim Formu'!D165","v":"2015-09-10"},null,{"$f":"IF(Z5>12,1,Z5)","v":9}]
[null,null,null,null,"   ",null,null,null,null,null,null,null,null,null,null,null,null,null,null,null,{"$f":"DAY(X4)","v":10},{"$f":"MONTH(X4)","v":9},{"$f":"YEAR(X4)","v":2015},null,{"$f":"IF(U5<16,\"15\",\"15\")","v":"15"},{"$f":"IF(U5<16,V5,IF(U5>15,V5+1))","v":9},null,null," 'ın"]
["Sayı:",null,"54499992-35.01",null,null,null,null,null,null,null,null,null,null,null,null,null,null,null,null,null,{"$f":"'Onay(Paraflı)'!U6:AA6","v":"…/09/2015"},null,null,null,null,null,null,null," 'in"]
["Konu :",null,"Engelli Evde Bakım Hizmeti",null,null,null,null,null,null,null,null,null,null,null,null,null,null,null,null,null,null,null,null,null,null,{"$f":"IF(Z5>12,W5+1,W5)","v":2015},null,null," 'un"]
[null,null,{"$f":"CONCATENATE(\"(\",'Bakım ve Denetim Formu'!C10,\")\")","v":"(?)"},null,null,null,null,null,null,null,null,null,null,null,null,null,null,null,null,null,null,null,null,null,null,{"$f":"IF(Z4<10,CONCATENATE(\"0\",Z4,\"\"),Z4)","v":"09"},null,null," 'ün"]
[null,null,null,null,null,null,null,null,null,null,null,null,null,null,null,null,null,null,null,null,null,null,null,null,null,null,null,null," 'nın"]
[{"$f":"CONCATENATE(\"Sayın; \",'Bakım ve Denetim Formu'!C24)","v":"Sayın; ?"},null,null,null,null,null,null,null,null,null,null,null,null,null,null,null,null,null,null,null,null,null,null,null,null,null,null,null," 'nin"]
[{"$f":"CONCATENATE(\"( \",'Bakım ve Denetim Formu'!C31,\" )\")","v":"( ? )"},null,null,null,null,null,null,null,null,null,null,null,null,null,null,null,null,null,null,null,null,null,null,null,null,null,null,null," 'nun"]
[null,null,null,null,null,null,null,null,null,null,null,null,null,null,null,null,null,null,null,null,null,null,null,null,null,null,null,null," 'nün"]
[null,null,null,null,null,null,null,null,null,null,null,null,null,null,null,null,null,null,null,null,null,null,null,null,null,null,null,null,"Müdürlüğümüz"]
["İlgi:",null,"30.07.2006 tarih ve 26244 sayılı R.G yayımlanan \"Bakıma Muhtaç Engellilerin Tespiti ve Bakım Hizmeti Esaslarının Belirlenmesine İlişkin Yönetmelikte Değişiklik Yapılması Hakkında Yönetmelik\"",null,null,null,null,null,null,null,null,null,null,null,null,null,null,null,null,null,null,null,null,null,null,null,null,null,"Ahmetli"]
[null,null,null,null,null,null,null,null,null,null,null,null,null,null,null,null,null,null,null,null,null,null,null,null,null,null,null,null,"Akhisar"]
[null,null,null,null,null,null,null,null,null,null,null,null,null,null,null,null,null,null,null,null,null,null,null,null,null,null,null,null,"Alaşehir"]
[null,null,null,null,null,null,null,null,null,null,null,null,null,null,null,null,null,null,null,null,null,null,null,null,null,null,null,null,"Demirci"]
[null,null,null,null,null,null,null,null,null,null,null,null,null,null,null,null,null,null,null,null,null,null,null,null,null,null,null,null,"Gölmarmara"]
[null,null,"Müdürlüğümüz",null,null,null,null,"Engelli Bakım Hizmetlerine, özürlü olan",null,null,null,null,null,null,null,null,null,{"$f":"CONCATENATE('Bakım ve Denetim Formu'!C10)","v":"?"},null,null,null,null,null,null,null," 'nın",null,null,"Gördes"]
["engelli evde bakım yardımından faydalandırılması için yapmış olduğunuz başvurunuz nedeniyle Bakım Hizmetleri Değerlendirme Heyetince ilgili Yönetmelik doğrultusunda gerekli inceleme yapılmış olup,  engellinin bakımını yapmadığınız, engelli ile birebir ilgilenmediğiniz tespit edilmiştir. Mevcut şartlar altında engellinin özel bakım merkezinde (her gün 24 saat) yatılı olarak bakılması uygun görülmüştür.",null,null,null,null,null,null,null,null,null,null,null,null,null,null,null,null,null,null,null,null,null,null,null,null,null,null,null,"Kırkağaç"]
[null,null,null,null,null,null,null,null,null,null,null,null,null,null,null,null,null,null,null,null,null,null,null,null,null,null,null,null,"Köprübaşı"]
[null,null,null,null,null,null,null,null,null,null,null,null,null,null,null,null,null,null,null,null,null,null,null,null,null,null,null,null,"Kula"]
[null,null,null,null,null,null,null,null,null,null,null,null,null,null,null,null,null,null,null,null,null,null,null,null,null,null,null,null,"Salihli"]
[null,null,null,null,null,null,null,null,null,null,null,null,null,null,null,null,null,null,null,null,null,null,null,null,null,null,null,null,"Sarigöl"]
[null,null,"Bilgilerinize rica ederim.",null,null,null,null,null,null,null,null,null,null,null,null,null,null,null,null,null,null,null,null,null,null,null,null,null,"Saruhanlı"]
[null,null,null,null,null,null,null,null,null,null,null,null,null,null,null,null,null,null,null,null,null,null,null,null,null,null,null,null,"Selendi"]
[null,null,null,null,null,null,null,null,null,null,null,null,null,null,null,null,null,null,null,null,null,null,null,null,null,null,null,null,"Soma"]
[null,null,null,null,null,null,null,null,null,null,null,null,null,null,null,null,null,null,null,null,null,null,null,null,null,null,null,null,"Turgutlu"]
[]
[null,null,null,null,null,null,null,null,null,null,null,null,null,null,null,null,null,null,"………….."]
[null,null,null,null,null,null,null,null,null,null,null,null,null,null,null,null,null,null,"İl Müdürü"]
[]
[]
[]
[]
[]
[]
[]
[]
[]
[]
[]
[]
[]
[]
[]
[]
[]
[]
[]
[]
[]
[]
[]
[{"$f":"IF(D55=\"\",\" \",U6)","v":"…/09/2015"},null,null,"…………….."]
[{"$f":"IF(D56=\"\",\" \",U6)","v":"…/09/2015"},null,null,"…………….."]
[{"$f":"IF(D57=\"\",\" \",U6)","v":"…/09/2015"},null,null,"…………….."]
[]
["Aile, Çalışma ve Sosyal Hizmetler İl Müdürlüğü MANİSA",null,null,null,null,null,null,null,null,null,null,null,null,null,null,null,null,"Bilgi için: ……………………"]
["Telefon: (0 236) 231 10 01 Faks: (0 236) 231 85 76",null,null,null,null,null,null,null,null,null,null,null,null,null,null,null,null,"Sosyal Çalışmacı"]
["E-posta: manisa@ailevecalisma.gov.tr  İnternet: ailevecalisma.gov.tr/manisa",null,null,null,null,null,null,null,null,null,null,null,null,null,null,null,null,"Telefon No:(236) 231 10 01/"]

{"sheet":"Onay (Özel Bakım Mer)","index":14,"n_rows":109,"n_cols":29,"rows_kept":109,"cut":false,"hidden":true,"merged":[[0,0,0,26],[1,0,1,26],[2,0,2,26],[4,22,4,23],[5,2,5,12],[5,20,5,26],[6,2,6,12],[7,2,7,12],[9,0,9,26],[10,0,10,26],[13,0,13,1],[13,2,15,26],[17,2,17,26],[18,2,18,6],[18,7,18,16],[18,17,18,24],[19,0,23,26],[24,2,24,26],[38,11,38,14],[39,9,39,16],[29,18,29,26],[30,18,30,26],[40,9,40,16],[41,6,41,19],[59,0,59,16],[60,0,60,16],[54,0,54,2],[54,3,54,12],[55,0,55,2],[55,3,55,12],[58,0,58,16],[58,17,58,26],[59,17,59,26],[60,17,60,26]]}
[{"$f":"'Onay (Özel Bakım Mer-Paraflı)'!A1:AA1","v":"T.C."}]
[{"$f":"'Onay (Özel Bakım Mer-Paraflı)'!A2:AA2","v":"MANİSA VALİLİĞİ"}]
[{"$f":"'Onay (Özel Bakım Mer-Paraflı)'!A3:AA3","v":"Aile, Çalışma ve Sosyal Hizmetler İl Müdürlüğü"}]
[null,null,null,null,null,null,null,null,null,null,null,null,null,null,null,null,null,null,null,null,null,null,null,{"$f":"'Bakım ve Denetim Formu'!D165","v":"2015-09-10"},null,{"$f":"IF(Z5>12,1,Z5)","v":9}]
[null,null,null,null,"   ",null,null,null,null,null,null,null,null,null,null,null,null,null,null,null,{"$f":"DAY(X4)","v":10},{"$f":"MONTH(X4)","v":9},{"$f":"YEAR(X4)","v":2015},null,{"$f":"IF(U5<16,\"15\",\"15\")","v":"15"},{"$f":"IF(U5<16,V5,IF(U5>15,V5+1))","v":9},null,null," 'ın"]
["Sayı:",null,"54499992-35.01",null,null,null,null,null,null,null,null,null,null,null,null,null,null,null,null,null,{"$f":"'Onay(Paraflı)'!U6:AA6","v":"…/09/2015"},null,null,null,null,null,null,null," 'in"]
["Konu :",null,"Engelli Evde Bakım Hizmeti",null,null,null,null,null,null,null,null,null,null,null,null,null,null,null,null,null,null,null,null,null,null,{"$f":"IF(Z5>12,W5+1,W5)","v":2015},null,null," 'un"]
[null,null,{"$f":"CONCATENATE(\"(\",'Bakım ve Denetim Formu'!C10,\")\")","v":"(?)"},null,null,null,null,null,null,null,null,null,null,null,null,null,null,null,null,null,null,null,null,null,null,null,null,null," 'ün"]
[null,null,null,null,null,null,null,null,null,null,null,null,null,null,null,null,null,null,null,null,null,null,null,null,null,null,null,null," 'nın"]
[{"$f":"CONCATENATE(\"Sayın; \",'Bakım ve Denetim Formu'!C24)","v":"Sayın; ?"},null,null,null,null,null,null,null,null,null,null,null,null,null,null,null,null,null,null,null,null,null,null,null,null,null,null,null," 'nin"]
[{"$f":"CONCATENATE(\"( \",'Bakım ve Denetim Formu'!C31,\" )\")","v":"( ? )"},null,null,null,null,null,null,null,null,null,null,null,null,null,null,null,null,null,null,null,null,null,null,null,null,null,null,null," 'nun"]
[null,null,null,null,null,null,null,null,null,null,null,null,null,null,null,null,null,null,null,null,null,null,null,null,null,null,null,null," 'nün"]
[null,null,null,null,null,null,null,null,null,null,null,null,null,null,null,null,null,null,null,null,null,null,null,null,null,null,null,null,"Müdürlüğümüz"]
["İlgi:",null,"30.07.2006 tarih ve 26244 sayılı R.G yayımlanan \"Bakıma Muhtaç Engellilerin Tespiti ve Bakım Hizmeti Esaslarının Belirlenmesine İlişkin Yönetmelikte Değişiklik Yapılması Hakkında Yönetmelik\"",null,null,null,null,null,null,null,null,null,null,null,null,null,null,null,null,null,null,null,null,null,null,null,null,null,"Yetiştirme Yurdu"]
[null,null,null,null,null,null,null,null,null,null,null,null,null,null,null,null,null,null,null,null,null,null,null,null,null,null,null,null,"Çocuk Yuvası"]
[null,null,null,null,null,null,null,null,null,null,null,null,null,null,null,null,null,null,null,null,null,null,null,null,null,null,null,null,"Selendi"]
[null,null,null,null,null,null,null,null,null,null,null,null,null,null,null,null,null,null,null,null,null,null,null,null,null,null,null,null,"Kula"]
[null,null,null,null,null,null,null,null,null,null,null,null,null,null,null,null,null,null,null,null,null,null,null,null,null,null,null,null,"Salihli"]
[null,null,{"$f":"'Onay (Özel Bakım Mer-Paraflı)'!C19","v":"Müdürlüğümüz"},null,null,null,null,"Engelli Bakım Hizmetlerine, özürlü olan",null,null,null,null,null,null,null,null,null,{"$f":"CONCATENATE('Bakım ve Denetim Formu'!C10)","v":"?"},null,null,null,null,null,null,null,{"$f":"'Onay (Özel Bakım Mer-Paraflı)'!Z19","v":" 'nın"},null,null,"Turgutlu"]
["engelli evde bakım yardımından faydalandırılması için yapmış olduğunuz başvurunuz nedeniyle Bakım Hizmetleri Değerlendirme Heyetince ilgili Yönetmelik doğrultusunda gerekli inceleme yapılmış olup,  engellinin bakımını yapmadığınız, engelli ile birebir ilgilenmediğiniz tespit edilmiştir. Mevcut şartlar altında engellinin özel bakım merkezinde (her gün 24 saat) yatılı olarak bakılması uygun görülmüştür.",null,null,null,null,null,null,null,null,null,null,null,null,null,null,null,null,null,null,null,null,null,null,null,null,null,null,null,"Ahmetli"]
[null,null,null,null,null,null,null,null,null,null,null,null,null,null,null,null,null,null,null,null,null,null,null,null,null,null,null,null,"Alaşehir"]
[null,null,null,null,null,null,null,null,null,null,null,null,null,null,null,null,null,null,null,null,null,null,null,null,null,null,null,null,"Sarigöl"]
[null,null,null,null,null,null,null,null,null,null,null,null,null,null,null,null,null,null,null,null,null,null,null,null,null,null,null,null,"Soma"]
[null,null,null,null,null,null,null,null,null,null,null,null,null,null,null,null,null,null,null,null,null,null,null,null,null,null,null,null,"Gördes"]
[null,null,"Bilgilerinize rica ederim.",null,null,null,null,null,null,null,null,null,null,null,null,null,null,null,null,null,null,null,null,null,null,null,null,null,"Demirci"]
[null,null,null,null,null,null,null,null,null,null,null,null,null,null,null,null,null,null,null,null,null,null,null,null,null,null,null,null,"Akhisar"]
[null,null,null,null,null,null,null,null,null,null,null,null,null,null,null,null,null,null,null,null,null,null,null,null,null,null,null,null,"Saruhanlı"]
[null,null,null,null,null,null,null,null,null,null,null,null,null,null,null,null,null,null,null,null,null,null,null,null,null,null,null,null,"Kırkağaç"]
[null,null,null,null,null,null,null,null,null,null,null,null,null,null,null,null,null,null,null,null,null,null,null,null,null,null,null,null,"Gölmarmara"]
[null,null,null,null,null,null,null,null,null,null,null,null,null,null,null,null,null,null,{"$f":"'Onay (Özel Bakım Mer-Paraflı)'!S30:AA30","v":"………….."},null,null,null,null,null,null,null,null,null,"Köprübaşı"]
[null,null,null,null,null,null,null,null,null,null,null,null,null,null,null,null,null,null,{"$f":"'Onay (Özel Bakım Mer-Paraflı)'!S31:AA31","v":"İl Müdürü"}]
[]
[]
[]
[]
[]
[]
[]
[]
[]
[]
[]
[]
[]
[]
[]
[]
[]
[]
[]
[]
[]
[]
[]
[]
[]
[]
[]
[{"$f":"'Onay (Özel Bakım Mer-Paraflı)'!A59:Q59","v":"Aile, Çalışma ve Sosyal Hizmetler İl Müdürlüğü MANİSA"},null,null,null,null,null,null,null,null,null,null,null,null,null,null,null,null,{"$f":"'Onay (Özel Bakım Mer-Paraflı)'!R59:AA59","v":"Bilgi için: ……………………"}]
[{"$f":"'Onay (Özel Bakım Mer-Paraflı)'!A60:Q60","v":"Telefon: (0 236) 231 10 01 Faks: (0 236) 231 85 76"},null,null,null,null,null,null,null,null,null,null,null,null,null,null,null,null,{"$f":"'Onay (Özel Bakım Mer-Paraflı)'!R60:AA60","v":"Sosyal Çalışmacı"}]
[{"$f":"'Onay (Özel Bakım Mer-Paraflı)'!A61:Q61","v":"E-posta: manisa@ailevecalisma.gov.tr  İnternet: ailevecalisma.gov.tr/manisa"},null,null,null,null,null,null,null,null,null,null,null,null,null,null,null,null,{"$f":"'Onay (Özel Bakım Mer-Paraflı)'!R61:AA61","v":"Telefon No:(236) 231 10 01/"}]
[]
[]
[]
[]
[]
[]
[]
[]
[]
[]
[]
[]
[]
[]
[]
[]
[]
[]
[]
[]
[]
[]
[]
[]
[]
[]
[]
[]
[]
[]
[]
[]
[]
[]
[]
[]
[]
[]
[]
[]
[]
[]
[]
[]
[]
[]
[]
[null,null,null,null,null,null,{"$f":"COUNTIF(E107:F110,\"BAĞIMSIZ\")","v":0},null,null,null,null,null,null,null,null,null,null,null,null,null,null,null,null,null,null,null,null,null,{"$f":"COUNTIF(E107:F110,\"BAĞIMSIZ\")","v":0}]

{"sheet":"Onay (Genel Müd.BRM-Paraflı)","index":15,"n_rows":61,"n_cols":29,"rows_kept":61,"cut":false,"hidden":true,"merged":[[60,17,60,26],[0,0,0,26],[1,0,1,26],[2,0,2,26],[4,22,4,23],[5,2,5,12],[5,20,5,26],[6,2,6,12],[7,2,7,12],[9,0,9,26],[10,0,10,26],[13,0,13,1],[13,2,15,26],[17,2,17,26],[18,2,18,6],[18,7,18,16],[18,17,18,24],[19,0,25,26],[26,2,26,26],[38,11,38,14],[39,9,39,16],[29,18,29,26],[30,18,30,26],[40,9,40,16],[41,6,41,19],[59,0,59,16],[58,0,58,16],[58,17,58,26],[59,17,59,26],[60,0,60,16],[54,0,54,2],[54,3,54,12],[55,0,55,2],[55,3,55,12],[56,0,56,2],[56,3,56,12]]}
["T.C."]
["MANİSA VALİLİĞİ"]
["Aile, Çalışma ve Sosyal Hizmetler İl Müdürlüğü"]
[null,null,null,null,null,null,null,null,null,null,null,null,null,null,null,null,null,null,null,null,null,null,null,{"$f":"'Bakım ve Denetim Formu'!D165","v":"2015-09-10"},null,{"$f":"IF(Z5>12,1,Z5)","v":9}]
[null,null,null,null,"   ",null,null,null,null,null,null,null,null,null,null,null,null,null,null,null,{"$f":"DAY(X4)","v":10},{"$f":"MONTH(X4)","v":9},{"$f":"YEAR(X4)","v":2015},null,{"$f":"IF(U5<16,\"15\",\"15\")","v":"15"},{"$f":"IF(U5<16,V5,IF(U5>15,V5+1))","v":9},null,null," 'ın"]
["Sayı:",null,"54499992-35.01",null,null,null,null,null,null,null,null,null,null,null,null,null,null,null,null,null,{"$f":"'Onay(Paraflı)'!U6:AA6","v":"…/09/2015"},null,null,null,null,null,null,null," 'in"]
["Konu :",null,"Engelli Evde Bakım Hizmeti",null,null,null,null,null,null,null,null,null,null,null,null,null,null,null,null,null,null,null,null,null,null,{"$f":"IF(Z5>12,W5+1,W5)","v":2015},null,null," 'un"]
[null,null,{"$f":"CONCATENATE(\"(\",'Bakım ve Denetim Formu'!C10,\")\")","v":"(?)"},null,null,null,null,null,null,null,null,null,null,null,null,null,null,null,null,null,null,null,null,null,null,{"$f":"IF(Z4<10,CONCATENATE(\"0\",Z4,\"\"),Z4)","v":"09"},null,null," 'ün"]
[null,null,null,null,null,null,null,null,null,null,null,null,null,null,null,null,null,null,null,null,null,null,null,null,null,null,null,null," 'nın"]
[{"$f":"CONCATENATE(\"Sayın; \",'Bakım ve Denetim Formu'!C24)","v":"Sayın; ?"},null,null,null,null,null,null,null,null,null,null,null,null,null,null,null,null,null,null,null,null,null,null,null,null,null,null,null," 'nin"]
[{"$f":"CONCATENATE(\"( \",'Bakım ve Denetim Formu'!C31,\" )\")","v":"( ? )"},null,null,null,null,null,null,null,null,null,null,null,null,null,null,null,null,null,null,null,null,null,null,null,null,null,null,null," 'nun"]
[null,null,null,null,null,null,null,null,null,null,null,null,null,null,null,null,null,null,null,null,null,null,null,null,null,null,null,null," 'nün"]
[null,null,null,null,null,null,null,null,null,null,null,null,null,null,null,null,null,null,null,null,null,null,null,null,null,null,null,null,"Müdürlüğümüz"]
["İlgi:",null,"30.07.2006 tarih ve 26244 sayılı R.G yayımlanan \"Bakıma Muhtaç Engellilerin Tespiti ve Bakım Hizmeti Esaslarının Belirlenmesine İlişkin Yönetmelikte Değişiklik Yapılması Hakkında Yönetmelik\"",null,null,null,null,null,null,null,null,null,null,null,null,null,null,null,null,null,null,null,null,null,null,null,null,null,"Ahmetli"]
[null,null,null,null,null,null,null,null,null,null,null,null,null,null,null,null,null,null,null,null,null,null,null,null,null,null,null,null,"Akhisar"]
[null,null,null,null,null,null,null,null,null,null,null,null,null,null,null,null,null,null,null,null,null,null,null,null,null,null,null,null,"Alaşehir"]
[null,null,null,null,null,null,null,null,null,null,null,null,null,null,null,null,null,null,null,null,null,null,null,null,null,null,null,null,"Demirci"]
[null,null,null,null,null,null,null,null,null,null,null,null,null,null,null,null,null,null,null,null,null,null,null,null,null,null,null,null,"Gölmarmara"]
[null,null,"Müdürlüğümüz",null,null,null,null,"Engelli Bakım Hizmetlerine, engelli olan",null,null,null,null,null,null,null,null,null,{"$f":"CONCATENATE('Bakım ve Denetim Formu'!C10)","v":"?"},null,null,null,null,null,null,null," 'nun",null,null,"Gördes"]
["engelli evde bakım yardımından faydalandırılması için yapmış olduğunuz başvurunuz nedeniyle Bakım Hizmetleri Değerlendirme Heyetince ilgili Yönetmelik doğrultusunda gerekli inceleme yapılmış olup,  engellinin bakımını yapmadığınız, engelli ile birebir ilgilenmediğiniz tespit edilmiştir. Mevcut şartlar altında engellinin Genel Müdürlüğümüze bağlı Bakım ve Rehabilitasyon Merkezinde bakılması uygun görülmüştür.",null,null,null,null,null,null,null,null,null,null,null,null,null,null,null,null,null,null,null,null,null,null,null,null,null,null,null,"Kırkağaç"]
[null,null,null,null,null,null,null,null,null,null,null,null,null,null,null,null,null,null,null,null,null,null,null,null,null,null,null,null,"Köprübaşı"]
[null,null,null,null,null,null,null,null,null,null,null,null,null,null,null,null,null,null,null,null,null,null,null,null,null,null,null,null,"Kula"]
[null,null,null,null,null,null,null,null,null,null,null,null,null,null,null,null,null,null,null,null,null,null,null,null,null,null,null,null,"Salihli"]
[null,null,null,null,null,null,null,null,null,null,null,null,null,null,null,null,null,null,null,null,null,null,null,null,null,null,null,null,"Sarigöl"]
[null,null,null,null,null,null,null,null,null,null,null,null,null,null,null,null,null,null,null,null,null,null,null,null,null,null,null,null,"Saruhanlı"]
[null,null,null,null,null,null,null,null,null,null,null,null,null,null,null,null,null,null,null,null,null,null,null,null,null,null,null,null,"Selendi"]
[null,null,"Bilgilerinize rica ederim.",null,null,null,null,null,null,null,null,null,null,null,null,null,null,null,null,null,null,null,null,null,null,null,null,null,"Soma"]
[null,null,null,null,null,null,null,null,null,null,null,null,null,null,null,null,null,null,null,null,null,null,null,null,null,null,null,null,"Turgutlu"]
[]
[null,null,null,null,null,null,null,null,null,null,null,null,null,null,null,null,null,null,"………….."]
[null,null,null,null,null,null,null,null,null,null,null,null,null,null,null,null,null,null,"İl Müdürü"]
[]
[]
[]
[]
[]
[]
[]
[]
[]
[]
[]
[]
[]
[]
[]
[]
[]
[]
[]
[]
[]
[]
[]
[{"$f":"IF(D55=\"\",\" \",U6)","v":"…/09/2015"},null,null,"…………….."]
[{"$f":"IF(D56=\"\",\" \",U6)","v":"…/09/2015"},null,null,"…………….."]
[{"$f":"IF(D57=\"\",\" \",U6)","v":"…/09/2015"},null,null,"…………….."]
[]
["Aile, Çalışma ve Sosyal Hizmetler İl Müdürlüğü MANİSA",null,null,null,null,null,null,null,null,null,null,null,null,null,null,null,null,"Bilgi için: ……………………"]
["Telefon: (0 236) 231 10 01 Faks: (0 236) 231 85 76",null,null,null,null,null,null,null,null,null,null,null,null,null,null,null,null,"Sosyal Çalışmacı"]
["E-posta: manisa@ailevecalisma.gov.tr  İnternet: ailevecalisma.gov.tr/manisa",null,null,null,null,null,null,null,null,null,null,null,null,null,null,null,null,"Telefon No:(236) 231 10 01/"]

{"sheet":"Onay (Genel Müd.BRM)","index":16,"n_rows":61,"n_cols":29,"rows_kept":61,"cut":false,"hidden":true,"merged":[[60,17,60,26],[0,0,0,26],[1,0,1,26],[2,0,2,26],[4,22,4,23],[5,2,5,12],[5,20,5,26],[6,2,6,12],[7,2,7,12],[9,0,9,26],[10,0,10,26],[13,0,13,1],[13,2,15,26],[17,2,17,26],[18,2,18,6],[18,7,18,16],[18,17,18,24],[19,0,25,26],[26,2,26,26],[38,11,38,14],[39,9,39,16],[29,18,29,26],[30,18,30,26],[40,9,40,16],[41,6,41,19],[59,0,59,16],[58,0,58,16],[58,17,58,26],[59,17,59,26],[60,0,60,16],[54,0,54,2],[54,3,54,12],[55,0,55,2],[55,3,55,12],[56,0,56,2],[56,3,56,12]]}
[{"$f":"'Onay (Genel Müd.BRM-Paraflı)'!A1:AA1","v":"T.C."}]
[{"$f":"'Onay (Genel Müd.BRM-Paraflı)'!A2:AA2","v":"MANİSA VALİLİĞİ"}]
[{"$f":"'Onay (Genel Müd.BRM-Paraflı)'!A3:AA3","v":"Aile, Çalışma ve Sosyal Hizmetler İl Müdürlüğü"}]
[null,null,null,null,null,null,null,null,null,null,null,null,null,null,null,null,null,null,null,null,null,null,null,{"$f":"'Bakım ve Denetim Formu'!D165","v":"2015-09-10"},null,{"$f":"IF(Z5>12,1,Z5)","v":9}]
[null,null,null,null,"   ",null,null,null,null,null,null,null,null,null,null,null,null,null,null,null,{"$f":"DAY(X4)","v":10},{"$f":"MONTH(X4)","v":9},{"$f":"YEAR(X4)","v":2015},null,{"$f":"IF(U5<16,\"15\",\"15\")","v":"15"},{"$f":"IF(U5<16,V5,IF(U5>15,V5+1))","v":9},null,null," 'ın"]
["Sayı:",null,"54499992-35.01",null,null,null,null,null,null,null,null,null,null,null,null,null,null,null,null,null,{"$f":"'Onay(Paraflı)'!U6:AA6","v":"…/09/2015"},null,null,null,null,null,null,null," 'in"]
["Konu :",null,"Engelli Evde Bakım Hizmeti",null,null,null,null,null,null,null,null,null,null,null,null,null,null,null,null,null,null,null,null,null,null,{"$f":"IF(Z5>12,W5+1,W5)","v":2015},null,null," 'un"]
[null,null,{"$f":"CONCATENATE(\"(\",'Bakım ve Denetim Formu'!C10,\")\")","v":"(?)"},null,null,null,null,null,null,null,null,null,null,null,null,null,null,null,null,null,null,null,null,null,null,null,null,null," 'ün"]
[null,null,null,null,null,null,null,null,null,null,null,null,null,null,null,null,null,null,null,null,null,null,null,null,null,null,null,null," 'nın"]
[{"$f":"CONCATENATE(\"Sayın; \",'Bakım ve Denetim Formu'!C24)","v":"Sayın; ?"},null,null,null,null,null,null,null,null,null,null,null,null,null,null,null,null,null,null,null,null,null,null,null,null,null,null,null," 'nin"]
[{"$f":"CONCATENATE(\"( \",'Bakım ve Denetim Formu'!C31,\" )\")","v":"( ? )"},null,null,null,null,null,null,null,null,null,null,null,null,null,null,null,null,null,null,null,null,null,null,null,null,null,null,null," 'nun"]
[null,null,null,null,null,null,null,null,null,null,null,null,null,null,null,null,null,null,null,null,null,null,null,null,null,null,null,null," 'nün"]
[null,null,null,null,null,null,null,null,null,null,null,null,null,null,null,null,null,null,null,null,null,null,null,null,null,null,null,null,"Müdürlüğümüz"]
["İlgi:",null,"30.07.2006 tarih ve 26244 sayılı R.G yayımlanan \"Bakıma Muhtaç Engellilerin Tespiti ve Bakım Hizmeti Esaslarının Belirlenmesine İlişkin Yönetmelikte Değişiklik Yapılması Hakkında Yönetmelik\"",null,null,null,null,null,null,null,null,null,null,null,null,null,null,null,null,null,null,null,null,null,null,null,null,null,"Yetiştirme Yurdu"]
[null,null,null,null,null,null,null,null,null,null,null,null,null,null,null,null,null,null,null,null,null,null,null,null,null,null,null,null,"Çocuk Yuvası"]
[null,null,null,null,null,null,null,null,null,null,null,null,null,null,null,null,null,null,null,null,null,null,null,null,null,null,null,null,"Selendi"]
[null,null,null,null,null,null,null,null,null,null,null,null,null,null,null,null,null,null,null,null,null,null,null,null,null,null,null,null,"Kula"]
[null,null,null,null,null,null,null,null,null,null,null,null,null,null,null,null,null,null,null,null,null,null,null,null,null,null,null,null,"Salihli"]
[null,null,{"$f":"'Onay (Genel Müd.BRM-Paraflı)'!C19","v":"Müdürlüğümüz"},null,null,null,null,"Engelli Bakım Hizmetlerine, engelli olan",null,null,null,null,null,null,null,null,null,{"$f":"CONCATENATE('Bakım ve Denetim Formu'!C10)","v":"?"},null,null,null,null,null,null,null,{"$f":"'Onay (Genel Müd.BRM-Paraflı)'!Z19","v":" 'nun"},null,null,"Turgutlu"]
["engelli evde bakım yardımından faydalandırılması için yapmış olduğunuz başvurunuz nedeniyle Bakım Hizmetleri Değerlendirme Heyetince ilgili Yönetmelik doğrultusunda gerekli inceleme yapılmış olup,  engellinin bakımını yapmadığınız, engelli ile birebir ilgilenmediğiniz tespit edilmiştir. Mevcut şartlar altında engellinin Genel Müdürlüğümüze bağlı Bakım ve Rehabilitasyon Merkezinde bakılması uygun görülmüştür.",null,null,null,null,null,null,null,null,null,null,null,null,null,null,null,null,null,null,null,null,null,null,null,null,null,null,null,"Ahmetli"]
[null,null,null,null,null,null,null,null,null,null,null,null,null,null,null,null,null,null,null,null,null,null,null,null,null,null,null,null,"Alaşehir"]
[null,null,null,null,null,null,null,null,null,null,null,null,null,null,null,null,null,null,null,null,null,null,null,null,null,null,null,null,"Sarigöl"]
[null,null,null,null,null,null,null,null,null,null,null,null,null,null,null,null,null,null,null,null,null,null,null,null,null,null,null,null,"Soma"]
[null,null,null,null,null,null,null,null,null,null,null,null,null,null,null,null,null,null,null,null,null,null,null,null,null,null,null,null,"Gördes"]
[null,null,null,null,null,null,null,null,null,null,null,null,null,null,null,null,null,null,null,null,null,null,null,null,null,null,null,null,"Demirci"]
[null,null,null,null,null,null,null,null,null,null,null,null,null,null,null,null,null,null,null,null,null,null,null,null,null,null,null,null,"Akhisar"]
[null,null,"Bilgilerinize rica ederim.",null,null,null,null,null,null,null,null,null,null,null,null,null,null,null,null,null,null,null,null,null,null,null,null,null,"Saruhanlı"]
[null,null,null,null,null,null,null,null,null,null,null,null,null,null,null,null,null,null,null,null,null,null,null,null,null,null,null,null,"Kırkağaç"]
[null,null,null,null,null,null,null,null,null,null,null,null,null,null,null,null,null,null,null,null,null,null,null,null,null,null,null,null,"Gölmarmara"]
[null,null,null,null,null,null,null,null,null,null,null,null,null,null,null,null,null,null,{"$f":"'Onay (Genel Müd.BRM-Paraflı)'!S30:AA30","v":"………….."},null,null,null,null,null,null,null,null,null,"Köprübaşı"]
[null,null,null,null,null,null,null,null,null,null,null,null,null,null,null,null,null,null,{"$f":"'Onay (Genel Müd.BRM-Paraflı)'!S31:AA31","v":"İl Müdürü"}]
[]
[]
[]
[]
[]
[]
[]
[]
[]
[]
[]
[]
[]
[]
[]
[]
[]
[]
[]
[]
[]
[]
[]
[]
[]
[]
[]
[{"$f":"'Onay (Genel Müd.BRM-Paraflı)'!A59:Q59","v":"Aile, Çalışma ve Sosyal Hizmetler İl Müdürlüğü MANİSA"},null,null,null,null,null,null,null,null,null,null,null,null,null,null,null,null,{"$f":"'Onay (Genel Müd.BRM-Paraflı)'!R59:AA59","v":"Bilgi için: ……………………"}]
[{"$f":"'Onay (Genel Müd.BRM-Paraflı)'!A60:Q60","v":"Telefon: (0 236) 231 10 01 Faks: (0 236) 231 85 76"},null,null,null,null,null,null,null,null,null,null,null,null,null,null,null,null,{"$f":"'Onay (Genel Müd.BRM-Paraflı)'!R60:AA60","v":"Sosyal Çalışmacı"}]
[{"$f":"'Onay (Genel Müd.BRM-Paraflı)'!A61:Q61","v":"E-posta: manisa@ailevecalisma.gov.tr  İnternet: ailevecalisma.gov.tr/manisa"},null,null,null,null,null,null,null,null,null,null,null,null,null,null,null,null,{"$f":"'Onay (Genel Müd.BRM-Paraflı)'!R61:AA61","v":"Telefon No:(236) 231 10 01/"}]